Workbook

Sheet Title sheet
C4: XXXXXXXXXXX
D7: Workplace health: long term sickness absence and capability for work.
D12: About the model:
D14: Black text | F14: Indicates input cells. These can be changed as appropriate to your requirements.
D16: Red text | F16: Indicates a formula cell. These are dependent upon other cells, and should not be changed. There are no password or protected sheets.
D18: Comments | F18: A red mark in the corner of a cell indicates a comment. To view the comment, hover the pointer over the cell.
D21: This cost calculator is intended for use by decision makers to determine if a work place health intervention is cost-effective in a specific organisation at reducing the recurrence of short-term sickness absence and long-term sickness absence among employees, from the perspective of the employer. This model does not take into account non-quantitative factors and is intended to supplement decision making. The values included in the 'base case' are there as an example of the type of input that could be used and are included as a starting point. Each input in the base case has a comment in the cell to indicate the input source. The base case data is intended as a guide only and this information will differ by organisation. It is intended that the model user will input data specific to their own organisation (or the organisation where the intervention will be implemented). The cost calculator should be used alongside the associated economic model report which is available on the NICE website.
D26: To use the model: 1. Click the 'Inputs' button and select the type of sickness absence (short-term sickness absence or long-term sickness absence) 1.a) Enter your own data into the input cells (green cells) 1.b) Select the time horizon from the drop down box 1.c) Select the method of applying effectiveness data from the drop down box (if your time horizon is more than 1 year) 2. Select which categories you would like to include using the tick boxes in the 'Inputs' sheet 3. Click the 'Results' button to view the results of the cost calculator 4. If you are unsure of any of the inputs you have entered click the 'Sensitivity Analysis' tab and/or the 'Slider Chart' tab to see what effect varying each input would have on the results

Sheet Inputs
AI10: Slider chart | AO10: Sensitivity analysis
AJ11: LIVE | AK11: Spin button
AI12: No of employees | AJ12: =IF('Base case'!$E$126=1,Inputs!AK12,Inputs!E14) -> 30 | AK12: 30 | AR12: Scenario analysis - baselien absenteeism
AO13: Cost of int. | AP13: ='Base case'!G19 -> -22063.43562 | AR13: No. of days | AS13: ='Base case'!G19 -> -22063.43562
D14: Number of employees | E14: =IF(AbsenceType=1,'Inputs (STSA)'!E14,'Inputs (LTSA)'!E14) -> 30 | AI14: Cost of intervention per person | AJ14: =IF('Base case'!$E$126=1,Inputs!AK14,Inputs!H17) -> 1000 | AK14: 200 | AO14: 0 | AP14: -52063.43562 | AR14: 4.78 | AS14: 6844.82358 | BA14: Drop down effectiveness options
AO15: 50 | AP15: -50563.43562 | AR15: 7.58 | AS15: 1526.61558 | BH15: Calculations
H16: Year 1 | I16: Year 2 | J16: Year 3 | K16: Year 4 | L16: Year 5 | AL16: Spin button default | AO16: 100 | AP16: -49063.43562 | AR16: 12.5 | AS16: -7818.23562 | BA16: Option 1 - same effectiveness each year
D17: Annual discount rate | E17: =IF(AbsenceType=1,'Inputs (STSA)'!E17,'Inputs (LTSA)'!E17) -> 0.035 | G17: Cost of intervention per person | H17: =IF(AbsenceType=1,'Inputs (STSA)'!H17,'Inputs (LTSA)'!H17) -> 1000 | I17: =IF(AbsenceType=1,'Inputs (STSA)'!I17,'Inputs (LTSA)'!I17) -> 750 | J17: =IF(AbsenceType=1,'Inputs (STSA)'!J17,'Inputs (LTSA)'!J17) -> 750 | K17: =IF(AbsenceType=1,'Inputs (STSA)'!K17,'Inputs (LTSA)'!K17) -> 750 | L17: =IF(AbsenceType=1,'Inputs (STSA)'!L17,'Inputs (LTSA)'!L17) -> 750 | AI17: Number of days lost per person | AJ17: =IF('Base case'!$E$126=1,Inputs!AK17,Inputs!E20) -> 20 | AK17: 4.44 | AO17: 150 | AP17: -47563.43562 | AR17: 14.1 | AS17: -10857.21162 | BH17: Calculations - before intervention | BO17: Calculations - after intervention | BW17: Four way | CC17: Absenteeism | DE17: Productivity | EE17: Staff turnover
AI18: Cost of absenteeism per day | AJ18: =IF('Base case'!$E$126=1,Inputs!AK18,Inputs!E21) -> 158.28 | AK18: 158.28 | AO18: 200 | AP18: -46063.43562 | AR18: 16.6 | AS18: -15605.61162 | BB18: Year 1 | BC18: Year 2 | BD18: Year 3 | BE18: Year 4 | BF18: Year 5 | EM18: =EF23 -> 0.068 | ES18: =EG23 -> 0.136 | EY18: =EH23 -> 0.272
D19: Absenteeism (sick leave) | E19: Baseline | H19: Difference from baseline in year 1 | I19: Difference from baseline in year 2 | J19: Difference from baseline in year 3 | K19: Difference from baseline in year 4 | L19: Difference from baseline in year 5 | AI19: Reduction in absenteeism | AJ19: =IF('Base case'!$E$126=1,(Inputs!AK19/100),Inputs!H21) -> 0.4 | AK19: 40 | AL19: =AJ19*100 -> 40 | AO19: 250 | AP19: -44563.43562 | AR19: 17.2 | AS19: -16745.22762 | BI19: Year 1 | BJ19: Year 2 | BK19: Year 3 | BL19: Year 4 | BM19: Year 5 | BP19: Year 1 | BQ19: Year 2 | BR19: Year 3 | BS19: Year 4 | BT19: Year 5 | BW19: Absenteeism | CC19: Cost of intervention per person | CD19: ='Four-way'!M8 -> 0 | CE19: ='Four-way'!N8 -> 100 | CF19: ='Four-way'!O8 -> 200 | CG19: ='Four-way'!P8 -> 400 | CL19: Cost of absenteeism | CM19: =CD23 -> 15 | CS19: =CE23 -> 30 | CY19: =CF23 -> 60 | DE19: Cost of intervention per person | DF19: ='Four-way Prod'!M8 -> 0 | DG19: ='Four-way Prod'!N8 -> 100 | DH19: ='Four-way Prod'!O8 -> 200 | DI19: ='Four-way Prod'!P8 -> 400 | EE19: Cost of intervention per person | EF19: ='Four-way Turnover'!M8 -> 0 | EG19: ='Four-way Turnover'!N8 -> 155.5 | EH19: ='Four-way Turnover'!O8 -> 311 | EI19: ='Four-way Turnover'!P8 -> 622 | EM19: Staff turnover
D20: Number of days lost per person | E20: =IF(AbsenceType=1,'Inputs (STSA)'!E20,'Inputs (LTSA)'!E20) -> 20 | AO20: 300 | AP20: -43063.43562 | BB20: Difference from baseline in year 1 | BC20: Difference from baseline in year 2 | BD20: Difference from baseline in year 3 | BE20: Difference from baseline in year 4 | BF20: Difference from baseline in year 5 | CE20: Basecase | CM20: Absenteeism | DG20: Basecase | DM20: Productivity | EG20: Basecase | EN20: Cost of intervention per person | ET20: Cost of intervention per person | EZ20: Cost of intervention per person
D21: Cost of absenteeism per day | E21: =IF(AbsenceType=1,'Inputs (STSA)'!E21,'Inputs (LTSA)'!E21) -> 158.28 | G21: =CONCATENATE("Reduction in ",D19) -> Reduction in Absenteeism (sick leave) | H21: =IF(AbsenceType=1,'Inputs (STSA)'!H21,'Inputs (LTSA)'!H21) -> 0.4 | I21: =IF(AbsenceType=1,'Inputs (STSA)'!I21,'Inputs (LTSA)'!I21) -> 0.2 | J21: =IF(AbsenceType=1,'Inputs (STSA)'!J21,'Inputs (LTSA)'!J21) -> 0.1 | K21: =IF(AbsenceType=1,'Inputs (STSA)'!K21,'Inputs (LTSA)'!K21) -> 0.1 | L21: =IF(AbsenceType=1,'Inputs (STSA)'!L21,'Inputs (LTSA)'!L21) -> 0.1 | AO21: 350 | AP21: -41563.43562 | BI21: Costs after in year 1 | BJ21: Costs after in year 2 | BK21: Costs after in year 3 | BL21: Costs after in year 4 | BM21: Costs after in year 5 | BP21: Costs after in year 1 | BQ21: Costs after in year 2 | BR21: Costs after in year 3 | BS21: Costs after in year 4 | BT21: Costs after in year 5 | BX21: Two way table with percentage reduction on vertical and price of intervention on horizontal | CC21: Cost of absenteeism | CD21: ='Four-way'!M10 -> 79.14 | CE21: ='Four-way'!N10 -> 158.28 | CF21: ='Four-way'!O10 -> 316.56 | DE21: Value of employee | DF21: ='Four-way Prod'!M10 -> 20020 | DG21: ='Four-way Prod'!N10 -> 40040 | DH21: ='Four-way Prod'!O10 -> 80080 | DM21: =DF23 -> 0.5 | DS21: =DG23 -> 0.75 | DY21: =DH23 -> 1 | EE21: Cost per case | EF21: ='Four-way Turnover'!M10 -> 7666.8 | EG21: ='Four-way Turnover'!N10 -> 15333.59 | EH21: ='Four-way Turnover'!O10 -> 30667.18 | EN21: 0 | EO21: 200 | EP21: 400 | EQ21: 600 | ET21: 0 | EU21: 200 | EV21: 400 | EW21: 600 | EZ21: 0 | FA21: 200 | FB21: 400 | FC21: 600
G22: =CONCATENATE("Increase in ",D23) -> Increase in Productivity | H22: =IF(AbsenceType=1,'Inputs (STSA)'!H22,'Inputs (LTSA)'!H22) -> 0 | I22: =IF(AbsenceType=1,'Inputs (STSA)'!I22,'Inputs (LTSA)'!I22) -> 0.001 | J22: =IF(AbsenceType=1,'Inputs (STSA)'!J22,'Inputs (LTSA)'!J22) -> 0.001 | K22: =IF(AbsenceType=1,'Inputs (STSA)'!K22,'Inputs (LTSA)'!K22) -> 0.001 | L22: =IF(AbsenceType=1,'Inputs (STSA)'!L22,'Inputs (LTSA)'!L22) -> 0.001 | AI22: Percentage of staff affected | AJ22: =IF('Base case'!$E$126=1,(Inputs!AK22/100),Inputs!E24) -> 1 | AK22: 100 | AL22: =AJ22*100 -> 100 | AO22: 400 | AP22: -40063.43562 | BA22: =D19 -> Absenteeism (sick leave) | BB22: =$AJ$19 -> 0.4 | BC22: =BB22 -> 0.4 | BD22: =BB22 -> 0.4 | BE22: =BB22 -> 0.4 | BF22: =BB22 -> 0.4 | CK22: =CD21 -> 79.14 | CM22: 0 | CN22: 0 | CO22: 4265.5 | CP22: 8531 | CQ22: 17062 | CS22: 0 | CT22: 0 | CU22: 4265.5 | CV22: 8531 | CW22: 17062 | CY22: 0 | CZ22: 0 | DA22: 4265.5 | DB22: 8531 | DC22: 17062 | DM22: 0 | DN22: -22509.39402 | DO22: -19509.39402 | DP22: -16509.39402 | DQ22: -10509.39402 | DS22: 0 | DT22: -22509.39402 | DU22: -19509.39402 | DV22: -16509.39402 | DW22: -10509.39402 | DY22: 0 | DZ22: -22509.39402 | EA22: -19509.39402 | EB22: -16509.39402 | EC22: -10509.39402 | EL22: Reduction in turnover | EM22: 0 | EN22: -8433.1584 | EO22: -3768.1584 | EP22: 896.8416 | EQ22: 10226.8416 | ES22: 0 | ET22: -8433.1584 | EU22: -3768.1584 | EV22: 896.8416 | EW22: 10226.8416 | EY22: 0 | EZ22: -8433.1584 | FA22: -3768.1584 | FB22: 896.8416 | FC22: 10226.8416
D23: Productivity | E23: Baseline | G23: =CONCATENATE("Change in ",D27) -> Change in Staff turnover | H23: =(IF(AbsenceType=1,'Inputs (STSA)'!H23,'Inputs (LTSA)'!H23))*-1 -> 0.225 | I23: =(IF(AbsenceType=1,'Inputs (STSA)'!I23,'Inputs (LTSA)'!I23))*-1 -> 0.175 | J23: =(IF(AbsenceType=1,'Inputs (STSA)'!J23,'Inputs (LTSA)'!J23))*-1 -> 0.175 | K23: =(IF(AbsenceType=1,'Inputs (STSA)'!K23,'Inputs (LTSA)'!K23))*-1 -> 0.175 | L23: =(IF(AbsenceType=1,'Inputs (STSA)'!L23,'Inputs (LTSA)'!L23))*-1 -> 0.175 | AI23: Value of employee | AJ23: =IF('Base case'!$E$126=1,(Inputs!AK23*100),Inputs!E25) -> 40040 | AK23: 400.4 | AL23: =AJ23/100 -> 400.4 | AO23: 450 | AP23: -38563.43562 | BA23: =D23 -> Productivity | BB23: =$AJ$24 -> 0 | BC23: =BB23 -> 0 | BD23: =BB23 -> 0 | BE23: =BB23 -> 0 | BF23: =BB23 -> 0 | BH23: =$D$19 -> Absenteeism (sick leave) | BI23: =(Inputs!$AJ$12*Inputs!$AJ$17*Inputs!$AJ$18*Inputs!$G$117) -> 94968 | BJ23: =(Inputs!$AJ$12*Inputs!$AJ$17*Inputs!$AJ$18*Inputs!$G$117) -> 94968 | BK23: =(Inputs!$AJ$12*Inputs!$AJ$17*Inputs!$AJ$18*Inputs!$G$117) -> 94968 | BL23: =(Inputs!$AJ$12*Inputs!$AJ$17*Inputs!$AJ$18*Inputs!$G$117) -> 94968 | BM23: =(Inputs!$AJ$12*Inputs!$AJ$17*Inputs!$AJ$18*Inputs!$G$117) -> 94968 | BO23: =$D$19 -> Absenteeism (sick leave) | BP23: =BI23*(1-Inputs!BB46) -> 56980.8 | BQ23: =BJ23*(1-Inputs!BC46) -> 75974.4 | BR23: =BK23*(1-Inputs!BD46) -> 85471.2 | BS23: =BL23*(1-Inputs!BE46) -> 85471.2 | BT23: =BM23*(1-Inputs!BF46) -> 85471.2 | CC23: Baseline absenteeism (days) | CD23: ='Four-way'!M11 -> 15 | CE23: ='Four-way'!N11 -> 30 | CF23: ='Four-way'!O11 -> 60 | CM23: 0.1 | CN23: -2255.49 | CO23: 2010.01 | CP23: 6275.51 | CQ23: 14806.51 | CS23: 0.1 | CT23: -4510.98 | CU23: -245.48 | CV23: 4020.02 | CW23: 12551.02 | CY23: 0.1 | CZ23: -9021.96 | DA23: -4756.46 | DB23: -490.96 | DC23: 8040.04 | DE23: Percentage of staff affected | DF23: ='Four-way Prod'!M11 -> 0.5 | DG23: ='Four-way Prod'!N11 -> 0.75 | DH23: ='Four-way Prod'!O11 -> 1 | DL23: =DF21 -> 20020 | DM23: 0.1 | DN23: -52539.39402 | DO23: -49539.39402 | DP23: -46539.39402 | DQ23: -40539.39402 | DS23: 0.1 | DT23: -67554.39402 | DU23: -64554.39402 | DV23: -61554.39402 | DW23: -55554.39402 | DY23: 0.1 | DZ23: -82569.39402 | EA23: -79569.39402 | EB23: -76569.39402 | EC23: -70569.39402 | EE23: Baseline rate of turnover | EF23: ='Four-way Turnover'!M11 -> 0.068 | EG23: ='Four-way Turnover'!N11 -> 0.136 | EH23: ='Four-way Turnover'!O11 -> 0.272 | EK23: =EF21 -> 7666.8 | EM23: 0.1 | EN23: -9997.1856 | EO23: -5332.1856 | EP23: -667.1856 | EQ23: 8662.8144 | ES23: 0.1 | ET23: -11561.2128 | EU23: -6896.2128 | EV23: -2231.2128 | EW23: 7098.7872 | EY23: 0.1 | EZ23: -14689.2672 | FA23: -10024.2672 | FB23: -5359.2672 | FC23: 3970.7328
D24: Percentage of staff affected | E24: =IF(AbsenceType=1,'Inputs (STSA)'!E24,'Inputs (LTSA)'!E24) -> 1 | AI24: Increase in productivity | AJ24: =IF('Base case'!$E$126=1,(Inputs!AK24/100),Inputs!H22) -> 0 | AK24: 0 | AL24: =AJ24*100 -> 0 | AO24: 500 | AP24: -37063.43562 | BA24: =D27 -> Staff turnover | BB24: =$AJ$28 -> 0.225 | BC24: =BB24 -> 0.225 | BD24: =BB24 -> 0.225 | BE24: =BB24 -> 0.225 | BF24: =BB24 -> 0.225 | BH24: =$D$23 -> Productivity | BI24: =Inputs!$AJ$12*Inputs!$AJ$22*Inputs!$AJ$23*Inputs!$G$118 -> 1201200 | BJ24: =Inputs!$AJ$12*Inputs!$AJ$22*Inputs!$AJ$23*Inputs!$G$118 -> 1201200 | BK24: =Inputs!$AJ$12*Inputs!$AJ$22*Inputs!$AJ$23*Inputs!$G$118 -> 1201200 | BL24: =Inputs!$AJ$12*Inputs!$AJ$22*Inputs!$AJ$23*Inputs!$G$118 -> 1201200 | BM24: =Inputs!$AJ$12*Inputs!$AJ$22*Inputs!$AJ$23*Inputs!$G$118 -> 1201200 | BO24: =$D$23 -> Productivity | BP24: =BI24*(1+Inputs!BB47) -> 1201200 | BQ24: =BJ24*(1+Inputs!BC47) -> 1202401.2 | BR24: =BK24*(1+Inputs!BD47) -> 1202401.2 | BS24: =BL24*(1+Inputs!BE47) -> 1202401.2 | BT24: =BM24*(1+Inputs!BF47) -> 1202401.2 | BX24: Cost of intervention | CM24: 0.2 | CN24: -4510.98 | CO24: -245.48 | CP24: 4020.02 | CQ24: 12551.02 | CS24: 0.2 | CT24: -9021.96 | CU24: -4756.46 | CV24: -490.96 | CW24: 8040.04 | CY24: 0.2 | CZ24: -18043.92 | DA24: -13778.42 | DB24: -9512.92 | DC24: -981.92 | DM24: 0.2 | DN24: -82569.39402 | DO24: -79569.39402 | DP24: -76569.39402 | DQ24: -70569.39402 | DS24: 0.2 | DT24: -112599.394 | DU24: -109599.394 | DV24: -106599.394 | DW24: -100599.394 | DY24: 0.2 | DZ24: -142629.394 | EA24: -139629.394 | EB24: -136629.394 | EC24: -130629.394 | EM24: 0.2 | EN24: -11561.2128 | EO24: -6896.2128 | EP24: -2231.2128 | EQ24: 7098.7872 | ES24: 0.2 | ET24: -14689.2672 | EU24: -10024.2672 | EV24: -5359.2672 | EW24: 3970.7328 | EY24: 0.2 | EZ24: -20945.376 | FA24: -16280.376 | FB24: -11615.376 | FC24: -2285.376
D25: Value of employee | E25: =IF(AbsenceType=1,'Inputs (STSA)'!E25,'Inputs (LTSA)'!E25) -> 40040 | AO25: =H17 -> 1000 | AP25: =AP13 -> -22063.43562 | BA25: =D31 -> 0 | BB25: =$AJ$33 -> 0 | BC25: =BB25 -> 0 | BD25: =BB25 -> 0 | BE25: =BB25 -> 0 | BF25: =BB25 -> 0 | BH25: =$D$27 -> Staff turnover | BI25: =Inputs!$AJ$12*Inputs!$AJ$27*Inputs!$AJ$29*Inputs!$G$119 -> 62561.0472 | BJ25: =Inputs!$AJ$12*Inputs!$AJ$27*Inputs!$AJ$29*Inputs!$G$119 -> 62561.0472 | BK25: =Inputs!$AJ$12*Inputs!$AJ$27*Inputs!$AJ$29*Inputs!$G$119 -> 62561.0472 | BL25: =Inputs!$AJ$12*Inputs!$AJ$27*Inputs!$AJ$29*Inputs!$G$119 -> 62561.0472 | BM25: =Inputs!$AJ$12*Inputs!$AJ$27*Inputs!$AJ$29*Inputs!$G$119 -> 62561.0472 | BO25: =$D$27 -> Staff turnover | BP25: =BI25*(1-Inputs!BB48) -> 48484.81158 | BQ25: =BJ25*(1-Inputs!BC48) -> 51612.86394 | BR25: =BK25*(1-Inputs!BD48) -> 51612.86394 | BS25: =BL25*(1-Inputs!BE48) -> 51612.86394 | BT25: =BM25*(1-Inputs!BF48) -> 51612.86394 | BW25: ='Base case'!G19 -> -22063.43562 | BX25: =CD19 -> 0 | BY25: =CE19 -> 100 | BZ25: 200 | CA25: 400 | CM25: 0.3 | CN25: -6766.47 | CO25: -2500.97 | CP25: 1764.53 | CQ25: 10295.53 | CS25: 0.3 | CT25: -13532.94 | CU25: -9267.44 | CV25: -5001.94 | CW25: 3529.06 | CY25: 0.3 | CZ25: -27065.88 | DA25: -22800.38 | DB25: -18534.88 | DC25: -10003.88 | DF25: ='Base case'!G19 -> -22063.43562 | DG25: =DF19 -> 0 | DH25: =DG19 -> 100 | DI25: 200 | DJ25: 400 | DM25: 0.3 | DN25: -112599.394 | DO25: -109599.394 | DP25: -106599.394 | DQ25: -100599.394 | DS25: 0.3 | DT25: -157644.394 | DU25: -154644.394 | DV25: -151644.394 | DW25: -145644.394 | DY25: 0.3 | DZ25: -202689.394 | EA25: -199689.394 | EB25: -196689.394 | EC25: -190689.394 | EF25: ='Base case'!G19 -> -22063.43562 | EG25: =EF19 -> 0 | EH25: =EG19 -> 155.5 | EI25: 311 | EJ25: 622 | EM25: 0.3 | EN25: -13125.24 | EO25: -8460.24 | EP25: -3795.24 | EQ25: 5534.76 | ES25: 0.3 | ET25: -17817.3216 | EU25: -13152.3216 | EV25: -8487.3216 | EW25: 842.6784 | EY25: 0.3 | EZ25: -27201.4848 | FA25: -22536.4848 | FB25: -17871.4848 | FC25: -8541.4848
BA26: =D35 -> 0 | BB26: =$AJ$38 -> 0 | BC26: =BB26 -> 0 | BD26: =BB26 -> 0 | BE26: =BB26 -> 0 | BF26: =BB26 -> 0 | BH26: =$D$31 -> 0 | BI26: =Inputs!$AJ$12*Inputs!$AJ$32*Inputs!$AJ$34*Inputs!$G$120 -> 0 | BJ26: =Inputs!$AJ$12*Inputs!$AJ$32*Inputs!$AJ$34*Inputs!$G$120 -> 0 | BK26: =Inputs!$AJ$12*Inputs!$AJ$32*Inputs!$AJ$34*Inputs!$G$120 -> 0 | BL26: =Inputs!$AJ$12*Inputs!$AJ$32*Inputs!$AJ$34*Inputs!$G$120 -> 0 | BM26: =Inputs!$AJ$12*Inputs!$AJ$32*Inputs!$AJ$34*Inputs!$G$120 -> 0 | BO26: =$D$31 -> 0 | BP26: =BI26*(1-Inputs!BB49) -> 0 | BQ26: =BJ26*(1-Inputs!BC49) -> 0 | BR26: =BK26*(1-Inputs!BD49) -> 0 | BS26: =BL26*(1-Inputs!BE49) -> 0 | BT26: =BM26*(1-Inputs!BF49) -> 0 | BW26: 0 | BX26: -14076.23562 | BY26: -11076.23562 | BZ26: -8076.23562 | CA26: -2076.23562 | CM26: 0.4 | CN26: -9021.96 | CO26: -4756.46 | CP26: -490.96 | CQ26: 8040.04 | CS26: 0.4 | CT26: -18043.92 | CU26: -13778.42 | CV26: -9512.92 | CW26: -981.92 | CY26: 0.4 | CZ26: -36087.84 | DA26: -31822.34 | DB26: -27556.84 | DC26: -19025.84 | DF26: 0 | DG26: -52063.43562 | DH26: -49063.43562 | DI26: -46063.43562 | DJ26: -40063.43562 | DM26: 0.4 | DN26: -142629.394 | DO26: -139629.394 | DP26: -136629.394 | DQ26: -130629.394 | DS26: 0.4 | DT26: -202689.394 | DU26: -199689.394 | DV26: -196689.394 | DW26: -190689.394 | DY26: 0.4 | DZ26: -262749.394 | EA26: -259749.394 | EB26: -256749.394 | EC26: -250749.394 | EF26: 0 | EG26: -37987.2 | EH26: -33322.2 | EI26: -28657.2 | EJ26: -19327.2 | EM26: 0.4 | EN26: -14689.2672 | EO26: -10024.2672 | EP26: -5359.2672 | EQ26: 3970.7328 | ES26: 0.4 | ET26: -20945.376 | EU26: -16280.376 | EV26: -11615.376 | EW26: -2285.376 | EY26: 0.4 | EZ26: -33457.5936 | FA26: -28792.5936 | FB26: -24127.5936 | FC26: -14797.5936
D27: Staff turnover | E27: Baseline | G27: Enter difference in effectiveness to previous year | AI27: Annual rate of staff turnover | AJ27: =IF('Base case'!$E$126=1,(Inputs!AK27/100),Inputs!E28) -> 0.136 | AK27: 13.6 | AL27: =AJ27*100 -> 13.6 | BH27: =$D$35 -> 0 | BI27: =Inputs!$AJ$12*Inputs!$AJ$37*Inputs!$AJ$39*Inputs!$G$121 -> 0 | BJ27: =Inputs!$AJ$12*Inputs!$AJ$37*Inputs!$AJ$39*Inputs!$G$121 -> 0 | BK27: =Inputs!$AJ$12*Inputs!$AJ$37*Inputs!$AJ$39*Inputs!$G$121 -> 0 | BL27: =Inputs!$AJ$12*Inputs!$AJ$37*Inputs!$AJ$39*Inputs!$G$121 -> 0 | BM27: =Inputs!$AJ$12*Inputs!$AJ$37*Inputs!$AJ$39*Inputs!$G$121 -> 0 | BO27: =$D$35 -> 0 | BP27: =BI27*(1-Inputs!BB50) -> 0 | BQ27: =BJ27*(1-Inputs!BC50) -> 0 | BR27: =BK27*(1-Inputs!BD50) -> 0 | BS27: =BL27*(1-Inputs!BE50) -> 0 | BT27: =BM27*(1-Inputs!BF50) -> 0 | BV27: Reduction in absenteeism | BW27: 0.1 | BX27: -23573.03562 | BY27: -20573.03562 | BZ27: -17573.03562 | CA27: -11573.03562 | CM27: 0.5 | CN27: -11277.45 | CO27: -7011.95 | CP27: -2746.45 | CQ27: 5784.55 | CS27: 0.5 | CT27: -22554.9 | CU27: -18289.4 | CV27: -14023.9 | CW27: -5492.9 | CY27: 0.5 | CZ27: -45109.8 | DA27: -40844.3 | DB27: -36578.8 | DC27: -28047.8 | DF27: 0.1 | DG27: -172183.4356 | DH27: -169183.4356 | DI27: -166183.4356 | DJ27: -160183.4356 | DM27: 0.5 | DN27: -172659.394 | DO27: -169659.394 | DP27: -166659.394 | DQ27: -160659.394 | DS27: 0.5 | DT27: -247734.394 | DU27: -244734.394 | DV27: -241734.394 | DW27: -235734.394 | DY27: 0.5 | DZ27: -322809.394 | EA27: -319809.394 | EB27: -316809.394 | EC27: -310809.394 | EF27: 0.1 | EG27: -44243.30472 | EH27: -39578.30472 | EI27: -34913.30472 | EJ27: -25583.30472 | EM27: 0.5 | EN27: -16253.2944 | EO27: -11588.2944 | EP27: -6923.2944 | EQ27: 2406.7056 | ES27: 0.5 | ET27: -24073.4304 | EU27: -19408.4304 | EV27: -14743.4304 | EW27: -5413.4304 | EY27: 0.5 | EZ27: -39713.7024 | FA27: -35048.7024 | FB27: -30383.7024 | FC27: -21053.7024
D28: Annual rate of staff turnover | E28: =IF(AbsenceType=1,'Inputs (STSA)'!E28,'Inputs (LTSA)'!E28) -> 0.136 | G28: =D19 -> Absenteeism (sick leave) | H28: 0.9 | AI28: Reduction in staff turnover | AJ28: =(IF('Base case'!$E$126=1,(Inputs!AK28/100),Inputs!H23)) -> 0.225 | AK28: 22.5 | AL28: =AJ28*100 -> 22.5 | AO28: Absenteeism | BA28: Option 2 - difference in effectiveness each year | BH28: Intervention cost | BI28: 0 | BJ28: 0 | BK28: 0 | BL28: 0 | BM28: 0 | BO28: Intervention cost | BP28: =$AJ$12*AJ14 -> 30000 | BQ28: =$AJ$12*I17 -> 22500 | BR28: =$AJ$12*J17 -> 22500 | BS28: =$AJ$12*K17 -> 22500 | BT28: =$AJ$12*L17 -> 22500 | BW28: 0.2 | BX28: -33069.83562 | BY28: -30069.83562 | BZ28: -27069.83562 | CA28: -21069.83562 | CM28: 0.6 | CN28: -13532.94 | CO28: -9267.44 | CP28: -5001.94 | CQ28: 3529.06 | CS28: 0.6 | CT28: -27065.88 | CU28: -22800.38 | CV28: -18534.88 | CW28: -10003.88 | CY28: 0.6 | CZ28: -54131.76 | DA28: -49866.26 | DB28: -45600.76 | DC28: -37069.76 | DE28: Increase in productivity | DF28: 0.2 | DG28: -292303.4356 | DH28: -289303.4356 | DI28: -286303.4356 | DJ28: -280303.4356 | DM28: 0.6 | DN28: -202689.394 | DO28: -199689.394 | DP28: -196689.394 | DQ28: -190689.394 | DS28: 0.6 | DT28: -292779.394 | DU28: -289779.394 | DV28: -286779.394 | DW28: -280779.394 | DY28: 0.6 | DZ28: -382869.394 | EA28: -379869.394 | EB28: -376869.394 | EC28: -370869.394 | EE28: Reduction in turnover | EF28: 0.2 | EG28: -50499.40944 | EH28: -45834.40944 | EI28: -41169.40944 | EJ28: -31839.40944 | EM28: 0.6 | EN28: -17817.3216 | EO28: -13152.3216 | EP28: -8487.3216 | EQ28: 842.6784 | ES28: 0.6 | ET28: -27201.4848 | EU28: -22536.4848 | EV28: -17871.4848 | EW28: -8541.4848 | EY28: 0.6 | EZ28: -45969.8112 | FA28: -41304.8112 | FB28: -36639.8112 | FC28: -27309.8112
D29: Cost per case of staff turnover | E29: =IF(AbsenceType=1,'Inputs (STSA)'!E29,'Inputs (LTSA)'!E29) -> 15333.59 | G29: =D23 -> Productivity | H29: 0.9 | AI29: Cost per case of staff turnover | AJ29: =IF('Base case'!$E$126=1,Inputs!AK29,Inputs!E29) -> 15333.59 | AK29: 15333.59 | AO29: No. of days | AP29: ='Base case'!G19 -> -22063.43562 | AR29: Cost per day | AS29: ='Base case'!G19 -> -22063.43562 | AU29: Reduction | AV29: ='Base case'!G19 -> -22063.43562 | BH29: Total | BI29: =SUM(BI23:BI28) -> 1358729.047 | BJ29: =SUM(BJ23:BJ28) -> 1358729.047 | BK29: =SUM(BK23:BK28) -> 1358729.047 | BL29: =SUM(BL23:BL28) -> 1358729.047 | BM29: =SUM(BM23:BM28) -> 1358729.047 | BO29: Total | BP29: =SUM(BP23:BP28) -> 1336665.612 | BQ29: =SUM(BQ23:BQ28) -> 1352488.464 | BR29: =SUM(BR23:BR28) -> 1361985.264 | BS29: =SUM(BS23:BS28) -> 1361985.264 | BT29: =SUM(BT23:BT28) -> 1361985.264 | BW29: 0.3 | BX29: -42566.63562 | BY29: -39566.63562 | BZ29: -36566.63562 | CA29: -30566.63562 | CM29: 0.7 | CN29: -15788.43 | CO29: -11522.93 | CP29: -7257.43 | CQ29: 1273.57 | CS29: 0.7 | CT29: -31576.86 | CU29: -27311.36 | CV29: -23045.86 | CW29: -14514.86 | CY29: 0.7 | CZ29: -63153.72 | DA29: -58888.22 | DB29: -54622.72 | DC29: -46091.72 | DF29: 0.3 | DG29: -412423.4356 | DH29: -409423.4356 | DI29: -406423.4356 | DJ29: -400423.4356 | DM29: 0.7 | DN29: -232719.394 | DO29: -229719.394 | DP29: -226719.394 | DQ29: -220719.394 | DS29: 0.7 | DT29: -337824.394 | DU29: -334824.394 | DV29: -331824.394 | DW29: -325824.394 | DY29: 0.7 | DZ29: -442929.394 | EA29: -439929.394 | EB29: -436929.394 | EC29: -430929.394 | EF29: 0.3 | EG29: -56755.51416 | EH29: -52090.51416 | EI29: -47425.51416 | EJ29: -38095.51416 | EM29: 0.7 | EN29: -19381.3488 | EO29: -14716.3488 | EP29: -10051.3488 | EQ29: -721.3488 | ES29: 0.7 | ET29: -30329.5392 | EU29: -25664.5392 | EV29: -20999.5392 | EW29: -11669.5392 | EY29: 0.7 | EZ29: -52225.92 | FA29: -47560.92 | FB29: -42895.92 | FC29: -33565.92
G30: =D27 -> Staff turnover | H30: 0.9 | AO30: 0 | AP30: 15923.76438 | AR30: 0 | AS30: 15923.76438 | AU30: 0 | AV30: 15923.76438 | BB30: Year 1 | BC30: Year 2 | BD30: Year 3 | BE30: Year 4 | BF30: Year 5 | BW30: 0.4 | BX30: -52063.43562 | BY30: -49063.43562 | BZ30: -46063.43562 | CA30: -40063.43562 | CM30: 0.8 | CN30: -18043.92 | CO30: -13778.42 | CP30: -9512.92 | CQ30: -981.92 | CS30: 0.8 | CT30: -36087.84 | CU30: -31822.34 | CV30: -27556.84 | CW30: -19025.84 | CY30: 0.8 | CZ30: -72175.68 | DA30: -67910.18 | DB30: -63644.68 | DC30: -55113.68 | DF30: 0.4 | DG30: -532543.4356 | DH30: -529543.4356 | DI30: -526543.4356 | DJ30: -520543.4356 | DM30: 0.8 | DN30: -262749.394 | DO30: -259749.394 | DP30: -256749.394 | DQ30: -250749.394 | DS30: 0.8 | DT30: -382869.394 | DU30: -379869.394 | DV30: -376869.394 | DW30: -370869.394 | DY30: 0.8 | DZ30: -502989.394 | EA30: -499989.394 | EB30: -496989.394 | EC30: -490989.394 | EF30: 0.4 | EG30: -63011.61888 | EH30: -58346.61888 | EI30: -53681.61888 | EJ30: -44351.61888 | EM30: 0.8 | EN30: -20945.376 | EO30: -16280.376 | EP30: -11615.376 | EQ30: -2285.376 | ES30: 0.8 | ET30: -33457.5936 | EU30: -28792.5936 | EV30: -24127.5936 | EW30: -14797.5936 | EY30: 0.8 | EZ30: -58482.0288 | FA30: -53817.0288 | FB30: -49152.0288 | FC30: -39822.0288
H31: 0.9 | AO31: 2 | AP31: 12125.04438 | AR31: 50 | AS31: 3923.76438 | AU31: 0.05 | AV31: 11175.36438 | BH31: Discounted | BO31: Discounted | BW31: 0.5 | BX31: -61560.23562 | BY31: -58560.23562 | BZ31: -55560.23562 | CA31: -49560.23562 | CM31: 0.9 | CN31: -20299.41 | CO31: -16033.91 | CP31: -11768.41 | CQ31: -3237.41 | CS31: 0.9 | CT31: -40598.82 | CU31: -36333.32 | CV31: -32067.82 | CW31: -23536.82 | CY31: 0.9 | CZ31: -81197.64 | DA31: -76932.14 | DB31: -72666.64 | DC31: -64135.64 | DF31: 0.5 | DG31: -652663.4356 | DH31: -649663.4356 | DI31: -646663.4356 | DJ31: -640663.4356 | DM31: 0.9 | DN31: -292779.394 | DO31: -289779.394 | DP31: -286779.394 | DQ31: -280779.394 | DS31: 0.9 | DT31: -427914.394 | DU31: -424914.394 | DV31: -421914.394 | DW31: -415914.394 | DY31: 0.9 | DZ31: -563049.394 | EA31: -560049.394 | EB31: -557049.394 | EC31: -551049.394 | EF31: 0.5 | EG31: -69267.7236 | EH31: -64602.7236 | EI31: -59937.7236 | EJ31: -50607.7236 | EM31: 0.9 | EN31: -22509.4032 | EO31: -17844.4032 | EP31: -13179.4032 | EQ31: -3849.4032 | ES31: 0.9 | ET31: -36585.648 | EU31: -31920.648 | EV31: -27255.648 | EW31: -17925.648 | EY31: 0.9 | EZ31: -64738.1376 | FA31: -60073.1376 | FB31: -55408.1376 | FC31: -46078.1376
H32: 0.9 | AI32: Percentage of staff affected | AJ32: =IF('Base case'!$E$126=1,(Inputs!AK32/100),Inputs!E32) -> 0 | AK32: 0 | AL32: =AJ32*100 -> 0 | AO32: 4 | AP32: 8326.32438 | AR32: 100 | AS32: -8076.23562 | AU32: 0.1 | AV32: 6426.96438 | BB32: Difference from baseline in year 1 | BC32: Difference from baseline in year 2 | BD32: Difference from baseline in year 3 | BE32: Difference from baseline in year 4 | BF32: Difference from baseline in year 5 | BI32: Cycle | BP32: Cycle | BW32: 0.6 | BX32: -71057.03562 | BY32: -68057.03562 | BZ32: -65057.03562 | CA32: -59057.03562 | CM32: 1 | CN32: -22554.9 | CO32: -18289.4 | CP32: -14023.9 | CQ32: -5492.9 | CS32: 1 | CT32: -45109.8 | CU32: -40844.3 | CV32: -36578.8 | CW32: -28047.8 | CY32: 1 | CZ32: -90219.6 | DA32: -85954.1 | DB32: -81688.6 | DC32: -73157.6 | DF32: 0.6 | DG32: -772783.4356 | DH32: -769783.4356 | DI32: -766783.4356 | DJ32: -760783.4356 | DM32: 1 | DN32: -322809.394 | DO32: -319809.394 | DP32: -316809.394 | DQ32: -310809.394 | DS32: 1 | DT32: -472959.394 | DU32: -469959.394 | DV32: -466959.394 | DW32: -460959.394 | DY32: 1 | DZ32: -623109.394 | EA32: -620109.394 | EB32: -617109.394 | EC32: -611109.394 | EF32: 0.6 | EG32: -75523.82832 | EH32: -70858.82832 | EI32: -66193.82832 | EJ32: -56863.82832 | EM32: 1 | EN32: -24073.4304 | EO32: -19408.4304 | EP32: -14743.4304 | EQ32: -5413.4304 | ES32: 1 | ET32: -39713.7024 | EU32: -35048.7024 | EV32: -30383.7024 | EW32: -21053.7024 | EY32: 1 | EZ32: -70994.2464 | FA32: -66329.2464 | FB32: -61664.2464 | FC32: -52334.2464
AI33: Reduction in healthcare use | AJ33: =IF('Base case'!$E$126=1,(Inputs!AK33/100),Inputs!H24) -> 0 | AK33: 0 | AL33: =AJ33*100 -> 0 | AO33: 6 | AP33: 4527.60438 | AR33: 150 | AS33: -20076.23562 | AU33: 0.15 | AV33: 1678.56438 | BI33: 0 | BJ33: 1 | BK33: 2 | BL33: 3 | BM33: 4 | BP33: 0 | BQ33: 1 | BR33: 2 | BS33: 3 | BT33: 4 | BW33: 0.7 | BX33: -80553.83562 | BY33: -77553.83562 | BZ33: -74553.83562 | CA33: -68553.83562 | DF33: 0.7 | DG33: -892903.4356 | DH33: -889903.4356 | DI33: -886903.4356 | DJ33: -880903.4356 | EF33: 0.7 | EG33: -81779.93304 | EH33: -77114.93304 | EI33: -72449.93304 | EJ33: -63119.93304
AI34: Cost per person affected | AJ34: =IF('Base case'!$E$126=1,Inputs!AK34,Inputs!E33) -> 0 | AK34: 0 | AO34: 8 | AP34: 728.88438 | AR34: 200 | AS34: -32076.23562 | AU34: 0.2 | AV34: -3069.83562 | BA34: =$D$19 -> Absenteeism (sick leave) | BB34: =$AJ$19 -> 0.4 | BC34: =BB34*H28 -> 0.36 | BD34: =BC34*H28 -> 0.324 | BE34: =BD34*H28 -> 0.2916 | BF34: =BE34*H28 -> 0.26244 | BH34: =$D$19 -> Absenteeism (sick leave) | BI34: =BI23 -> 94968 | BJ34: =BJ23/(1+$E$17)^$BQ$33 -> 91756.52174 | BK34: =BK23/(1+$E$17)^$BR$33 -> 88653.64419 | BL34: =BL23/(1+$E$17)^$BS$33 -> 85655.69487 | BM34: =BM23/(1+$E$17)^$BT$33 -> 82759.12548 | BO34: =$D$19 -> Absenteeism (sick leave) | BP34: =BP23 -> 56980.8 | BQ34: =BQ23/(1+$E$17)^$BQ$33 -> 73405.21739 | BR34: =BR23/(1+$E$17)^$BR$33 -> 79788.27977 | BS34: =BS23/(1+$E$17)^$BS$33 -> 77090.12538 | BT34: =BT23/(1+$E$17)^$BT$33 -> 74483.21293 | BW34: 0.8 | BX34: -90050.63562 | BY34: -87050.63562 | BZ34: -84050.63562 | CA34: -78050.63562 | CK34: =CE21 -> 158.28 | CM34: 0 | CN34: 0 | CO34: 4265.5 | CP34: 8531 | CQ34: 17062 | CS34: 0 | CT34: 0 | CU34: 4265.5 | CV34: 8531 | CW34: 17062 | CY34: 0 | CZ34: 0 | DA34: 4265.5 | DB34: 8531 | DC34: 17062 | DF34: 0.8 | DG34: -1013023.436 | DH34: -1010023.436 | DI34: -1007023.436 | DJ34: -1001023.436 | DM34: 0 | DN34: -22509.39402 | DO34: -19509.39402 | DP34: -16509.39402 | DQ34: -10509.39402 | DS34: 0 | DT34: -22509.39402 | DU34: -19509.39402 | DV34: -16509.39402 | DW34: -10509.39402 | DY34: 0 | DZ34: -22509.39402 | EA34: -19509.39402 | EB34: -16509.39402 | EC34: -10509.39402 | EF34: 0.8 | EG34: -88036.03776 | EH34: -83371.03776 | EI34: -78706.03776 | EJ34: -69376.03776 | EL34: Reduction in turnover | EM34: 0 | EN34: -8433.1584 | EO34: -3768.1584 | EP34: 896.8416 | EQ34: 10226.8416 | ES34: 0 | ET34: -8433.1584 | EU34: -3768.1584 | EV34: 896.8416 | EW34: 10226.8416 | EY34: 0 | EZ34: -8433.1584 | FA34: -3768.1584 | FB34: 896.8416 | FC34: 10226.8416
AO35: 10 | AP35: -3069.83562 | AR35: 250 | AS35: -44076.23562 | AU35: 0.25 | AV35: -7818.23562 | BA35: =$D$23 -> Productivity | BB35: =$AJ$24 -> 0 | BC35: =BB35*H29 -> 0 | BD35: =BC35*H29 -> 0 | BE35: =BD35*H29 -> 0 | BF35: =BE35*H29 -> 0 | BH35: =$D$23 -> Productivity | BI35: 1201200 | BJ35: 1160579.71 | BK35: 1121333.053 | BL35: 1083413.578 | BM35: 1046776.404 | BO35: =$D$23 -> Productivity | BP35: =BP24 -> 1201200 | BQ35: 1161740.29 | BR35: 1122454.386 | BS35: 1084496.992 | BT35: 1047823.18 | BW35: 0.9 | BX35: -99547.43562 | BY35: -96547.43562 | BZ35: -93547.43562 | CA35: -87547.43562 | CM35: 0.1 | CN35: -4510.98 | CO35: -245.48 | CP35: 4020.02 | CQ35: 12551.02 | CS35: 0.1 | CT35: -9021.96 | CU35: -4756.46 | CV35: -490.96 | CW35: 8040.04 | CY35: 0.1 | CZ35: -18043.92 | DA35: -13778.42 | DB35: -9512.92 | DC35: -981.92 | DF35: 0.9 | DG35: -1133143.436 | DH35: -1130143.436 | DI35: -1127143.436 | DJ35: -1121143.436 | DL35: =DG21 -> 40040 | DM35: 0.1 | DN35: -82569.39402 | DO35: -79569.39402 | DP35: -76569.39402 | DQ35: -70569.39402 | DS35: 0.1 | DT35: -112599.394 | DU35: -109599.394 | DV35: -106599.394 | DW35: -100599.394 | DY35: 0.1 | DZ35: -142629.394 | EA35: -139629.394 | EB35: -136629.394 | EC35: -130629.394 | EF35: 0.9 | EG35: -94292.14248 | EH35: -89627.14248 | EI35: -84962.14248 | EJ35: -75632.14248 | EK35: =EG21 -> 15333.59 | EM35: 0.1 | EN35: -11561.21076 | EO35: -6896.21076 | EP35: -2231.21076 | EQ35: 7098.78924 | ES35: 0.1 | ET35: -14689.26312 | EU35: -10024.26312 | EV35: -5359.26312 | EW35: 3970.73688 | EY35: 0.1 | EZ35: -20945.36784 | FA35: -16280.36784 | FB35: -11615.36784 | FC35: -2285.36784
AO36: 12 | AP36: -6868.55562 | AR36: 300 | AS36: -56076.23562 | AU36: 0.3 | AV36: -12566.63562 | BA36: =$D$27 -> Staff turnover | BB36: =$AJ$28 -> 0.225 | BC36: =BB36*H30 -> 0.2025 | BD36: =BC36*H30 -> 0.18225 | BE36: =BD36*H30 -> 0.164025 | BF36: =BE36*H30 -> 0.1476225 | BH36: =$D$27 -> Staff turnover | BI36: 62561.0472 | BJ36: 60445.45623 | BK36: 58401.40699 | BL36: 56426.48018 | BM36: 54518.33834 | BO36: =$D$27 -> Staff turnover | BP36: 48484.81158 | BQ36: 49867.50139 | BR36: 48181.16076 | BS36: 46551.84615 | BT36: 44977.62913 | BW36: 1 | BX36: -109044.2356 | BY36: -106044.2356 | BZ36: -103044.2356 | CA36: -97044.23562 | CM36: 0.2 | CN36: -9021.96 | CO36: -4756.46 | CP36: -490.96 | CQ36: 8040.04 | CS36: 0.2 | CT36: -18043.92 | CU36: -13778.42 | CV36: -9512.92 | CW36: -981.92 | CY36: 0.2 | CZ36: -36087.84 | DA36: -31822.34 | DB36: -27556.84 | DC36: -19025.84 | DF36: 1 | DG36: -1253263.436 | DH36: -1250263.436 | DI36: -1247263.436 | DJ36: -1241263.436 | DM36: 0.2 | DN36: -142629.394 | DO36: -139629.394 | DP36: -136629.394 | DQ36: -130629.394 | DS36: 0.2 | DT36: -202689.394 | DU36: -199689.394 | DV36: -196689.394 | DW36: -190689.394 | DY36: 0.2 | DZ36: -262749.394 | EA36: -259749.394 | EB36: -256749.394 | EC36: -250749.394 | EF36: 1 | EG36: -100548.2472 | EH36: -95883.2472 | EI36: -91218.2472 | EJ36: -81888.2472 | EM36: 0.2 | EN36: -14689.26312 | EO36: -10024.26312 | EP36: -5359.26312 | EQ36: 3970.73688 | ES36: 0.2 | ET36: -20945.36784 | EU36: -16280.36784 | EV36: -11615.36784 | EW36: -2285.36784 | EY36: 0.2 | EZ36: -33457.57728 | FA36: -28792.57728 | FB36: -24127.57728 | FC36: -14797.57728
AI37: Percentage of staff affected | AJ37: =IF('Base case'!$E$126=1,(Inputs!AK37/100),Inputs!E36) -> 0 | AK37: 0 | AL37: =AJ37*100 -> 0 | AO37: 14 | AP37: -10667.27562 | AR37: 350 | AS37: -68076.23562 | AU37: 0.35 | AV37: -17315.03562 | BA37: =$D$31 -> 0 | BB37: =$AJ$33 -> 0 | BC37: =BB37*H31 -> 0 | BD37: =BC37*H31 -> 0 | BE37: =BD37*H31 -> 0 | BF37: =BE37*H31 -> 0 | BH37: =$D$31 -> 0 | BI37: 0 | BJ37: 0 | BK37: 0 | BL37: 0 | BM37: 0 | BO37: =$D$31 -> 0 | BP37: 0 | BQ37: 0 | BR37: 0 | BS37: 0 | BT37: 0 | CM37: 0.3 | CN37: -13532.94 | CO37: -9267.44 | CP37: -5001.94 | CQ37: 3529.06 | CS37: 0.3 | CT37: -27065.88 | CU37: -22800.38 | CV37: -18534.88 | CW37: -10003.88 | CY37: 0.3 | CZ37: -54131.76 | DA37: -49866.26 | DB37: -45600.76 | DC37: -37069.76 | DM37: 0.3 | DN37: -202689.394 | DO37: -199689.394 | DP37: -196689.394 | DQ37: -190689.394 | DS37: 0.3 | DT37: -292779.394 | DU37: -289779.394 | DV37: -286779.394 | DW37: -280779.394 | DY37: 0.3 | DZ37: -382869.394 | EA37: -379869.394 | EB37: -376869.394 | EC37: -370869.394 | EM37: 0.3 | EN37: -17817.31548 | EO37: -13152.31548 | EP37: -8487.31548 | EQ37: 842.68452 | ES37: 0.3 | ET37: -27201.47256 | EU37: -22536.47256 | EV37: -17871.47256 | EW37: -8541.47256 | EY37: 0.3 | EZ37: -45969.78672 | FA37: -41304.78672 | FB37: -36639.78672 | FC37: -27309.78672
AI38: Reduction in societal costs | AJ38: =IF('Base case'!$E$126=1,(Inputs!AK38/100),Inputs!H25) -> 0 | AK38: 0 | AL38: =AJ38*100 -> 0 | AO38: 16 | AP38: -14465.99562 | AR38: 400 | AS38: -80076.23562 | AU38: 0.4 | AV38: -22063.43562 | BA38: =$D$35 -> 0 | BB38: =$AJ$38 -> 0 | BC38: =BB38*H32 -> 0 | BD38: =BC38*H32 -> 0 | BE38: =BD38*H32 -> 0 | BF38: =BE38*H32 -> 0 | BH38: =$D$35 -> 0 | BI38: 0 | BJ38: 0 | BK38: 0 | BL38: 0 | BM38: 0 | BO38: =$D$35 -> 0 | BP38: 0 | BQ38: 0 | BR38: 0 | BS38: 0 | BT38: 0 | CM38: 0.4 | CN38: -18043.92 | CO38: -13778.42 | CP38: -9512.92 | CQ38: -981.92 | CS38: 0.4 | CT38: -36087.84 | CU38: -31822.34 | CV38: -27556.84 | CW38: -19025.84 | CY38: 0.4 | CZ38: -72175.68 | DA38: -67910.18 | DB38: -63644.68 | DC38: -55113.68 | DM38: 0.4 | DN38: -262749.394 | DO38: -259749.394 | DP38: -256749.394 | DQ38: -250749.394 | DS38: 0.4 | DT38: -382869.394 | DU38: -379869.394 | DV38: -376869.394 | DW38: -370869.394 | DY38: 0.4 | DZ38: -502989.394 | EA38: -499989.394 | EB38: -496989.394 | EC38: -490989.394 | EM38: 0.4 | EN38: -20945.36784 | EO38: -16280.36784 | EP38: -11615.36784 | EQ38: -2285.36784 | ES38: 0.4 | ET38: -33457.57728 | EU38: -28792.57728 | EV38: -24127.57728 | EW38: -14797.57728 | EY38: 0.4 | EZ38: -58481.99616 | FA38: -53816.99616 | FB38: -49151.99616 | FC38: -39821.99616
AI39: Cost per person affected | AJ39: =IF('Base case'!$E$126=1,Inputs!AK39,Inputs!E37) -> 0 | AK39: 0 | AO39: 18 | AP39: -18264.71562 | AR39: 450 | AS39: -92076.23562 | AU39: 0.45 | AV39: -26811.83562 | BH39: Intervention cost | BI39: 0 | BJ39: 0 | BK39: 0 | BL39: 0 | BM39: 0 | BO39: Intervention cost | BP39: =BP28 -> 30000 | BQ39: 21739.13043 | BR39: 21003.99076 | BS39: 20293.71088 | BT39: 19607.45012 | CM39: 0.5 | CN39: -22554.9 | CO39: -18289.4 | CP39: -14023.9 | CQ39: -5492.9 | CS39: 0.5 | CT39: -45109.8 | CU39: -40844.3 | CV39: -36578.8 | CW39: -28047.8 | CY39: 0.5 | CZ39: -90219.6 | DA39: -85954.1 | DB39: -81688.6 | DC39: -73157.6 | DM39: 0.5 | DN39: -322809.394 | DO39: -319809.394 | DP39: -316809.394 | DQ39: -310809.394 | DS39: 0.5 | DT39: -472959.394 | DU39: -469959.394 | DV39: -466959.394 | DW39: -460959.394 | DY39: 0.5 | DZ39: -623109.394 | EA39: -620109.394 | EB39: -617109.394 | EC39: -611109.394 | EM39: 0.5 | EN39: -24073.4202 | EO39: -19408.4202 | EP39: -14743.4202 | EQ39: -5413.4202 | ES39: 0.5 | ET39: -39713.682 | EU39: -35048.682 | EV39: -30383.682 | EW39: -21053.682 | EY39: 0.5 | EZ39: -70994.2056 | FA39: -66329.2056 | FB39: -61664.2056 | FC39: -52334.2056
AO40: 20 | AP40: -22063.43562 | AR40: 500 | AS40: -104076.2356 | AU40: 0.5 | AV40: -31560.23562 | BA40: LIVE | BH40: Total | BI40: 1358729.047 | BJ40: =SUM(BJ34:BJ39) -> 1312781.688 | BK40: =SUM(BK34:BK39) -> 1268388.104 | BL40: =SUM(BL34:BL39) -> 1225495.753 | BM40: =SUM(BM34:BM39) -> 1184053.868 | BO40: Total | BP40: 1336665.612 | BQ40: =SUM(BQ34:BQ39) -> 1306752.139 | BR40: =SUM(BR34:BR39) -> 1271427.818 | BS40: 1228432.674 | BT40: 1186891.473 | CM40: 0.6 | CN40: -27065.88 | CO40: -22800.38 | CP40: -18534.88 | CQ40: -10003.88 | CS40: 0.6 | CT40: -54131.76 | CU40: -49866.26 | CV40: -45600.76 | CW40: -37069.76 | CY40: 0.6 | CZ40: -108263.52 | DA40: -103998.02 | DB40: -99732.52 | DC40: -91201.52 | DM40: 0.6 | DN40: -382869.394 | DO40: -379869.394 | DP40: -376869.394 | DQ40: -370869.394 | DS40: 0.6 | DT40: -563049.394 | DU40: -560049.394 | DV40: -557049.394 | DW40: -551049.394 | DY40: 0.6 | DZ40: -743229.394 | EA40: -740229.394 | EB40: -737229.394 | EC40: -731229.394 | EM40: 0.6 | EN40: -27201.47256 | EO40: -22536.47256 | EP40: -17871.47256 | EQ40: -8541.47256 | ES40: 0.6 | ET40: -45969.78672 | EU40: -41304.78672 | EV40: -36639.78672 | EW40: -27309.78672 | EY40: 0.6 | EZ40: -83506.41504 | FA40: -78841.41504 | FB40: -74176.41504 | FC40: -64846.41504 | FF40: Intervention cost | FG40: Reduction in turnover required to be cost-saving (%)
AO41: =AJ17 -> 20 | AP41: =AP29 -> -22063.43562 | AR41: =AJ18 -> 158.28 | AS41: =AS29 -> -22063.43562 | AU41: =AJ19 -> 0.4 | AV41: =AV29 -> -22063.43562 | CM41: 0.7 | CN41: -31576.86 | CO41: -27311.36 | CP41: -23045.86 | CQ41: -14514.86 | CS41: 0.7 | CT41: -63153.72 | CU41: -58888.22 | CV41: -54622.72 | CW41: -46091.72 | CY41: 0.7 | CZ41: -126307.44 | DA41: -122041.94 | DB41: -117776.44 | DC41: -109245.44 | DM41: 0.7 | DN41: -442929.394 | DO41: -439929.394 | DP41: -436929.394 | DQ41: -430929.394 | DS41: 0.7 | DT41: -653139.394 | DU41: -650139.394 | DV41: -647139.394 | DW41: -641139.394 | DY41: 0.7 | DZ41: -863349.394 | EA41: -860349.394 | EB41: -857349.394 | EC41: -851349.394 | EM41: 0.7 | EN41: -30329.52492 | EO41: -25664.52492 | EP41: -20999.52492 | EQ41: -11669.52492 | ES41: 0.7 | ET41: -52225.89144 | EU41: -47560.89144 | EV41: -42895.89144 | EW41: -33565.89144 | EY41: 0.7 | EZ41: -96018.62448 | FA41: -91353.62448 | FB41: -86688.62448 | FC41: -77358.62448
BB42: Year 1 | BC42: Year 2 | BD42: Year 3 | BE42: Year 4 | BF42: Year 5 | CM42: 0.8 | CN42: -36087.84 | CO42: -31822.34 | CP42: -27556.84 | CQ42: -19025.84 | CS42: 0.8 | CT42: -72175.68 | CU42: -67910.18 | CV42: -63644.68 | CW42: -55113.68 | CY42: 0.8 | CZ42: -144351.36 | DA42: -140085.86 | DB42: -135820.36 | DC42: -127289.36 | DM42: 0.8 | DN42: -502989.394 | DO42: -499989.394 | DP42: -496989.394 | DQ42: -490989.394 | DS42: 0.8 | DT42: -743229.394 | DU42: -740229.394 | DV42: -737229.394 | DW42: -731229.394 | DY42: 0.8 | DZ42: -983469.394 | EA42: -980469.394 | EB42: -977469.394 | EC42: -971469.394 | EM42: 0.8 | EN42: -33457.57728 | EO42: -28792.57728 | EP42: -24127.57728 | EQ42: -14797.57728 | ES42: 0.8 | ET42: -58481.99616 | EU42: -53816.99616 | EV42: -49151.99616 | EW42: -39821.99616 | EY42: 0.8 | EZ42: -108530.8339 | FA42: -103865.8339 | FB42: -99200.83392 | FC42: -89870.83392 | FF42: 0 | FG42: Always cost saving
AO43: Productivity | BI43: Cumulative discounted | BP43: Cumulative discounted | CM43: 0.9 | CN43: -40598.82 | CO43: -36333.32 | CP43: -32067.82 | CQ43: -23536.82 | CS43: 0.9 | CT43: -81197.64 | CU43: -76932.14 | CV43: -72666.64 | CW43: -64135.64 | CY43: 0.9 | CZ43: -162395.28 | DA43: -158129.78 | DB43: -153864.28 | DC43: -145333.28 | DM43: 0.9 | DN43: -563049.394 | DO43: -560049.394 | DP43: -557049.394 | DQ43: -551049.394 | DS43: 0.9 | DT43: -833319.394 | DU43: -830319.394 | DV43: -827319.394 | DW43: -821319.394 | DY43: 0.9 | DZ43: -1103589.394 | EA43: -1100589.394 | EB43: -1097589.394 | EC43: -1091589.394 | EM43: 0.9 | EN43: -36585.62964 | EO43: -31920.62964 | EP43: -27255.62964 | EQ43: -17925.62964 | ES43: 0.9 | ET43: -64738.10088 | EU43: -60073.10088 | EV43: -55408.10088 | EW43: -46078.10088 | EY43: 0.9 | EZ43: -121043.0434 | FA43: -116378.0434 | FB43: -111713.0434 | FC43: -102383.0434 | FF43: 200 | FG43: Always cost saving
J44: Calcs | AO44: % affected | AP44: ='Base case'!G19 -> -22063.43562 | AR44: Value of emp | AS44: ='Base case'!G19 -> -22063.43562 | AU44: Increase in prod | AV44: ='Base case'!G19 -> -22063.43562 | BB44: Difference from baseline in year 1 | BC44: Difference from baseline in year 2 | BD44: Difference from baseline in year 3 | BE44: Difference from baseline in year 4 | BF44: Difference from baseline in year 5 | BI44: Year 1 | BJ44: Year 2 | BK44: Year 3 | BL44: Year 4 | BM44: Year 5 | BP44: Year 1 | BQ44: Year 2 | BR44: Year 3 | BS44: Year 4 | BT44: Year 5 | CM44: 1 | CN44: -45109.8 | CO44: -40844.3 | CP44: -36578.8 | CQ44: -28047.8 | CS44: 1 | CT44: -90219.6 | CU44: -85954.1 | CV44: -81688.6 | CW44: -73157.6 | CY44: 1 | CZ44: -180439.2 | DA44: -176173.7 | DB44: -171908.2 | DC44: -163377.2 | DM44: 1 | DN44: -623109.394 | DO44: -620109.394 | DP44: -617109.394 | DQ44: -611109.394 | DS44: 1 | DT44: -923409.394 | DU44: -920409.394 | DV44: -917409.394 | DW44: -911409.394 | DY44: 1 | DZ44: -1223709.394 | EA44: -1220709.394 | EB44: -1217709.394 | EC44: -1211709.394 | EM44: 1 | EN44: -39713.682 | EO44: -35048.682 | EP44: -30383.682 | EQ44: -21053.682 | ES44: 1 | ET44: -70994.2056 | EU44: -66329.2056 | EV44: -61664.2056 | EW44: -52334.2056 | EY44: 1 | EZ44: -133555.2528 | FA44: -128890.2528 | FB44: -124225.2528 | FC44: -114895.2528 | FF44: 400 | FG44: 0.49
J45: year 1 | K45: year 2 | AO45: 0 | AP45: -22063.43562 | AR45: 0 | AS45: -22063.43562 | AU45: 0 | AV45: -22063.43562 | BH45: =$D$19 -> Absenteeism (sick leave) | BI45: =BI34 -> 94968 | BJ45: =BI45+BJ34 -> 186724.5217 | BK45: 275378.1659 | BL45: 361033.8608 | BM45: 443792.9863 | BO45: =$D$19 -> Absenteeism (sick leave) | BP45: =BP34 -> 56980.8 | BQ45: =BP45+BQ34 -> 130386.0174 | BR45: =BQ45+BR34 -> 210174.2972 | BS45: 287264.4225 | BT45: 361747.6355 | FF45: 600 | FG45: Cost-saving cannot be achieved
I46: Baseline | J46: after | K46: after | AO46: 0.1 | AP46: -142183.4356 | AR46: 5000 | AS46: -6006022063 | AU46: 0.001 | AV46: -23264.63562 | BA46: =$D$19 -> Absenteeism (sick leave) | BB46: =CHOOSE($D$136,BB22,BB34,AJ19) -> 0.4 | BC46: =CHOOSE($D$136,BC22,BC34,I21) -> 0.2 | BD46: 0.1 | BE46: 0.1 | BF46: 0.1 | BH46: =$D$23 -> Productivity | BI46: 1201200 | BJ46: 2361779.71 | BK46: 3483112.763 | BL46: 4566526.341 | BM46: 5613302.745 | BO46: =$D$23 -> Productivity | BP46: =BP35 -> 1201200 | BQ46: =BP46+BQ35 -> 2362940.29 | BR46: =BQ46+BR35 -> 3485394.676 | BS46: 4569891.668 | BT46: 5617714.848 | CK46: =CF21 -> 316.56 | CM46: 0 | CN46: 0 | CO46: 4265.5 | CP46: 8531 | CQ46: 17062 | CS46: 0 | CT46: 0 | CU46: 4265.5 | CV46: 8531 | CW46: 17062 | CY46: 0 | CZ46: 0 | DA46: 4265.5 | DB46: 8531 | DC46: 17062 | DM46: 0 | DN46: -22509.39402 | DO46: -19509.39402 | DP46: -16509.39402 | DQ46: -10509.39402 | DS46: 0 | DT46: -22509.39402 | DU46: -19509.39402 | DV46: -16509.39402 | DW46: -10509.39402 | DY46: 0 | DZ46: -22509.39402 | EA46: -19509.39402 | EB46: -16509.39402 | EC46: -10509.39402 | EL46: Reduction in turnover | EM46: 0 | EN46: -8433.1584 | EO46: -3768.1584 | EP46: 896.8416 | EQ46: 10226.8416 | ES46: 0 | ET46: -8433.1584 | EU46: -3768.1584 | EV46: 896.8416 | EW46: 10226.8416 | EY46: 0 | EZ46: -8433.1584 | FA46: -3768.1584 | FB46: 896.8416 | FC46: 10226.8416
I47: =E14*E20*E21 -> 94968 | J47: =I47*(1-H21) -> 56980.8 | K47: =J47*(1-I21) -> 45584.64 | AO47: 0.2 | AP47: -262303.4356 | AR47: 10000 | AS47: -1.201202206e+10 | AU47: 0.002 | AV47: -24465.83562 | BA47: =$D$23 -> Productivity | BB47: =CHOOSE($D$136,BB23,BB35,AJ24) -> 0 | BC47: 0.001 | BD47: 0.001 | BE47: 0.001 | BF47: 0.001 | BH47: =$D$27 -> Staff turnover | BI47: 62561.0472 | BJ47: 123006.5034 | BK47: 181407.9104 | BL47: 237834.3906 | BM47: 292352.7289 | BO47: =$D$27 -> Staff turnover | BP47: 48484.81158 | BQ47: =BP47+BQ36 -> 98352.31297 | BR47: 146533.4737 | BS47: 193085.3199 | BT47: 238062.949 | CM47: 0.1 | CN47: -9021.96 | CO47: -4756.46 | CP47: -490.96 | CQ47: 8040.04 | CS47: 0.1 | CT47: -18043.92 | CU47: -13778.42 | CV47: -9512.92 | CW47: -981.92 | CY47: 0.1 | CZ47: -36087.84 | DA47: -31822.34 | DB47: -27556.84 | DC47: -19025.84 | DL47: =DH21 -> 80080 | DM47: 0.1 | DN47: -142629.394 | DO47: -139629.394 | DP47: -136629.394 | DQ47: -130629.394 | DS47: 0.1 | DT47: -202689.394 | DU47: -199689.394 | DV47: -196689.394 | DW47: -190689.394 | DY47: 0.1 | DZ47: -262749.394 | EA47: -259749.394 | EB47: -256749.394 | EC47: -250749.394 | EK47: =EH21 -> 30667.18 | EM47: 0.1 | EN47: -14689.26312 | EO47: -10024.26312 | EP47: -5359.26312 | EQ47: 3970.73688 | ES47: 0.1 | ET47: -20945.36784 | EU47: -16280.36784 | EV47: -11615.36784 | EW47: -2285.36784 | EY47: 0.1 | EZ47: -33457.57728 | FA47: -28792.57728 | FB47: -24127.57728 | FC47: -14797.57728
AO48: 0.3 | AP48: -382423.4356 | AR48: 15000 | AS48: -1.801802206e+10 | AU48: 0.003 | AV48: -25667.03562 | BA48: =$D$27 -> Staff turnover | BB48: =CHOOSE($D$136,BB24,BB36,AJ28) -> 0.225 | BC48: 0.175 | BD48: 0.175 | BE48: 0.175 | BF48: 0.175 | BH48: =$D$31 -> 0 | BI48: 0 | BJ48: 0 | BK48: 0 | BL48: 0 | BM48: 0 | BO48: =$D$31 -> 0 | BP48: 0 | BQ48: 0 | BR48: 0 | BS48: 0 | BT48: 0 | CM48: 0.2 | CN48: -18043.92 | CO48: -13778.42 | CP48: -9512.92 | CQ48: -981.92 | CS48: 0.2 | CT48: -36087.84 | CU48: -31822.34 | CV48: -27556.84 | CW48: -19025.84 | CY48: 0.2 | CZ48: -72175.68 | DA48: -67910.18 | DB48: -63644.68 | DC48: -55113.68 | DM48: 0.2 | DN48: -262749.394 | DO48: -259749.394 | DP48: -256749.394 | DQ48: -250749.394 | DS48: 0.2 | DT48: -382869.394 | DU48: -379869.394 | DV48: -376869.394 | DW48: -370869.394 | DY48: 0.2 | DZ48: -502989.394 | EA48: -499989.394 | EB48: -496989.394 | EC48: -490989.394 | EM48: 0.2 | EN48: -20945.36784 | EO48: -16280.36784 | EP48: -11615.36784 | EQ48: -2285.36784 | ES48: 0.2 | ET48: -33457.57728 | EU48: -28792.57728 | EV48: -24127.57728 | EW48: -14797.57728 | EY48: 0.2 | EZ48: -58481.99616 | FA48: -53816.99616 | FB48: -49151.99616 | FC48: -39821.99616
AO49: 0.4 | AP49: -502543.4356 | AR49: 20000 | AS49: -2.402402206e+10 | AU49: 0.004 | AV49: -26868.23562 | BA49: =$D$31 -> 0 | BB49: =CHOOSE($D$136,BB25,BB37,H24) -> 0 | BC49: 0 | BD49: 0 | BE49: 0 | BF49: 0 | BH49: =$D$35 -> 0 | BI49: 0 | BJ49: 0 | BK49: 0 | BL49: 0 | BM49: 0 | BO49: =$D$35 -> 0 | BP49: 0 | BQ49: 0 | BR49: 0 | BS49: 0 | BT49: 0 | CM49: 0.3 | CN49: -27065.88 | CO49: -22800.38 | CP49: -18534.88 | CQ49: -10003.88 | CS49: 0.3 | CT49: -54131.76 | CU49: -49866.26 | CV49: -45600.76 | CW49: -37069.76 | CY49: 0.3 | CZ49: -108263.52 | DA49: -103998.02 | DB49: -99732.52 | DC49: -91201.52 | DM49: 0.3 | DN49: -382869.394 | DO49: -379869.394 | DP49: -376869.394 | DQ49: -370869.394 | DS49: 0.3 | DT49: -563049.394 | DU49: -560049.394 | DV49: -557049.394 | DW49: -551049.394 | DY49: 0.3 | DZ49: -743229.394 | EA49: -740229.394 | EB49: -737229.394 | EC49: -731229.394 | EM49: 0.3 | EN49: -27201.47256 | EO49: -22536.47256 | EP49: -17871.47256 | EQ49: -8541.47256 | ES49: 0.3 | ET49: -45969.78672 | EU49: -41304.78672 | EV49: -36639.78672 | EW49: -27309.78672 | EY49: 0.3 | EZ49: -83506.41504 | FA49: -78841.41504 | FB49: -74176.41504 | FC49: -64846.41504
AO50: 0.5 | AP50: -622663.4356 | AR50: 25000 | AS50: -3.003002206e+10 | AU50: 0.005 | AV50: -28069.43562 | BA50: =$D$35 -> 0 | BB50: =CHOOSE($D$136,BB26,BB38,H25) -> 0 | BC50: 0 | BD50: 0 | BE50: 0 | BF50: 0 | BH50: Intervention cost | BI50: 0 | BJ50: 0 | BK50: 0 | BL50: 0 | BM50: 0 | BO50: Intervention cost | BP50: =BP39 -> 30000 | BQ50: =BP50+BQ39 -> 51739.13043 | BR50: 72743.12119 | BS50: 93036.83207 | BT50: 112644.2822 | CM50: 0.4 | CN50: -36087.84 | CO50: -31822.34 | CP50: -27556.84 | CQ50: -19025.84 | CS50: 0.4 | CT50: -72175.68 | CU50: -67910.18 | CV50: -63644.68 | CW50: -55113.68 | CY50: 0.4 | CZ50: -144351.36 | DA50: -140085.86 | DB50: -135820.36 | DC50: -127289.36 | DM50: 0.4 | DN50: -502989.394 | DO50: -499989.394 | DP50: -496989.394 | DQ50: -490989.394 | DS50: 0.4 | DT50: -743229.394 | DU50: -740229.394 | DV50: -737229.394 | DW50: -731229.394 | DY50: 0.4 | DZ50: -983469.394 | EA50: -980469.394 | EB50: -977469.394 | EC50: -971469.394 | EM50: 0.4 | EN50: -33457.57728 | EO50: -28792.57728 | EP50: -24127.57728 | EQ50: -14797.57728 | ES50: 0.4 | ET50: -58481.99616 | EU50: -53816.99616 | EV50: -49151.99616 | EW50: -39821.99616 | EY50: 0.4 | EZ50: -108530.8339 | FA50: -103865.8339 | FB50: -99200.83392 | FC50: -89870.83392
AO51: 0.6 | AP51: -742783.4356 | AR51: 30000 | AS51: -3.603602206e+10 | AU51: 0.006 | AV51: -29270.63562 | BH51: Total cumulative | BI51: 1358729.047 | BJ51: 2671510.735 | BK51: 3939898.84 | BL51: 5165394.593 | BM51: 6349448.461 | BO51: Total cumulative | BP51: =BP40 -> 1336665.612 | BQ51: =BP51+BQ40 -> 2643417.751 | BR51: =BQ51+BR40 -> 3914845.568 | BS51: =BR51+BS40 -> 5143278.242 | BT51: =BS51+BT40 -> 6330169.715 | CM51: 0.5 | CN51: -45109.8 | CO51: -40844.3 | CP51: -36578.8 | CQ51: -28047.8 | CS51: 0.5 | CT51: -90219.6 | CU51: -85954.1 | CV51: -81688.6 | CW51: -73157.6 | CY51: 0.5 | CZ51: -180439.2 | DA51: -176173.7 | DB51: -171908.2 | DC51: -163377.2 | DM51: 0.5 | DN51: -623109.394 | DO51: -620109.394 | DP51: -617109.394 | DQ51: -611109.394 | DS51: 0.5 | DT51: -923409.394 | DU51: -920409.394 | DV51: -917409.394 | DW51: -911409.394 | DY51: 0.5 | DZ51: -1223709.394 | EA51: -1220709.394 | EB51: -1217709.394 | EC51: -1211709.394 | EM51: 0.5 | EN51: -39713.682 | EO51: -35048.682 | EP51: -30383.682 | EQ51: -21053.682 | ES51: 0.5 | ET51: -70994.2056 | EU51: -66329.2056 | EV51: -61664.2056 | EW51: -52334.2056 | EY51: 0.5 | EZ51: -133555.2528 | FA51: -128890.2528 | FB51: -124225.2528 | FC51: -114895.2528
AO52: 0.7 | AP52: -862903.4356 | AR52: 35000 | AS52: -4.204202206e+10 | AU52: 0.007 | AV52: -30471.83562 | CM52: 0.6 | CN52: -54131.76 | CO52: -49866.26 | CP52: -45600.76 | CQ52: -37069.76 | CS52: 0.6 | CT52: -108263.52 | CU52: -103998.02 | CV52: -99732.52 | CW52: -91201.52 | CY52: 0.6 | CZ52: -216527.04 | DA52: -212261.54 | DB52: -207996.04 | DC52: -199465.04 | DM52: 0.6 | DN52: -743229.394 | DO52: -740229.394 | DP52: -737229.394 | DQ52: -731229.394 | DS52: 0.6 | DT52: -1103589.394 | DU52: -1100589.394 | DV52: -1097589.394 | DW52: -1091589.394 | DY52: 0.6 | DZ52: -1463949.394 | EA52: -1460949.394 | EB52: -1457949.394 | EC52: -1451949.394 | EM52: 0.6 | EN52: -45969.78672 | EO52: -41304.78672 | EP52: -36639.78672 | EQ52: -27309.78672 | ES52: 0.6 | ET52: -83506.41504 | EU52: -78841.41504 | EV52: -74176.41504 | EW52: -64846.41504 | EY52: 0.6 | EZ52: -158579.6717 | FA52: -153914.6717 | FB52: -149249.6717 | FC52: -139919.6717
AO53: 0.8 | AP53: -983023.4356 | AR53: 40000 | AS53: -4.804802206e+10 | AU53: 0.008 | AV53: -31673.03562 | CM53: 0.7 | CN53: -63153.72 | CO53: -58888.22 | CP53: -54622.72 | CQ53: -46091.72 | CS53: 0.7 | CT53: -126307.44 | CU53: -122041.94 | CV53: -117776.44 | CW53: -109245.44 | CY53: 0.7 | CZ53: -252614.88 | DA53: -248349.38 | DB53: -244083.88 | DC53: -235552.88 | DM53: 0.7 | DN53: -863349.394 | DO53: -860349.394 | DP53: -857349.394 | DQ53: -851349.394 | DS53: 0.7 | DT53: -1283769.394 | DU53: -1280769.394 | DV53: -1277769.394 | DW53: -1271769.394 | DY53: 0.7 | DZ53: -1704189.394 | EA53: -1701189.394 | EB53: -1698189.394 | EC53: -1692189.394 | EM53: 0.7 | EN53: -52225.89144 | EO53: -47560.89144 | EP53: -42895.89144 | EQ53: -33565.89144 | ES53: 0.7 | ET53: -96018.62448 | EU53: -91353.62448 | EV53: -86688.62448 | EW53: -77358.62448 | EY53: 0.7 | EZ53: -183604.0906 | FA53: -178939.0906 | FB53: -174274.0906 | FC53: -164944.0906
AO54: 0.9 | AP54: -1103143.436 | AR54: 45000 | AS54: -5.405402206e+10 | AU54: 0.009 | AV54: -32874.23562 | CM54: 0.8 | CN54: -72175.68 | CO54: -67910.18 | CP54: -63644.68 | CQ54: -55113.68 | CS54: 0.8 | CT54: -144351.36 | CU54: -140085.86 | CV54: -135820.36 | CW54: -127289.36 | CY54: 0.8 | CZ54: -288702.72 | DA54: -284437.22 | DB54: -280171.72 | DC54: -271640.72 | DM54: 0.8 | DN54: -983469.394 | DO54: -980469.394 | DP54: -977469.394 | DQ54: -971469.394 | DS54: 0.8 | DT54: -1463949.394 | DU54: -1460949.394 | DV54: -1457949.394 | DW54: -1451949.394 | DY54: 0.8 | DZ54: -1944429.394 | EA54: -1941429.394 | EB54: -1938429.394 | EC54: -1932429.394 | EM54: 0.8 | EN54: -58481.99616 | EO54: -53816.99616 | EP54: -49151.99616 | EQ54: -39821.99616 | ES54: 0.8 | ET54: -108530.8339 | EU54: -103865.8339 | EV54: -99200.83392 | EW54: -89870.83392 | EY54: 0.8 | EZ54: -208628.5094 | FA54: -203963.5094 | FB54: -199298.5094 | FC54: -189968.5094
AO55: 1 | AP55: -1223263.436 | AR55: 50000 | AS55: -6.006002206e+10 | AU55: 0.01 | AV55: -34075.43562 | CM55: 0.9 | CN55: -81197.64 | CO55: -76932.14 | CP55: -72666.64 | CQ55: -64135.64 | CS55: 0.9 | CT55: -162395.28 | CU55: -158129.78 | CV55: -153864.28 | CW55: -145333.28 | CY55: 0.9 | CZ55: -324790.56 | DA55: -320525.06 | DB55: -316259.56 | DC55: -307728.56 | DM55: 0.9 | DN55: -1103589.394 | DO55: -1100589.394 | DP55: -1097589.394 | DQ55: -1091589.394 | DS55: 0.9 | DT55: -1644129.394 | DU55: -1641129.394 | DV55: -1638129.394 | DW55: -1632129.394 | DY55: 0.9 | DZ55: -2184669.394 | EA55: -2181669.394 | EB55: -2178669.394 | EC55: -2172669.394 | EM55: 0.9 | EN55: -64738.10088 | EO55: -60073.10088 | EP55: -55408.10088 | EQ55: -46078.10088 | ES55: 0.9 | ET55: -121043.0434 | EU55: -116378.0434 | EV55: -111713.0434 | EW55: -102383.0434 | EY55: 0.9 | EZ55: -233652.9283 | FA55: -228987.9283 | FB55: -224322.9283 | FC55: -214992.9283
AO56: =AJ22 -> 1 | AP56: =AP44 -> -22063.43562 | AR56: =AJ23 -> 40040 | AS56: =AS44 -> -22063.43562 | AU56: =AJ24 -> 0 | AV56: =AV44 -> -22063.43562 | CM56: 1 | CN56: -90219.6 | CO56: -85954.1 | CP56: -81688.6 | CQ56: -73157.6 | CS56: 1 | CT56: -180439.2 | CU56: -176173.7 | CV56: -171908.2 | CW56: -163377.2 | CY56: 1 | CZ56: -360878.4 | DA56: -356612.9 | DB56: -352347.4 | DC56: -343816.4 | DM56: 1 | DN56: -1223709.394 | DO56: -1220709.394 | DP56: -1217709.394 | DQ56: -1211709.394 | DS56: 1 | DT56: -1824309.394 | DU56: -1821309.394 | DV56: -1818309.394 | DW56: -1812309.394 | DY56: 1 | DZ56: -2424909.394 | EA56: -2421909.394 | EB56: -2418909.394 | EC56: -2412909.394 | EM56: 1 | EN56: -70994.2056 | EO56: -66329.2056 | EP56: -61664.2056 | EQ56: -52334.2056 | ES56: 1 | ET56: -133555.2528 | EU56: -128890.2528 | EV56: -124225.2528 | EW56: -114895.2528 | EY56: 1 | EZ56: -258677.3472 | FA56: -254012.3472 | FB56: -249347.3472 | FC56: -240017.3472
AO58: Staff turnover
AO59: Anunal rate of turnover | AP59: ='Base case'!G19 -> -22063.43562 | AR59: Cost per case | AS59: ='Base case'!G19 -> -22063.43562 | AU59: Reduction in turnover | AV59: ='Base case'!G19 -> -22063.43562
AO60: 0 | AP60: -7987.2 | AR60: 0 | AS60: -7987.2 | AU60: 0 | AV60: -7987.2 | CM60: Max | CN60: =MAXA(CN22:CQ32,CT22:CW32,CZ22:DC32,CN34:CQ44,CT34:CW44,CZ34:DC44,CN46:CQ56,CT46:CW56,CZ46:DC56) -> 17062 | CO60: 0 | DM60: Max | DN60: =MAXA(DN22:DQ32,DT22:DW32,DZ22:EC32,DZ34:EC44,DT34:DW44,DN34:DQ44,DN46:DQ56,DT46:DW56,DZ46:EC56) -> -10509.39402 | DO60: 0 | EM60: Max | EN60: =MAXA(EN22:EQ32,ET22:EW32,EZ22:FC32,EZ34:FC44,ET34:EW44,EN34:EQ44,EN46:EQ56,ET46:EW56,EZ46:FC56) -> 10226.8416 | EO60: 0
AO61: 0.05 | AP61: -13162.28663 | AR61: 5000 | AS61: -12577.2 | AU61: 0.05 | AV61: -11115.25236 | CM61: Min | CN61: =MINA(CN22:CQ32,CT22:CW32,CZ22:DC32,CN34:CQ44,CT34:CW44,CZ34:DC44,CN46:CQ56,CT46:CW56,CZ46:DC56) -> -360878.4 | CO61: 0 | DM61: Min | DN61: =MINA(DN22:DQ32,DT22:DW32,DZ22:EC32,DZ34:EC44,DT34:DW44,DN34:DQ44,DN46:DQ56,DT46:DW56,DZ46:EC56) -> -2424909.394 | DO61: 0 | EM61: Min | EN61: =MINA(EN22:EQ32,ET22:EW32,EZ22:FC32,EZ34:FC44,ET34:EW44,EN34:EQ44,EN46:EQ56,ET46:EW56,EZ46:FC56) -> -258677.3472 | EO61: 0
AO62: 0.1 | AP62: -18337.37325 | AR62: 10000 | AS62: -17167.2 | AU62: 0.1 | AV62: -14243.30472
AO63: 0.15 | AP63: -23512.45988 | AR63: 15000 | AS63: -21757.2 | AU63: 0.15 | AV63: -17371.35708
AO64: 0.2 | AP64: -28687.5465 | AR64: 20000 | AS64: -26347.2 | AU64: 0.2 | AV64: -20499.40944
AO65: 0.25 | AP65: -33862.63313 | AR65: 25000 | AS65: -30937.2 | AU65: 0.25 | AV65: -23627.4618
AO66: 0.3 | AP66: -39037.71975 | AR66: 30000 | AS66: -35527.2 | AU66: 0.3 | AV66: -26755.51416
AO67: 0.35 | AP67: -44212.80638 | AR67: 35000 | AS67: -40117.2 | AU67: 0.35 | AV67: -29883.56652
AO68: 0.4 | AP68: -49387.893 | AR68: 40000 | AS68: -44707.2 | AU68: 0.4 | AV68: -33011.61888
AO69: 0.45 | AP69: -54562.97963 | AR69: 45000 | AS69: -49297.2 | AU69: 0.45 | AV69: -36139.67124
AO70: 0.5 | AP70: -59738.06625 | AR70: 50000 | AS70: -53887.2 | AU70: 0.5 | AV70: -39267.7236
AO71: =AJ27 -> 0.136 | AP71: =AP59 -> -22063.43562 | AR71: =AJ29 -> 15333.59 | AS71: =AS59 -> -22063.43562 | AU71: =AJ28 -> 0.225 | AV71: =AS71 -> -22063.43562
AO73: Healthcare costs
AO74: % affected | AP74: ='Base case'!G19 -> -22063.43562 | AR74: Cost per person | AS74: ='Base case'!G19 -> -22063.43562 | AU74: Reduction in healthcare use | AV74: ='Base case'!G19 -> -22063.43562
AO75: 0 | AP75: -22063.43562 | AR75: 0 | AS75: -22063.43562 | AU75: 0 | AV75: -22063.43562
AO76: 0.05 | AP76: -22063.43562 | AR76: 200 | AS76: -22063.43562 | AU76: 0.1 | AV76: -22063.43562
AO77: 0.1 | AP77: -22063.43562 | AR77: 400 | AS77: -22063.43562 | AU77: 0.2 | AV77: -22063.43562
AO78: 0.15 | AP78: -22063.43562 | AR78: 600 | AS78: -22063.43562 | AU78: 0.3 | AV78: -22063.43562
AO79: 0.2 | AP79: -22063.43562 | AR79: 800 | AS79: -22063.43562 | AU79: 0.4 | AV79: -22063.43562
AO80: 0.25 | AP80: -22063.43562 | AR80: 1000 | AS80: -22063.43562 | AU80: 0.5 | AV80: -22063.43562
AO81: 0.3 | AP81: -22063.43562 | AR81: 1200 | AS81: -22063.43562 | AU81: 0.6 | AV81: -22063.43562
AO82: 0.35 | AP82: -22063.43562 | AR82: 1400 | AS82: -22063.43562 | AU82: 0.7 | AV82: -22063.43562
AO83: 0.4 | AP83: -22063.43562 | AR83: 1600 | AS83: -22063.43562 | AU83: 0.8 | AV83: -22063.43562
AO84: 0.45 | AP84: -22063.43562 | AR84: 1800 | AS84: -22063.43562 | AU84: 0.9 | AV84: -22063.43562
AO85: 0.5 | AP85: -22063.43562 | AR85: 2000 | AS85: -22063.43562 | AU85: 1 | AV85: -22063.43562
AO86: =AJ32 -> 0 | AP86: =AP74 -> -22063.43562 | AR86: =AJ34 -> 0 | AS86: =AS74 -> -22063.43562 | AU86: =AJ33 -> 0 | AV86: =AV74 -> -22063.43562
AO88: Other societal costs
AO89: % affected | AP89: ='Base case'!G19 -> -22063.43562 | AR89: Cost per person | AS89: ='Base case'!G19 -> -22063.43562 | AU89: Reduction in societal costs | AV89: ='Base case'!G19 -> -22063.43562
AO90: 0 | AP90: -22063.43562 | AR90: 0 | AS90: -22063.43562 | AU90: 0 | AV90: -22063.43562
AO91: 0.05 | AP91: -22063.43562 | AR91: 1000 | AS91: -22063.43562 | AU91: 0.05 | AV91: -22063.43562
AO92: 0.1 | AP92: -22063.43562 | AR92: 2000 | AS92: -22063.43562 | AU92: 0.1 | AV92: -22063.43562
AO93: 0.15 | AP93: -22063.43562 | AR93: 3000 | AS93: -22063.43562 | AU93: 0.15 | AV93: -22063.43562
AO94: 0.2 | AP94: -22063.43562 | AR94: 4000 | AS94: -22063.43562 | AU94: 0.2 | AV94: -22063.43562
AO95: 0.25 | AP95: -22063.43562 | AR95: 5000 | AS95: -22063.43562 | AU95: 0.25 | AV95: -22063.43562
AO96: 0.3 | AP96: -22063.43562 | AR96: 6000 | AS96: -22063.43562 | AU96: 0.3 | AV96: -22063.43562
AO97: 0.35 | AP97: -22063.43562 | AR97: 7000 | AS97: -22063.43562 | AU97: 0.35 | AV97: -22063.43562
AO98: 0.4 | AP98: -22063.43562 | AR98: 8000 | AS98: -22063.43562 | AU98: 0.4 | AV98: -22063.43562
AO99: 0.45 | AP99: -22063.43562 | AR99: 9000 | AS99: -22063.43562 | AU99: 0.45 | AV99: -22063.43562
AO100: 0.5 | AP100: -22063.43562 | AR100: 10000 | AS100: -22063.43562 | AU100: 0.5 | AV100: -22063.43562
AO101: =AJ37 -> 0 | AP101: =AP89 -> -22063.43562 | AR101: =AJ39 -> 0 | AS101: =AS89 -> -22063.43562 | AU101: =AJ38 -> 0 | AV101: =AV89 -> -22063.43562
AO103: Difference in effectiveness
AO104: =CONCATENATE("Reduction in ",AL102) -> Reduction in | AP104: ='Base case'!G19 -> -22063.43562 | AR104: =CONCATENATE("Increase in ",AL106) -> Increase in | AS104: ='Base case'!G19 -> -22063.43562 | AU104: =CONCATENATE("Reduction in ",AL110) -> Reduction in | AV104: ='Base case'!G19 -> -22063.43562 | AX104: =CONCATENATE("Reduction in ",AL114) -> Reduction in | AY104: ='Base case'!G19 -> -22063.43562 | BA104: =CONCATENATE("Reduction in ",AL118) -> Reduction in | BB104: ='Base case'!G19 -> -22063.43562
AO105: 0.5 | AP105: -22063.43562 | AR105: 0.5 | AS105: -22063.43562 | AU105: 0.5 | AV105: -22063.43562 | AX105: 0.5 | AY105: -22063.43562 | BA105: 0.5 | BB105: -22063.43562
AO106: 0.6 | AP106: -22063.43562 | AR106: 0.6 | AS106: -22063.43562 | AU106: 0.6 | AV106: -22063.43562 | AX106: 0.6 | AY106: -22063.43562 | BA106: 0.6 | BB106: -22063.43562
AO107: 0.7 | AP107: -22063.43562 | AR107: 0.7 | AS107: -22063.43562 | AU107: 0.7 | AV107: -22063.43562 | AX107: 0.7 | AY107: -22063.43562 | BA107: 0.7 | BB107: -22063.43562
AO108: 0.8 | AP108: -22063.43562 | AR108: 0.8 | AS108: -22063.43562 | AU108: 0.8 | AV108: -22063.43562 | AX108: 0.8 | AY108: -22063.43562 | BA108: 0.8 | BB108: -22063.43562
AO109: 0.9 | AP109: -22063.43562 | AR109: 0.9 | AS109: -22063.43562 | AU109: 0.9 | AV109: -22063.43562 | AX109: 0.9 | AY109: -22063.43562 | BA109: 0.9 | BB109: -22063.43562
AO110: 1 | AP110: -22063.43562 | AR110: 1 | AS110: -22063.43562 | AU110: 1 | AV110: -22063.43562 | AX110: 1 | AY110: -22063.43562 | BA110: 1 | BB110: -22063.43562
AO111: 1.1 | AP111: -22063.43562 | AR111: 1.1 | AS111: -22063.43562 | AU111: 1.1 | AV111: -22063.43562 | AX111: 1.1 | AY111: -22063.43562 | BA111: 1.1 | BB111: -22063.43562
AO112: 1.2 | AP112: -22063.43562 | AR112: 1.2 | AS112: -22063.43562 | AU112: 1.2 | AV112: -22063.43562 | AX112: 1.2 | AY112: -22063.43562 | BA112: 1.2 | BB112: -22063.43562
AO113: 1.3 | AP113: -22063.43562 | AR113: 1.3 | AS113: -22063.43562 | AU113: 1.3 | AV113: -22063.43562 | AX113: 1.3 | AY113: -22063.43562 | BA113: 1.3 | BB113: -22063.43562
AO114: 1.4 | AP114: -22063.43562 | AR114: 1.4 | AS114: -22063.43562 | AU114: 1.4 | AV114: -22063.43562 | AX114: 1.4 | AY114: -22063.43562 | BA114: 1.4 | BB114: -22063.43562
AO115: 1.5 | AP115: -22063.43562 | AR115: 1.5 | AS115: -22063.43562 | AU115: 1.5 | AV115: -22063.43562 | AX115: 1.5 | AY115: -22063.43562 | BA115: 1.5 | BB115: -22063.43562
D116: Include? | AO116: =H28 -> 0.9 | AP116: =AP104 -> -22063.43562 | AR116: =H29 -> 0.9 | AS116: =AS104 -> -22063.43562 | AU116: =H30 -> 0.9 | AV116: =AV104 -> -22063.43562 | AX116: =H31 -> 0.9 | AY116: =AY104 -> -22063.43562 | BA116: =H32 -> 0.9 | BB116: =BB104 -> -22063.43562
D117: Absenteeism | E117: =IF(AbsenceType=1,'Inputs (STSA)'!E117,'Inputs (LTSA)'!E117) -> TRUE | G117: =IF(E117=TRUE,1,0) -> 1
D118: Productivity | E118: =IF(AbsenceType=1,'Inputs (STSA)'!E118,'Inputs (LTSA)'!E118) -> TRUE | G118: =IF(E118=TRUE,1,0) -> 1
D119: Staff turnover | E119: =IF(AbsenceType=1,'Inputs (STSA)'!E119,'Inputs (LTSA)'!E119) -> TRUE | G119: 1
D120: Health care costs | E120: =IF(AbsenceType=1,'Inputs (STSA)'!E120,'Inputs (LTSA)'!E120) -> FALSE | G120: 0
D121: Societal costs | E121: =IF(AbsenceType=1,'Inputs (STSA)'!E121,'Inputs (LTSA)'!E121) -> FALSE | G121: 0
D125: 1 year
D126: 2 years
D127: 3 years
D128: 4 years
D129: 5 years
D130: =IF(AbsenceType=1,'Inputs (STSA)'!D130,'Inputs (LTSA)'!D130) -> 1
D132: Effectiveness method | E132: For IF
D133: =IF($D$130=1,"N/A for one year time horizon",E133) -> N/A for one year time horizon | E133: Same effectiveness each year
D134: =IF($D$130=1,"N/A for one year time horizon",E134) -> N/A for one year time horizon | E134: % difference in effectiveness each year
D135: N/A for one year time horizon | E135: User input effectiveness each year
D136: =IF(AbsenceType=1,'Inputs (STSA)'!D136,'Inputs (LTSA)'!D136) -> 3
D140: Short-term
D141: Long-term
D142: 2
D217: Number of days lost per person (absenteeism)
D219: 16-24 | E219: 0.012
D220: 25-34 | E220: 0.015
D221: 35-49 | E221: 0.02
D222: 50-64 | E222: 0.028
D223: 65+ | E223: 0.023
D225: http://www.ons.gov.uk/ons/dcp171778_412021.pdf
E226: Number employed (000s)
D227: 16-65 | E227: 29894 | F227: =E227/E229 -> 0.9632660953 | G227: =AVERAGE(E219:E222) -> 0.01875
D228: 65+ | E228: 1140 | F228: =E228/E229 -> 0.03673390475 | G228: =E223 -> 0.023
E229: =SUM(E227:E228) -> 31034 | F229: =SUM(F227:F228) -> 1 | G229: =SUMPRODUCT(G227:G228,E227:E228)/SUM(E227:E228) -> 0.0189061191
G230: =253*G229 -> 4.783248131
E233: CPI
D234: 2007 Q1 | E234: 103.7
D235: 2015 Dec | E235: 128.5
E236: =E235/E234 -> 1.239151398
E237: =11625*E236 -> 14405.135
E239: =528*52 -> 27456

Sheet Inputs (STSA)
E7: Short-term sickness absence
D10: Select number of years | G10: Type of sickness absence | AI10: Slider chart | AO10: Sensitivity analysis
AJ11: LIVE | AK11: Spin button
D12: Effectiveness input method | AI12: No of employees | AJ12: =IF('Base case'!$E$126=1,'Inputs (STSA)'!AK12,'Inputs (STSA)'!E14) -> 30 | AK12: 1 | AR12: Scenario analysis - baselien absenteeism
AO13: Cost of int. | AP13: ='Base case'!G19 -> -22063.43562 | AR13: No. of days | AS13: ='Base case'!G19 -> -22063.43562
D14: Number of employees | E14: 30 | AI14: Cost of intervention per person | AJ14: =IF('Base case'!$E$126=1,'Inputs (STSA)'!AK14,'Inputs (STSA)'!H17) -> 200 | AK14: 200 | AO14: 0 | AP14: -22063.43562 | AR14: 4.78 | AS14: -22063.43562 | BA14: Drop down effectiveness options
AO15: 50 | AP15: -22063.43562 | AR15: 7.58 | AS15: -22063.43562 | BH15: Calculations
H16: Year 1 | I16: Year 2 | J16: Year 3 | K16: Year 4 | L16: Year 5 | AL16: Spin button default | AO16: 100 | AP16: -22063.43562 | AR16: 12.5 | AS16: -22063.43562 | BA16: Option 1 - same effectiveness each year
D17: Annual discount rate | E17: 0.035 | G17: Cost of intervention per person | H17: 200 | I17: 150 | J17: 150 | K17: 150 | L17: 150 | AI17: Number of days lost per person | AJ17: =IF('Base case'!$E$126=1,'Inputs (STSA)'!AK17,'Inputs (STSA)'!E20) -> 4.44 | AK17: 4.44 | AO17: 150 | AP17: -22063.43562 | AR17: 14.1 | AS17: -22063.43562 | BH17: Calculations - before intervention | BO17: Calculations - after intervention | BW17: Four way | CC17: Absenteeism | DE17: Productivity | EE17: Staff turnover
AI18: Cost of absenteeism per day | AJ18: =IF('Base case'!$E$126=1,'Inputs (STSA)'!AK18,'Inputs (STSA)'!E21) -> 158.28 | AK18: 158.28 | AO18: 200 | AP18: -22063.43562 | AR18: 16.6 | AS18: -22063.43562 | BB18: Year 1 | BC18: Year 2 | BD18: Year 3 | BE18: Year 4 | BF18: Year 5 | EM18: =EF23 -> 0.068 | ES18: =EG23 -> 0.136 | EY18: =EH23 -> 0.272
D19: Absenteeism (sick leave) | E19: Baseline | H19: Difference from baseline in year 1 | I19: Difference from baseline in year 2 | J19: Difference from baseline in year 3 | K19: Difference from baseline in year 4 | L19: Difference from baseline in year 5 | AI19: Reduction in absenteeism | AJ19: =IF('Base case'!$E$126=1,('Inputs (STSA)'!AK19/100),'Inputs (STSA)'!H21) -> 0.4 | AK19: 40 | AL19: =AJ19*100 -> 40 | AO19: 250 | AP19: -22063.43562 | AR19: 17.2 | AS19: -22063.43562 | BI19: Year 1 | BJ19: Year 2 | BK19: Year 3 | BL19: Year 4 | BM19: Year 5 | BP19: Year 1 | BQ19: Year 2 | BR19: Year 3 | BS19: Year 4 | BT19: Year 5 | BW19: Absenteeism | CC19: Cost of intervention per person | CD19: ='Four-way'!M8 -> 0 | CE19: ='Four-way'!N8 -> 100 | CF19: ='Four-way'!O8 -> 200 | CG19: ='Four-way'!P8 -> 400 | CL19: Cost of absenteeism | CM19: =CD23 -> 15 | CS19: =CE23 -> 30 | CY19: =CF23 -> 60 | DE19: Cost of intervention per person | DF19: ='Four-way Prod'!M8 -> 0 | DG19: ='Four-way Prod'!N8 -> 100 | DH19: ='Four-way Prod'!O8 -> 200 | DI19: ='Four-way Prod'!P8 -> 400 | EE19: Cost of intervention per person | EF19: ='Four-way Turnover'!M8 -> 0 | EG19: ='Four-way Turnover'!N8 -> 155.5 | EH19: ='Four-way Turnover'!O8 -> 311 | EI19: ='Four-way Turnover'!P8 -> 622 | EM19: Staff turnover
D20: Number of days lost per person | E20: 4.44 | AO20: 300 | AP20: -22063.43562 | BB20: Difference from baseline in year 1 | BC20: Difference from baseline in year 2 | BD20: Difference from baseline in year 3 | BE20: Difference from baseline in year 4 | BF20: Difference from baseline in year 5 | CE20: Basecase | CM20: Absenteeism | DG20: Basecase | DM20: Productivity | EG20: Basecase | EN20: Cost of intervention per person | ET20: Cost of intervention per person | EZ20: Cost of intervention per person
D21: Cost of absenteeism per day | E21: 158.28 | G21: =CONCATENATE("Reduction in ",D19) -> Reduction in Absenteeism (sick leave) | H21: 0.4 | I21: 0.2 | J21: 0.1 | K21: 0.1 | L21: 0.1 | AO21: 350 | AP21: -22063.43562 | BI21: Costs after in year 1 | BJ21: Costs after in year 2 | BK21: Costs after in year 3 | BL21: Costs after in year 4 | BM21: Costs after in year 5 | BP21: Costs after in year 1 | BQ21: Costs after in year 2 | BR21: Costs after in year 3 | BS21: Costs after in year 4 | BT21: Costs after in year 5 | BX21: Two way table with percentage reduction on vertical and price of intervention on horizontal | CC21: Cost of absenteeism | CD21: ='Four-way'!M10 -> 79.14 | CE21: ='Four-way'!N10 -> 158.28 | CF21: ='Four-way'!O10 -> 316.56 | DE21: Value of employee | DF21: ='Four-way Prod'!M10 -> 20020 | DG21: ='Four-way Prod'!N10 -> 40040 | DH21: ='Four-way Prod'!O10 -> 80080 | DM21: =DF23 -> 0.5 | DS21: =DG23 -> 0.75 | DY21: =DH23 -> 1 | EE21: Cost per case | EF21: ='Four-way Turnover'!M10 -> 7666.8 | EG21: ='Four-way Turnover'!N10 -> 15333.59 | EH21: ='Four-way Turnover'!O10 -> 30667.18 | EN21: 0 | EO21: 200 | EP21: 400 | EQ21: 600 | ET21: 0 | EU21: 200 | EV21: 400 | EW21: 600 | EZ21: 0 | FA21: 200 | FB21: 400 | FC21: 600
G22: =CONCATENATE("Increase in ",D23) -> Increase in Productivity | H22: 0 | I22: 0.001 | J22: 0.001 | K22: 0.001 | L22: 0.001 | AI22: Percentage of staff affected | AJ22: =IF('Base case'!$E$126=1,('Inputs (STSA)'!AK22/100),'Inputs (STSA)'!E24) -> 1 | AK22: 100 | AL22: =AJ22*100 -> 100 | AO22: 400 | AP22: -22063.43562 | BA22: =D19 -> Absenteeism (sick leave) | BB22: =$AJ$19 -> 0.4 | BC22: =BB22 -> 0.4 | BD22: =BB22 -> 0.4 | BE22: =BB22 -> 0.4 | BF22: =BB22 -> 0.4 | CK22: =CD21 -> 79.14 | CM22: 0 | CN22: 0 | CO22: 100 | CP22: 200 | CQ22: 400 | CS22: 0 | CT22: 0 | CU22: 100 | CV22: 200 | CW22: 400 | CY22: 0 | CZ22: 0 | DA22: 100 | DB22: 200 | DC22: 400 | DM22: 0 | DN22: -8433.1584 | DO22: -8433.1584 | DP22: -8433.1584 | DQ22: -8433.1584 | DS22: 0 | DT22: -8433.1584 | DU22: -8433.1584 | DV22: -8433.1584 | DW22: -8433.1584 | DY22: 0 | DZ22: -8433.1584 | EA22: -8433.1584 | EB22: -8433.1584 | EC22: -8433.1584 | EL22: Reduction in turnover | EM22: 0 | EN22: -8433.1584 | EO22: -8433.1584 | EP22: -8433.1584 | EQ22: -8433.1584 | ES22: 0 | ET22: -8433.1584 | EU22: -8433.1584 | EV22: -8433.1584 | EW22: -8433.1584 | EY22: 0 | EZ22: -8433.1584 | FA22: -8433.1584 | FB22: -8433.1584 | FC22: -8433.1584
D23: Productivity | E23: Baseline | G23: =CONCATENATE("Change in ",D27) -> Change in Staff turnover | H23: -0.225 | I23: -0.175 | J23: -0.175 | K23: -0.175 | L23: -0.175 | AI23: Value of employee | AJ23: =IF('Base case'!$E$126=1,('Inputs (STSA)'!AK23*100),'Inputs (STSA)'!E25) -> 40040 | AK23: 538.14 | AL23: =AJ23/100 -> 400.4 | AO23: 450 | AP23: -22063.43562 | BA23: =D23 -> Productivity | BB23: =$AJ$24 -> 0 | BC23: =BB23 -> 0 | BD23: =BB23 -> 0 | BE23: =BB23 -> 0 | BF23: =BB23 -> 0 | BH23: =$D$19 -> Absenteeism (sick leave) | BI23: =('Inputs (STSA)'!$AJ$12*'Inputs (STSA)'!$AJ$17*'Inputs (STSA)'!$AJ$18*'Inputs (STSA)'!$G$117) -> 21082.896 | BJ23: =('Inputs (STSA)'!$AJ$12*'Inputs (STSA)'!$AJ$17*'Inputs (STSA)'!$AJ$18*'Inputs (STSA)'!$G$117) -> 21082.896 | BK23: =('Inputs (STSA)'!$AJ$12*'Inputs (STSA)'!$AJ$17*'Inputs (STSA)'!$AJ$18*'Inputs (STSA)'!$G$117) -> 21082.896 | BL23: =('Inputs (STSA)'!$AJ$12*'Inputs (STSA)'!$AJ$17*'Inputs (STSA)'!$AJ$18*'Inputs (STSA)'!$G$117) -> 21082.896 | BM23: =('Inputs (STSA)'!$AJ$12*'Inputs (STSA)'!$AJ$17*'Inputs (STSA)'!$AJ$18*'Inputs (STSA)'!$G$117) -> 21082.896 | BO23: =$D$19 -> Absenteeism (sick leave) | BP23: =BI23*(1-'Inputs (STSA)'!BB46) -> 12649.7376 | BQ23: =BJ23*(1-'Inputs (STSA)'!BC46) -> 16866.3168 | BR23: =BK23*(1-'Inputs (STSA)'!BD46) -> 18974.6064 | BS23: =BL23*(1-'Inputs (STSA)'!BE46) -> 18974.6064 | BT23: =BM23*(1-'Inputs (STSA)'!BF46) -> 18974.6064 | CC23: Baseline absenteeism (days) | CD23: ='Four-way'!M11 -> 15 | CE23: ='Four-way'!N11 -> 30 | CF23: ='Four-way'!O11 -> 60 | CM23: 0.1 | CN23: -17.56908 | CO23: 82.43092 | CP23: 182.43092 | CQ23: 382.43092 | CS23: 0.1 | CT23: -17.56908 | CU23: 82.43092 | CV23: 182.43092 | CW23: 382.43092 | CY23: 0.1 | CZ23: -35.13816 | DA23: 64.86184 | DB23: 164.86184 | DC23: 364.86184 | DE23: Percentage of staff affected | DF23: ='Four-way Prod'!M11 -> 0.5 | DG23: ='Four-way Prod'!N11 -> 0.75 | DH23: ='Four-way Prod'!O11 -> 1 | DL23: =DF21 -> 20020 | DM23: 0.1 | DN23: -8433.1584 | DO23: -8433.1584 | DP23: -8433.1584 | DQ23: -8433.1584 | DS23: 0.1 | DT23: -8433.1584 | DU23: -8433.1584 | DV23: -8433.1584 | DW23: -8433.1584 | DY23: 0.1 | DZ23: -8433.1584 | EA23: -8433.1584 | EB23: -8433.1584 | EC23: -8433.1584 | EE23: Baseline rate of turnover | EF23: ='Four-way Turnover'!M11 -> 0.068 | EG23: ='Four-way Turnover'!N11 -> 0.136 | EH23: ='Four-way Turnover'!O11 -> 0.272 | EK23: =EF21 -> 7666.8 | EM23: 0.1 | EN23: -8433.1584 | EO23: -8433.1584 | EP23: -8433.1584 | EQ23: -8433.1584 | ES23: 0.1 | ET23: -8433.1584 | EU23: -8433.1584 | EV23: -8433.1584 | EW23: -8433.1584 | EY23: 0.1 | EZ23: -8433.1584 | FA23: -8433.1584 | FB23: -8433.1584 | FC23: -8433.1584
D24: Percentage of staff affected | E24: 1 | G24: =CONCATENATE("Reduction in ",D31) -> Reduction in | H24: 0.1 | I24: 0.5 | J24: 0.5 | K24: 0.5 | L24: 0.5 | AI24: Increase in productivity | AJ24: =IF('Base case'!$E$126=1,('Inputs (STSA)'!AK24/100),'Inputs (STSA)'!H22) -> 0 | AK24: 0.1 | AL24: =AJ24*100 -> 0 | AO24: 500 | AP24: -22063.43562 | BA24: =D27 -> Staff turnover | BB24: =$AJ$28 -> -0.225 | BC24: =BB24 -> -0.225 | BD24: =BB24 -> -0.225 | BE24: =BB24 -> -0.225 | BF24: =BB24 -> -0.225 | BH24: =$D$23 -> Productivity | BI24: ='Inputs (STSA)'!$AJ$12*'Inputs (STSA)'!$AJ$22*'Inputs (STSA)'!$AJ$23*'Inputs (STSA)'!$G$118 -> 1201200 | BJ24: ='Inputs (STSA)'!$AJ$12*'Inputs (STSA)'!$AJ$22*'Inputs (STSA)'!$AJ$23*'Inputs (STSA)'!$G$118 -> 1201200 | BK24: ='Inputs (STSA)'!$AJ$12*'Inputs (STSA)'!$AJ$22*'Inputs (STSA)'!$AJ$23*'Inputs (STSA)'!$G$118 -> 1201200 | BL24: ='Inputs (STSA)'!$AJ$12*'Inputs (STSA)'!$AJ$22*'Inputs (STSA)'!$AJ$23*'Inputs (STSA)'!$G$118 -> 1201200 | BM24: ='Inputs (STSA)'!$AJ$12*'Inputs (STSA)'!$AJ$22*'Inputs (STSA)'!$AJ$23*'Inputs (STSA)'!$G$118 -> 1201200 | BO24: =$D$23 -> Productivity | BP24: =BI24*(1+'Inputs (STSA)'!BB47) -> 1201200 | BQ24: =BJ24*(1+'Inputs (STSA)'!BC47) -> 1202401.2 | BR24: =BK24*(1+'Inputs (STSA)'!BD47) -> 1202401.2 | BS24: =BL24*(1+'Inputs (STSA)'!BE47) -> 1202401.2 | BT24: =BM24*(1+'Inputs (STSA)'!BF47) -> 1202401.2 | BX24: Cost of intervention | CM24: 0.2 | CN24: -35.13816 | CO24: 64.86184 | CP24: 164.86184 | CQ24: 364.86184 | CS24: 0.2 | CT24: -35.13816 | CU24: 64.86184 | CV24: 164.86184 | CW24: 364.86184 | CY24: 0.2 | CZ24: -70.27632 | DA24: 29.72368 | DB24: 129.72368 | DC24: 329.72368 | DM24: 0.2 | DN24: -8433.1584 | DO24: -8433.1584 | DP24: -8433.1584 | DQ24: -8433.1584 | DS24: 0.2 | DT24: -8433.1584 | DU24: -8433.1584 | DV24: -8433.1584 | DW24: -8433.1584 | DY24: 0.2 | DZ24: -8433.1584 | EA24: -8433.1584 | EB24: -8433.1584 | EC24: -8433.1584 | EM24: 0.2 | EN24: -8433.1584 | EO24: -8433.1584 | EP24: -8433.1584 | EQ24: -8433.1584 | ES24: 0.2 | ET24: -8433.1584 | EU24: -8433.1584 | EV24: -8433.1584 | EW24: -8433.1584 | EY24: 0.2 | EZ24: -8433.1584 | FA24: -8433.1584 | FB24: -8433.1584 | FC24: -8433.1584
D25: Value of employee | E25: 40040 | G25: =CONCATENATE("Reduction in ",D35) -> Reduction in | H25: 0.1 | I25: 0.1 | J25: 0.1 | K25: 0.1 | L25: 0.1 | AO25: =H17 -> 200 | AP25: =AP13 -> -22063.43562 | BA25: =D31 -> 0 | BB25: =$AJ$33 -> 0.1 | BC25: =BB25 -> 0.1 | BD25: =BB25 -> 0.1 | BE25: =BB25 -> 0.1 | BF25: =BB25 -> 0.1 | BH25: =$D$27 -> Staff turnover | BI25: ='Inputs (STSA)'!$AJ$12*'Inputs (STSA)'!$AJ$27*'Inputs (STSA)'!$AJ$29*'Inputs (STSA)'!$G$119 -> 62561.0472 | BJ25: ='Inputs (STSA)'!$AJ$12*'Inputs (STSA)'!$AJ$27*'Inputs (STSA)'!$AJ$29*'Inputs (STSA)'!$G$119 -> 62561.0472 | BK25: ='Inputs (STSA)'!$AJ$12*'Inputs (STSA)'!$AJ$27*'Inputs (STSA)'!$AJ$29*'Inputs (STSA)'!$G$119 -> 62561.0472 | BL25: ='Inputs (STSA)'!$AJ$12*'Inputs (STSA)'!$AJ$27*'Inputs (STSA)'!$AJ$29*'Inputs (STSA)'!$G$119 -> 62561.0472 | BM25: ='Inputs (STSA)'!$AJ$12*'Inputs (STSA)'!$AJ$27*'Inputs (STSA)'!$AJ$29*'Inputs (STSA)'!$G$119 -> 62561.0472 | BO25: =$D$27 -> Staff turnover | BP25: =BI25*(1-'Inputs (STSA)'!BB48) -> 76637.28282 | BQ25: =BJ25*(1-'Inputs (STSA)'!BC48) -> 73509.23046 | BR25: =BK25*(1-'Inputs (STSA)'!BD48) -> 73509.23046 | BS25: =BL25*(1-'Inputs (STSA)'!BE48) -> 73509.23046 | BT25: =BM25*(1-'Inputs (STSA)'!BF48) -> 73509.23046 | BW25: ='Base case'!G19 -> -22063.43562 | BX25: =CD19 -> 0 | BY25: =CE19 -> 100 | BZ25: 200 | CA25: 400 | CM25: 0.3 | CN25: -52.70724 | CO25: 47.29276 | CP25: 147.29276 | CQ25: 347.29276 | CS25: 0.3 | CT25: -52.70724 | CU25: 47.29276 | CV25: 147.29276 | CW25: 347.29276 | CY25: 0.3 | CZ25: -105.41448 | DA25: -5.41448 | DB25: 94.58552 | DC25: 294.58552 | DF25: ='Base case'!G19 -> -22063.43562 | DG25: =DF19 -> 0 | DH25: =DG19 -> 100 | DI25: 200 | DJ25: 400 | DM25: 0.3 | DN25: -8433.1584 | DO25: -8433.1584 | DP25: -8433.1584 | DQ25: -8433.1584 | DS25: 0.3 | DT25: -8433.1584 | DU25: -8433.1584 | DV25: -8433.1584 | DW25: -8433.1584 | DY25: 0.3 | DZ25: -8433.1584 | EA25: -8433.1584 | EB25: -8433.1584 | EC25: -8433.1584 | EF25: ='Base case'!G19 -> -22063.43562 | EG25: =EF19 -> 0 | EH25: =EG19 -> 155.5 | EI25: 311 | EJ25: 622 | EM25: 0.3 | EN25: -8433.1584 | EO25: -8433.1584 | EP25: -8433.1584 | EQ25: -8433.1584 | ES25: 0.3 | ET25: -8433.1584 | EU25: -8433.1584 | EV25: -8433.1584 | EW25: -8433.1584 | EY25: 0.3 | EZ25: -8433.1584 | FA25: -8433.1584 | FB25: -8433.1584 | FC25: -8433.1584
BA26: =D35 -> 0 | BB26: =$AJ$38 -> 0.1 | BC26: =BB26 -> 0.1 | BD26: =BB26 -> 0.1 | BE26: =BB26 -> 0.1 | BF26: =BB26 -> 0.1 | BH26: =$D$31 -> 0 | BI26: ='Inputs (STSA)'!$AJ$12*'Inputs (STSA)'!$AJ$32*'Inputs (STSA)'!$AJ$34*'Inputs (STSA)'!$G$120 ->  | BJ26: ='Inputs (STSA)'!$AJ$12*'Inputs (STSA)'!$AJ$32*'Inputs (STSA)'!$AJ$34*'Inputs (STSA)'!$G$120 ->  | BK26: ='Inputs (STSA)'!$AJ$12*'Inputs (STSA)'!$AJ$32*'Inputs (STSA)'!$AJ$34*'Inputs (STSA)'!$G$120 ->  | BL26: ='Inputs (STSA)'!$AJ$12*'Inputs (STSA)'!$AJ$32*'Inputs (STSA)'!$AJ$34*'Inputs (STSA)'!$G$120 ->  | BM26: ='Inputs (STSA)'!$AJ$12*'Inputs (STSA)'!$AJ$32*'Inputs (STSA)'!$AJ$34*'Inputs (STSA)'!$G$120 ->  | BO26: =$D$31 -> 0 | BP26: =BI26*(1-'Inputs (STSA)'!BB49) ->  | BQ26: =BJ26*(1-'Inputs (STSA)'!BC49) ->  | BR26: =BK26*(1-'Inputs (STSA)'!BD49) ->  | BS26: =BL26*(1-'Inputs (STSA)'!BE49) ->  | BT26: =BM26*(1-'Inputs (STSA)'!BF49) ->  | BW26: 0 | BX26: -22063.43562 | BY26: -22063.43562 | BZ26: -22063.43562 | CA26: -22063.43562 | CM26: 0.4 | CN26: -70.27632 | CO26: 29.72368 | CP26: 129.72368 | CQ26: 329.72368 | CS26: 0.4 | CT26: -70.27632 | CU26: 29.72368 | CV26: 129.72368 | CW26: 329.72368 | CY26: 0.4 | CZ26: -140.55264 | DA26: -40.55264 | DB26: 59.44736 | DC26: 259.44736 | DF26: 0 | DG26: -22063.43562 | DH26: -22063.43562 | DI26: -22063.43562 | DJ26: -22063.43562 | DM26: 0.4 | DN26: -8433.1584 | DO26: -8433.1584 | DP26: -8433.1584 | DQ26: -8433.1584 | DS26: 0.4 | DT26: -8433.1584 | DU26: -8433.1584 | DV26: -8433.1584 | DW26: -8433.1584 | DY26: 0.4 | DZ26: -8433.1584 | EA26: -8433.1584 | EB26: -8433.1584 | EC26: -8433.1584 | EF26: 0 | EG26: -22063.43562 | EH26: -22063.43562 | EI26: -22063.43562 | EJ26: -22063.43562 | EM26: 0.4 | EN26: -8433.1584 | EO26: -8433.1584 | EP26: -8433.1584 | EQ26: -8433.1584 | ES26: 0.4 | ET26: -8433.1584 | EU26: -8433.1584 | EV26: -8433.1584 | EW26: -8433.1584 | EY26: 0.4 | EZ26: -8433.1584 | FA26: -8433.1584 | FB26: -8433.1584 | FC26: -8433.1584
D27: Staff turnover | E27: Baseline | G27: Enter difference in effectiveness to previous year | AI27: Annual rate of staff turnover | AJ27: =IF('Base case'!$E$126=1,('Inputs (STSA)'!AK27/100),'Inputs (STSA)'!E28) -> 0.136 | AK27: 13.6 | AL27: =AJ27*100 -> 13.6 | BH27: =$D$35 -> 0 | BI27: ='Inputs (STSA)'!$AJ$12*'Inputs (STSA)'!$AJ$37*'Inputs (STSA)'!$AJ$39*'Inputs (STSA)'!$G$121 -> 0 | BJ27: ='Inputs (STSA)'!$AJ$12*'Inputs (STSA)'!$AJ$37*'Inputs (STSA)'!$AJ$39*'Inputs (STSA)'!$G$121 -> 0 | BK27: ='Inputs (STSA)'!$AJ$12*'Inputs (STSA)'!$AJ$37*'Inputs (STSA)'!$AJ$39*'Inputs (STSA)'!$G$121 -> 0 | BL27: ='Inputs (STSA)'!$AJ$12*'Inputs (STSA)'!$AJ$37*'Inputs (STSA)'!$AJ$39*'Inputs (STSA)'!$G$121 -> 0 | BM27: ='Inputs (STSA)'!$AJ$12*'Inputs (STSA)'!$AJ$37*'Inputs (STSA)'!$AJ$39*'Inputs (STSA)'!$G$121 -> 0 | BO27: =$D$35 -> 0 | BP27: =BI27*(1-'Inputs (STSA)'!BB50) -> 0 | BQ27: =BJ27*(1-'Inputs (STSA)'!BC50) -> 0 | BR27: =BK27*(1-'Inputs (STSA)'!BD50) -> 0 | BS27: =BL27*(1-'Inputs (STSA)'!BE50) -> 0 | BT27: =BM27*(1-'Inputs (STSA)'!BF50) -> 0 | BV27: Reduction in absenteeism | BW27: 0.1 | BX27: -22063.43562 | BY27: -22063.43562 | BZ27: -22063.43562 | CA27: -22063.43562 | CM27: 0.5 | CN27: -87.8454 | CO27: 12.1546 | CP27: 112.1546 | CQ27: 312.1546 | CS27: 0.5 | CT27: -87.8454 | CU27: 12.1546 | CV27: 112.1546 | CW27: 312.1546 | CY27: 0.5 | CZ27: -175.6908 | DA27: -75.6908 | DB27: 24.3092 | DC27: 224.3092 | DF27: 0.1 | DG27: -22063.43562 | DH27: -22063.43562 | DI27: -22063.43562 | DJ27: -22063.43562 | DM27: 0.5 | DN27: -8433.1584 | DO27: -8433.1584 | DP27: -8433.1584 | DQ27: -8433.1584 | DS27: 0.5 | DT27: -8433.1584 | DU27: -8433.1584 | DV27: -8433.1584 | DW27: -8433.1584 | DY27: 0.5 | DZ27: -8433.1584 | EA27: -8433.1584 | EB27: -8433.1584 | EC27: -8433.1584 | EF27: 0.1 | EG27: -22063.43562 | EH27: -22063.43562 | EI27: -22063.43562 | EJ27: -22063.43562 | EM27: 0.5 | EN27: -8433.1584 | EO27: -8433.1584 | EP27: -8433.1584 | EQ27: -8433.1584 | ES27: 0.5 | ET27: -8433.1584 | EU27: -8433.1584 | EV27: -8433.1584 | EW27: -8433.1584 | EY27: 0.5 | EZ27: -8433.1584 | FA27: -8433.1584 | FB27: -8433.1584 | FC27: -8433.1584
D28: Annual rate of staff turnover | E28: 0.136 | G28: =D19 -> Absenteeism (sick leave) | H28: 0.9 | AI28: Reduction in staff turnover | AJ28: =IF('Base case'!$E$126=1,('Inputs (STSA)'!AK28/100),'Inputs (STSA)'!H23) -> -0.225 | AK28: 22.5 | AL28: =AJ28*100 -> -22.5 | AO28: Absenteeism | BA28: Option 2 - difference in effectiveness each year | BH28: Intervention cost | BI28: 0 | BJ28: 0 | BK28: 0 | BL28: 0 | BM28: 0 | BO28: Intervention cost | BP28: =$AJ$12*AJ14 -> 6000 | BQ28: =$E$14*I17 -> 4500 | BR28: =$E$14*J17 -> 4500 | BS28: =$E$14*K17 -> 4500 | BT28: =$E$14*L17 -> 4500 | BW28: 0.2 | BX28: -22063.43562 | BY28: -22063.43562 | BZ28: -22063.43562 | CA28: -22063.43562 | CM28: 0.6 | CN28: -105.41448 | CO28: -5.41448 | CP28: 94.58552 | CQ28: 294.58552 | CS28: 0.6 | CT28: -105.41448 | CU28: -5.41448 | CV28: 94.58552 | CW28: 294.58552 | CY28: 0.6 | CZ28: -210.82896 | DA28: -110.82896 | DB28: -10.82896 | DC28: 189.17104 | DE28: Increase in productivity | DF28: 0.2 | DG28: -22063.43562 | DH28: -22063.43562 | DI28: -22063.43562 | DJ28: -22063.43562 | DM28: 0.6 | DN28: -8433.1584 | DO28: -8433.1584 | DP28: -8433.1584 | DQ28: -8433.1584 | DS28: 0.6 | DT28: -8433.1584 | DU28: -8433.1584 | DV28: -8433.1584 | DW28: -8433.1584 | DY28: 0.6 | DZ28: -8433.1584 | EA28: -8433.1584 | EB28: -8433.1584 | EC28: -8433.1584 | EE28: Reduction in turnover | EF28: 0.2 | EG28: -22063.43562 | EH28: -22063.43562 | EI28: -22063.43562 | EJ28: -22063.43562 | EM28: 0.6 | EN28: -8433.1584 | EO28: -8433.1584 | EP28: -8433.1584 | EQ28: -8433.1584 | ES28: 0.6 | ET28: -8433.1584 | EU28: -8433.1584 | EV28: -8433.1584 | EW28: -8433.1584 | EY28: 0.6 | EZ28: -8433.1584 | FA28: -8433.1584 | FB28: -8433.1584 | FC28: -8433.1584
D29: Cost per case of staff turnover | E29: 15333.59 | G29: =D23 -> Productivity | H29: 0.9 | AI29: Cost per case of staff turnover | AJ29: =IF('Base case'!$E$126=1,'Inputs (STSA)'!AK29,'Inputs (STSA)'!E29) -> 15333.59 | AK29: 14405.14 | AO29: No. of days | AP29: ='Base case'!G19 -> -22063.43562 | AR29: Cost per day | AS29: ='Base case'!G19 -> -22063.43562 | AU29: Reduction | AV29: ='Base case'!G19 -> -22063.43562 | BH29: Total | BI29: =SUM(BI23:BI28) ->  | BJ29: =SUM(BJ23:BJ28) ->  | BK29: =SUM(BK23:BK28) ->  | BL29: =SUM(BL23:BL28) ->  | BM29: =SUM(BM23:BM28) ->  | BO29: Total | BP29: =SUM(BP23:BP28) ->  | BQ29: =SUM(BQ23:BQ28) ->  | BR29: =SUM(BR23:BR28) ->  | BS29: =SUM(BS23:BS28) ->  | BT29: =SUM(BT23:BT28) ->  | BW29: 0.3 | BX29: -22063.43562 | BY29: -22063.43562 | BZ29: -22063.43562 | CA29: -22063.43562 | CM29: 0.7 | CN29: -122.98356 | CO29: -22.98356 | CP29: 77.01644 | CQ29: 277.01644 | CS29: 0.7 | CT29: -122.98356 | CU29: -22.98356 | CV29: 77.01644 | CW29: 277.01644 | CY29: 0.7 | CZ29: -245.96712 | DA29: -145.96712 | DB29: -45.96712 | DC29: 154.03288 | DF29: 0.3 | DG29: -22063.43562 | DH29: -22063.43562 | DI29: -22063.43562 | DJ29: -22063.43562 | DM29: 0.7 | DN29: -8433.1584 | DO29: -8433.1584 | DP29: -8433.1584 | DQ29: -8433.1584 | DS29: 0.7 | DT29: -8433.1584 | DU29: -8433.1584 | DV29: -8433.1584 | DW29: -8433.1584 | DY29: 0.7 | DZ29: -8433.1584 | EA29: -8433.1584 | EB29: -8433.1584 | EC29: -8433.1584 | EF29: 0.3 | EG29: -22063.43562 | EH29: -22063.43562 | EI29: -22063.43562 | EJ29: -22063.43562 | EM29: 0.7 | EN29: -8433.1584 | EO29: -8433.1584 | EP29: -8433.1584 | EQ29: -8433.1584 | ES29: 0.7 | ET29: -8433.1584 | EU29: -8433.1584 | EV29: -8433.1584 | EW29: -8433.1584 | EY29: 0.7 | EZ29: -8433.1584 | FA29: -8433.1584 | FB29: -8433.1584 | FC29: -8433.1584
G30: =D27 -> Staff turnover | H30: 0.9 | AO30: 0 | AP30: -22063.43562 | AR30: 0 | AS30: -22063.43562 | AU30: 0 | AV30: -22063.43562 | BB30: Year 1 | BC30: Year 2 | BD30: Year 3 | BE30: Year 4 | BF30: Year 5 | BW30: 0.4 | BX30: -22063.43562 | BY30: -22063.43562 | BZ30: -22063.43562 | CA30: -22063.43562 | CM30: 0.8 | CN30: -140.55264 | CO30: -40.55264 | CP30: 59.44736 | CQ30: 259.44736 | CS30: 0.8 | CT30: -140.55264 | CU30: -40.55264 | CV30: 59.44736 | CW30: 259.44736 | CY30: 0.8 | CZ30: -281.10528 | DA30: -181.10528 | DB30: -81.10528 | DC30: 118.89472 | DF30: 0.4 | DG30: -22063.43562 | DH30: -22063.43562 | DI30: -22063.43562 | DJ30: -22063.43562 | DM30: 0.8 | DN30: -8433.1584 | DO30: -8433.1584 | DP30: -8433.1584 | DQ30: -8433.1584 | DS30: 0.8 | DT30: -8433.1584 | DU30: -8433.1584 | DV30: -8433.1584 | DW30: -8433.1584 | DY30: 0.8 | DZ30: -8433.1584 | EA30: -8433.1584 | EB30: -8433.1584 | EC30: -8433.1584 | EF30: 0.4 | EG30: -22063.43562 | EH30: -22063.43562 | EI30: -22063.43562 | EJ30: -22063.43562 | EM30: 0.8 | EN30: -8433.1584 | EO30: -8433.1584 | EP30: -8433.1584 | EQ30: -8433.1584 | ES30: 0.8 | ET30: -8433.1584 | EU30: -8433.1584 | EV30: -8433.1584 | EW30: -8433.1584 | EY30: 0.8 | EZ30: -8433.1584 | FA30: -8433.1584 | FB30: -8433.1584 | FC30: -8433.1584
G31: =D31 -> 0 | H31: 0.9 | AO31: 2 | AP31: -22063.43562 | AR31: 50 | AS31: -22063.43562 | AU31: 0.05 | AV31: -22063.43562 | BH31: Discounted | BO31: Discounted | BW31: 0.5 | BX31: -22063.43562 | BY31: -22063.43562 | BZ31: -22063.43562 | CA31: -22063.43562 | CM31: 0.9 | CN31: -158.12172 | CO31: -58.12172 | CP31: 41.87828 | CQ31: 241.87828 | CS31: 0.9 | CT31: -158.12172 | CU31: -58.12172 | CV31: 41.87828 | CW31: 241.87828 | CY31: 0.9 | CZ31: -316.24344 | DA31: -216.24344 | DB31: -116.24344 | DC31: 83.75656 | DF31: 0.5 | DG31: -22063.43562 | DH31: -22063.43562 | DI31: -22063.43562 | DJ31: -22063.43562 | DM31: 0.9 | DN31: -8433.1584 | DO31: -8433.1584 | DP31: -8433.1584 | DQ31: -8433.1584 | DS31: 0.9 | DT31: -8433.1584 | DU31: -8433.1584 | DV31: -8433.1584 | DW31: -8433.1584 | DY31: 0.9 | DZ31: -8433.1584 | EA31: -8433.1584 | EB31: -8433.1584 | EC31: -8433.1584 | EF31: 0.5 | EG31: -22063.43562 | EH31: -22063.43562 | EI31: -22063.43562 | EJ31: -22063.43562 | EM31: 0.9 | EN31: -8433.1584 | EO31: -8433.1584 | EP31: -8433.1584 | EQ31: -8433.1584 | ES31: 0.9 | ET31: -8433.1584 | EU31: -8433.1584 | EV31: -8433.1584 | EW31: -8433.1584 | EY31: 0.9 | EZ31: -8433.1584 | FA31: -8433.1584 | FB31: -8433.1584 | FC31: -8433.1584
G32: =D35 -> 0 | H32: 0.9 | AI32: Percentage of staff affected | AJ32: =IF('Base case'!$E$126=1,('Inputs (STSA)'!AK32/100),'Inputs (STSA)'!E32) -> 0 | AK32: 22 | AL32: =AJ32*100 -> 0 | AO32: 4 | AP32: -22063.43562 | AR32: 100 | AS32: -22063.43562 | AU32: 0.1 | AV32: -22063.43562 | BB32: Difference from baseline in year 1 | BC32: Difference from baseline in year 2 | BD32: Difference from baseline in year 3 | BE32: Difference from baseline in year 4 | BF32: Difference from baseline in year 5 | BI32: Cycle | BP32: Cycle | BW32: 0.6 | BX32: -22063.43562 | BY32: -22063.43562 | BZ32: -22063.43562 | CA32: -22063.43562 | CM32: 1 | CN32: -175.6908 | CO32: -75.6908 | CP32: 24.3092 | CQ32: 224.3092 | CS32: 1 | CT32: -175.6908 | CU32: -75.6908 | CV32: 24.3092 | CW32: 224.3092 | CY32: 1 | CZ32: -351.3816 | DA32: -251.3816 | DB32: -151.3816 | DC32: 48.6184 | DF32: 0.6 | DG32: -22063.43562 | DH32: -22063.43562 | DI32: -22063.43562 | DJ32: -22063.43562 | DM32: 1 | DN32: -8433.1584 | DO32: -8433.1584 | DP32: -8433.1584 | DQ32: -8433.1584 | DS32: 1 | DT32: -8433.1584 | DU32: -8433.1584 | DV32: -8433.1584 | DW32: -8433.1584 | DY32: 1 | DZ32: -8433.1584 | EA32: -8433.1584 | EB32: -8433.1584 | EC32: -8433.1584 | EF32: 0.6 | EG32: -22063.43562 | EH32: -22063.43562 | EI32: -22063.43562 | EJ32: -22063.43562 | EM32: 1 | EN32: -8433.1584 | EO32: -8433.1584 | EP32: -8433.1584 | EQ32: -8433.1584 | ES32: 1 | ET32: -8433.1584 | EU32: -8433.1584 | EV32: -8433.1584 | EW32: -8433.1584 | EY32: 1 | EZ32: -8433.1584 | FA32: -8433.1584 | FB32: -8433.1584 | FC32: -8433.1584
AI33: Reduction in healthcare use | AJ33: =IF('Base case'!$E$126=1,('Inputs (STSA)'!AK33/100),'Inputs (STSA)'!H24) -> 0.1 | AK33: 10 | AL33: =AJ33*100 -> 10 | AO33: 6 | AP33: -22063.43562 | AR33: 150 | AS33: -22063.43562 | AU33: 0.15 | AV33: -22063.43562 | BI33: 0 | BJ33: 1 | BK33: 2 | BL33: 3 | BM33: 4 | BP33: 0 | BQ33: 1 | BR33: 2 | BS33: 3 | BT33: 4 | BW33: 0.7 | BX33: -22063.43562 | BY33: -22063.43562 | BZ33: -22063.43562 | CA33: -22063.43562 | DF33: 0.7 | DG33: -22063.43562 | DH33: -22063.43562 | DI33: -22063.43562 | DJ33: -22063.43562 | EF33: 0.7 | EG33: -22063.43562 | EH33: -22063.43562 | EI33: -22063.43562 | EJ33: -22063.43562
AI34: Cost per person affected | AJ34: =IF('Base case'!$E$126=1,'Inputs (STSA)'!AK34,'Inputs (STSA)'!#REF!) ->  | AK34: 840.97 | AO34: 8 | AP34: -22063.43562 | AR34: 200 | AS34: -22063.43562 | AU34: 0.2 | AV34: -22063.43562 | BA34: =$D$19 -> Absenteeism (sick leave) | BB34: =$AJ$19 -> 0.4 | BC34: =BB34*H28 -> 0.36 | BD34: =BC34*H28 -> 0.324 | BE34: =BD34*H28 -> 0.2916 | BF34: =BE34*H28 -> 0.26244 | BH34: =$D$19 -> Absenteeism (sick leave) | BI34: =BI23 -> 21082.896 | BJ34: =BJ23/(1+$E$17)^$BQ$33 -> 20369.94783 | BK34: =BK23/(1+$E$17)^$BR$33 -> 19681.10901 | BL34: =BL23/(1+$E$17)^$BS$33 -> 19015.56426 | BM34: =BM23/(1+$E$17)^$BT$33 -> 18372.52586 | BO34: =$D$19 -> Absenteeism (sick leave) | BP34: =BP23 -> 12649.7376 | BQ34: =BQ23/(1+$E$17)^$BQ$33 -> 16295.95826 | BR34: =BR23/(1+$E$17)^$BR$33 -> 17712.99811 | BS34: =BS23/(1+$E$17)^$BS$33 -> 17114.00784 | BT34: =BT23/(1+$E$17)^$BT$33 -> 16535.27327 | BW34: 0.8 | BX34: -22063.43562 | BY34: -22063.43562 | BZ34: -22063.43562 | CA34: -22063.43562 | CK34: =CE21 -> 158.28 | CM34: 0 | CN34: 0 | CO34: 100 | CP34: 200 | CQ34: 400 | CS34: 0 | CT34: 0 | CU34: 100 | CV34: 200 | CW34: 400 | CY34: 0 | CZ34: 0 | DA34: 100 | DB34: 200 | DC34: 400 | DF34: 0.8 | DG34: -22063.43562 | DH34: -22063.43562 | DI34: -22063.43562 | DJ34: -22063.43562 | DM34: 0 | DN34: -8433.1584 | DO34: -8433.1584 | DP34: -8433.1584 | DQ34: -8433.1584 | DS34: 0 | DT34: -8433.1584 | DU34: -8433.1584 | DV34: -8433.1584 | DW34: -8433.1584 | DY34: 0 | DZ34: -8433.1584 | EA34: -8433.1584 | EB34: -8433.1584 | EC34: -8433.1584 | EF34: 0.8 | EG34: -22063.43562 | EH34: -22063.43562 | EI34: -22063.43562 | EJ34: -22063.43562 | EL34: Reduction in turnover | EM34: 0 | EN34: -8433.1584 | EO34: -8433.1584 | EP34: -8433.1584 | EQ34: -8433.1584 | ES34: 0 | ET34: -8433.1584 | EU34: -8433.1584 | EV34: -8433.1584 | EW34: -8433.1584 | EY34: 0 | EZ34: -8433.1584 | FA34: -8433.1584 | FB34: -8433.1584 | FC34: -8433.1584
AO35: 10 | AP35: -22063.43562 | AR35: 250 | AS35: -22063.43562 | AU35: 0.25 | AV35: -22063.43562 | BA35: =$D$23 -> Productivity | BB35: =$AJ$24 -> 0 | BC35: =BB35*H29 -> 0 | BD35: =BC35*H29 -> 0 | BE35: =BD35*H29 -> 0 | BF35: =BE35*H29 -> 0 | BH35: =$D$23 -> Productivity | BI35: 1201200 | BJ35: 1160579.71 | BK35: 1121333.053 | BL35: 1083413.578 | BM35: 1046776.404 | BO35: =$D$23 -> Productivity | BP35: =BP24 -> 1201200 | BQ35: 1161740.29 | BR35: 1122454.386 | BS35: 1084496.992 | BT35: 1047823.18 | BW35: 0.9 | BX35: -22063.43562 | BY35: -22063.43562 | BZ35: -22063.43562 | CA35: -22063.43562 | CM35: 0.1 | CN35: -17.56908 | CO35: 82.43092 | CP35: 182.43092 | CQ35: 382.43092 | CS35: 0.1 | CT35: -70.27632 | CU35: 29.72368 | CV35: 129.72368 | CW35: 329.72368 | CY35: 0.1 | CZ35: -35.13816 | DA35: 64.86184 | DB35: 164.86184 | DC35: 364.86184 | DF35: 0.9 | DG35: -22063.43562 | DH35: -22063.43562 | DI35: -22063.43562 | DJ35: -22063.43562 | DL35: =DG21 -> 40040 | DM35: 0.1 | DN35: -8433.1584 | DO35: -8433.1584 | DP35: -8433.1584 | DQ35: -8433.1584 | DS35: 0.1 | DT35: -8433.1584 | DU35: -8433.1584 | DV35: -8433.1584 | DW35: -8433.1584 | DY35: 0.1 | DZ35: -8433.1584 | EA35: -8433.1584 | EB35: -8433.1584 | EC35: -8433.1584 | EF35: 0.9 | EG35: -22063.43562 | EH35: -22063.43562 | EI35: -22063.43562 | EJ35: -22063.43562 | EK35: =EG21 -> 15333.59 | EM35: 0.1 | EN35: -8433.1584 | EO35: -8433.1584 | EP35: -8433.1584 | EQ35: -8433.1584 | ES35: 0.1 | ET35: -8433.1584 | EU35: -8433.1584 | EV35: -8433.1584 | EW35: -8433.1584 | EY35: 0.1 | EZ35: -8433.1584 | FA35: -8433.1584 | FB35: -8433.1584 | FC35: -8433.1584
AO36: 12 | AP36: -22063.43562 | AR36: 300 | AS36: -22063.43562 | AU36: 0.3 | AV36: -22063.43562 | BA36: =$D$27 -> Staff turnover | BB36: =$AJ$28 -> -0.225 | BC36: =BB36*H30 -> -0.2025 | BD36: =BC36*H30 -> -0.18225 | BE36: =BD36*H30 -> -0.164025 | BF36: =BE36*H30 -> -0.1476225 | BH36: =$D$27 -> Staff turnover | BI36: 62561.0472 | BJ36: 60445.45623 | BK36: 58401.40699 | BL36: 56426.48018 | BM36: 54518.33834 | BO36: =$D$27 -> Staff turnover | BP36: 76637.28282 | BQ36: 71023.41107 | BR36: 68621.65321 | BS36: 66301.11421 | BT36: 64059.04755 | BW36: 1 | BX36: -22063.43562 | BY36: -22063.43562 | BZ36: -22063.43562 | CA36: -22063.43562 | CM36: 0.2 | CN36: -35.13816 | CO36: 64.86184 | CP36: 164.86184 | CQ36: 364.86184 | CS36: 0.2 | CT36: -140.55264 | CU36: -40.55264 | CV36: 59.44736 | CW36: 259.44736 | CY36: 0.2 | CZ36: -70.27632 | DA36: 29.72368 | DB36: 129.72368 | DC36: 329.72368 | DF36: 1 | DG36: -22063.43562 | DH36: -22063.43562 | DI36: -22063.43562 | DJ36: -22063.43562 | DM36: 0.2 | DN36: -8433.1584 | DO36: -8433.1584 | DP36: -8433.1584 | DQ36: -8433.1584 | DS36: 0.2 | DT36: -8433.1584 | DU36: -8433.1584 | DV36: -8433.1584 | DW36: -8433.1584 | DY36: 0.2 | DZ36: -8433.1584 | EA36: -8433.1584 | EB36: -8433.1584 | EC36: -8433.1584 | EF36: 1 | EG36: -22063.43562 | EH36: -22063.43562 | EI36: -22063.43562 | EJ36: -22063.43562 | EM36: 0.2 | EN36: -8433.1584 | EO36: -8433.1584 | EP36: -8433.1584 | EQ36: -8433.1584 | ES36: 0.2 | ET36: -8433.1584 | EU36: -8433.1584 | EV36: -8433.1584 | EW36: -8433.1584 | EY36: 0.2 | EZ36: -8433.1584 | FA36: -8433.1584 | FB36: -8433.1584 | FC36: -8433.1584
AI37: Percentage of staff affected | AJ37: =IF('Base case'!$E$126=1,('Inputs (STSA)'!AK37/100),'Inputs (STSA)'!E36) -> 0 | AK37: 5 | AL37: =AJ37*100 -> 0 | AO37: 14 | AP37: -22063.43562 | AR37: 350 | AS37: -22063.43562 | AU37: 0.35 | AV37: -22063.43562 | BA37: =$D$31 -> 0 | BB37: =$AJ$33 -> 0.1 | BC37: =BB37*H31 -> 0.09 | BD37: =BC37*H31 -> 0.081 | BE37: =BD37*H31 -> 0.0729 | BF37: =BE37*H31 -> 0.06561 | BH37: =$D$31 -> 0 | BO37: =$D$31 -> 0 | CM37: 0.3 | CN37: -52.70724 | CO37: 47.29276 | CP37: 147.29276 | CQ37: 347.29276 | CS37: 0.3 | CT37: -210.82896 | CU37: -110.82896 | CV37: -10.82896 | CW37: 189.17104 | CY37: 0.3 | CZ37: -105.41448 | DA37: -5.41448 | DB37: 94.58552 | DC37: 294.58552 | DM37: 0.3 | DN37: -8433.1584 | DO37: -8433.1584 | DP37: -8433.1584 | DQ37: -8433.1584 | DS37: 0.3 | DT37: -8433.1584 | DU37: -8433.1584 | DV37: -8433.1584 | DW37: -8433.1584 | DY37: 0.3 | DZ37: -8433.1584 | EA37: -8433.1584 | EB37: -8433.1584 | EC37: -8433.1584 | EM37: 0.3 | EN37: -8433.1584 | EO37: -8433.1584 | EP37: -8433.1584 | EQ37: -8433.1584 | ES37: 0.3 | ET37: -8433.1584 | EU37: -8433.1584 | EV37: -8433.1584 | EW37: -8433.1584 | EY37: 0.3 | EZ37: -8433.1584 | FA37: -8433.1584 | FB37: -8433.1584 | FC37: -8433.1584
AI38: Reduction in societal costs | AJ38: =IF('Base case'!$E$126=1,('Inputs (STSA)'!AK38/100),'Inputs (STSA)'!H25) -> 0.1 | AK38: 10 | AL38: =AJ38*100 -> 10 | AO38: 16 | AP38: -22063.43562 | AR38: 400 | AS38: -22063.43562 | AU38: 0.4 | AV38: -22063.43562 | BA38: =$D$35 -> 0 | BB38: =$AJ$38 -> 0.1 | BC38: =BB38*H32 -> 0.09 | BD38: =BC38*H32 -> 0.081 | BE38: =BD38*H32 -> 0.0729 | BF38: =BE38*H32 -> 0.06561 | BH38: =$D$35 -> 0 | BI38: 0 | BJ38: 0 | BK38: 0 | BL38: 0 | BM38: 0 | BO38: =$D$35 -> 0 | BP38: 0 | BQ38: 0 | BR38: 0 | BS38: 0 | BT38: 0 | CM38: 0.4 | CN38: -70.27632 | CO38: 29.72368 | CP38: 129.72368 | CQ38: 329.72368 | CS38: 0.4 | CT38: -281.10528 | CU38: -181.10528 | CV38: -81.10528 | CW38: 118.89472 | CY38: 0.4 | CZ38: -140.55264 | DA38: -40.55264 | DB38: 59.44736 | DC38: 259.44736 | DM38: 0.4 | DN38: -8433.1584 | DO38: -8433.1584 | DP38: -8433.1584 | DQ38: -8433.1584 | DS38: 0.4 | DT38: -8433.1584 | DU38: -8433.1584 | DV38: -8433.1584 | DW38: -8433.1584 | DY38: 0.4 | DZ38: -8433.1584 | EA38: -8433.1584 | EB38: -8433.1584 | EC38: -8433.1584 | EM38: 0.4 | EN38: -8433.1584 | EO38: -8433.1584 | EP38: -8433.1584 | EQ38: -8433.1584 | ES38: 0.4 | ET38: -8433.1584 | EU38: -8433.1584 | EV38: -8433.1584 | EW38: -8433.1584 | EY38: 0.4 | EZ38: -8433.1584 | FA38: -8433.1584 | FB38: -8433.1584 | FC38: -8433.1584
AI39: Cost per person affected | AJ39: =IF('Base case'!$E$126=1,'Inputs (STSA)'!AK39,'Inputs (STSA)'!E37) -> 0 | AK39: 5000 | AO39: 18 | AP39: -22063.43562 | AR39: 450 | AS39: -22063.43562 | AU39: 0.45 | AV39: -22063.43562 | BH39: Intervention cost | BI39: 0 | BJ39: 0 | BK39: 0 | BL39: 0 | BM39: 0 | BO39: Intervention cost | BP39: =BP28 -> 6000 | BQ39: 4347.826087 | BR39: 4200.798152 | BS39: 4058.742176 | BT39: 3921.490025 | CM39: 0.5 | CN39: -87.8454 | CO39: 12.1546 | CP39: 112.1546 | CQ39: 312.1546 | CS39: 0.5 | CT39: -351.3816 | CU39: -251.3816 | CV39: -151.3816 | CW39: 48.6184 | CY39: 0.5 | CZ39: -175.6908 | DA39: -75.6908 | DB39: 24.3092 | DC39: 224.3092 | DM39: 0.5 | DN39: -8433.1584 | DO39: -8433.1584 | DP39: -8433.1584 | DQ39: -8433.1584 | DS39: 0.5 | DT39: -8433.1584 | DU39: -8433.1584 | DV39: -8433.1584 | DW39: -8433.1584 | DY39: 0.5 | DZ39: -8433.1584 | EA39: -8433.1584 | EB39: -8433.1584 | EC39: -8433.1584 | EM39: 0.5 | EN39: -8433.1584 | EO39: -8433.1584 | EP39: -8433.1584 | EQ39: -8433.1584 | ES39: 0.5 | ET39: -8433.1584 | EU39: -8433.1584 | EV39: -8433.1584 | EW39: -8433.1584 | EY39: 0.5 | EZ39: -8433.1584 | FA39: -8433.1584 | FB39: -8433.1584 | FC39: -8433.1584
AO40: 20 | AP40: -22063.43562 | AR40: 500 | AS40: -22063.43562 | AU40: 0.5 | AV40: -22063.43562 | BA40: LIVE | BH40: Total | BJ40: =SUM(BJ34:BJ39) ->  | BK40: =SUM(BK34:BK39) ->  | BL40: =SUM(BL34:BL39) ->  | BM40: =SUM(BM34:BM39) ->  | BO40: Total | BQ40: =SUM(BQ34:BQ39) ->  | BR40: =SUM(BR34:BR39) ->  | CM40: 0.6 | CN40: -105.41448 | CO40: -5.41448 | CP40: 94.58552 | CQ40: 294.58552 | CS40: 0.6 | CT40: -421.65792 | CU40: -321.65792 | CV40: -221.65792 | CW40: -21.65792 | CY40: 0.6 | CZ40: -210.82896 | DA40: -110.82896 | DB40: -10.82896 | DC40: 189.17104 | DM40: 0.6 | DN40: -8433.1584 | DO40: -8433.1584 | DP40: -8433.1584 | DQ40: -8433.1584 | DS40: 0.6 | DT40: -8433.1584 | DU40: -8433.1584 | DV40: -8433.1584 | DW40: -8433.1584 | DY40: 0.6 | DZ40: -8433.1584 | EA40: -8433.1584 | EB40: -8433.1584 | EC40: -8433.1584 | EM40: 0.6 | EN40: -8433.1584 | EO40: -8433.1584 | EP40: -8433.1584 | EQ40: -8433.1584 | ES40: 0.6 | ET40: -8433.1584 | EU40: -8433.1584 | EV40: -8433.1584 | EW40: -8433.1584 | EY40: 0.6 | EZ40: -8433.1584 | FA40: -8433.1584 | FB40: -8433.1584 | FC40: -8433.1584 | FF40: Intervention cost | FG40: Reduction in turnover required to be cost-saving (%)
AO41: =AJ17 -> 4.44 | AP41: =AP29 -> -22063.43562 | AR41: =AJ18 -> 158.28 | AS41: =AS29 -> -22063.43562 | AU41: =AJ19 -> 0.4 | AV41: =AV29 -> -22063.43562 | CM41: 0.7 | CN41: -122.98356 | CO41: -22.98356 | CP41: 77.01644 | CQ41: 277.01644 | CS41: 0.7 | CT41: -491.93424 | CU41: -391.93424 | CV41: -291.93424 | CW41: -91.93424 | CY41: 0.7 | CZ41: -245.96712 | DA41: -145.96712 | DB41: -45.96712 | DC41: 154.03288 | DM41: 0.7 | DN41: -8433.1584 | DO41: -8433.1584 | DP41: -8433.1584 | DQ41: -8433.1584 | DS41: 0.7 | DT41: -8433.1584 | DU41: -8433.1584 | DV41: -8433.1584 | DW41: -8433.1584 | DY41: 0.7 | DZ41: -8433.1584 | EA41: -8433.1584 | EB41: -8433.1584 | EC41: -8433.1584 | EM41: 0.7 | EN41: -8433.1584 | EO41: -8433.1584 | EP41: -8433.1584 | EQ41: -8433.1584 | ES41: 0.7 | ET41: -8433.1584 | EU41: -8433.1584 | EV41: -8433.1584 | EW41: -8433.1584 | EY41: 0.7 | EZ41: -8433.1584 | FA41: -8433.1584 | FB41: -8433.1584 | FC41: -8433.1584
BB42: Year 1 | BC42: Year 2 | BD42: Year 3 | BE42: Year 4 | BF42: Year 5 | CM42: 0.8 | CN42: -140.55264 | CO42: -40.55264 | CP42: 59.44736 | CQ42: 259.44736 | CS42: 0.8 | CT42: -562.21056 | CU42: -462.21056 | CV42: -362.21056 | CW42: -162.21056 | CY42: 0.8 | CZ42: -281.10528 | DA42: -181.10528 | DB42: -81.10528 | DC42: 118.89472 | DM42: 0.8 | DN42: -8433.1584 | DO42: -8433.1584 | DP42: -8433.1584 | DQ42: -8433.1584 | DS42: 0.8 | DT42: -8433.1584 | DU42: -8433.1584 | DV42: -8433.1584 | DW42: -8433.1584 | DY42: 0.8 | DZ42: -8433.1584 | EA42: -8433.1584 | EB42: -8433.1584 | EC42: -8433.1584 | EM42: 0.8 | EN42: -8433.1584 | EO42: -8433.1584 | EP42: -8433.1584 | EQ42: -8433.1584 | ES42: 0.8 | ET42: -8433.1584 | EU42: -8433.1584 | EV42: -8433.1584 | EW42: -8433.1584 | EY42: 0.8 | EZ42: -8433.1584 | FA42: -8433.1584 | FB42: -8433.1584 | FC42: -8433.1584 | FF42: 0 | FG42: Always cost saving
AO43: Productivity | BI43: Cumulative discounted | BP43: Cumulative discounted | CM43: 0.9 | CN43: -158.12172 | CO43: -58.12172 | CP43: 41.87828 | CQ43: 241.87828 | CS43: 0.9 | CT43: -632.48688 | CU43: -532.48688 | CV43: -432.48688 | CW43: -232.48688 | CY43: 0.9 | CZ43: -316.24344 | DA43: -216.24344 | DB43: -116.24344 | DC43: 83.75656 | DM43: 0.9 | DN43: -8433.1584 | DO43: -8433.1584 | DP43: -8433.1584 | DQ43: -8433.1584 | DS43: 0.9 | DT43: -8433.1584 | DU43: -8433.1584 | DV43: -8433.1584 | DW43: -8433.1584 | DY43: 0.9 | DZ43: -8433.1584 | EA43: -8433.1584 | EB43: -8433.1584 | EC43: -8433.1584 | EM43: 0.9 | EN43: -8433.1584 | EO43: -8433.1584 | EP43: -8433.1584 | EQ43: -8433.1584 | ES43: 0.9 | ET43: -8433.1584 | EU43: -8433.1584 | EV43: -8433.1584 | EW43: -8433.1584 | EY43: 0.9 | EZ43: -8433.1584 | FA43: -8433.1584 | FB43: -8433.1584 | FC43: -8433.1584 | FF43: 200 | FG43: Always cost saving
AO44: % affected | AP44: ='Base case'!G19 -> -22063.43562 | AR44: Value of emp | AS44: ='Base case'!G19 -> -22063.43562 | AU44: Increase in prod | AV44: ='Base case'!G19 -> -22063.43562 | BB44: Difference from baseline in year 1 | BC44: Difference from baseline in year 2 | BD44: Difference from baseline in year 3 | BE44: Difference from baseline in year 4 | BF44: Difference from baseline in year 5 | BI44: Year 1 | BJ44: Year 2 | BK44: Year 3 | BL44: Year 4 | BM44: Year 5 | BP44: Year 1 | BQ44: Year 2 | BR44: Year 3 | BS44: Year 4 | BT44: Year 5 | CM44: 1 | CN44: -175.6908 | CO44: -75.6908 | CP44: 24.3092 | CQ44: 224.3092 | CS44: 1 | CT44: -702.7632 | CU44: -602.7632 | CV44: -502.7632 | CW44: -302.7632 | CY44: 1 | CZ44: -351.3816 | DA44: -251.3816 | DB44: -151.3816 | DC44: 48.6184 | DM44: 1 | DN44: -8433.1584 | DO44: -8433.1584 | DP44: -8433.1584 | DQ44: -8433.1584 | DS44: 1 | DT44: -8433.1584 | DU44: -8433.1584 | DV44: -8433.1584 | DW44: -8433.1584 | DY44: 1 | DZ44: -8433.1584 | EA44: -8433.1584 | EB44: -8433.1584 | EC44: -8433.1584 | EM44: 1 | EN44: -8433.1584 | EO44: -8433.1584 | EP44: -8433.1584 | EQ44: -8433.1584 | ES44: 1 | ET44: -8433.1584 | EU44: -8433.1584 | EV44: -8433.1584 | EW44: -8433.1584 | EY44: 1 | EZ44: -8433.1584 | FA44: -8433.1584 | FB44: -8433.1584 | FC44: -8433.1584 | FF44: 400 | FG44: 0.49
AO45: 0 | AP45: -22063.43562 | AR45: 0 | AS45: -22063.43562 | AU45: 0 | AV45: -22063.43562 | BH45: =$D$19 -> Absenteeism (sick leave) | BI45: =BI34 -> 21082.896 | BJ45: =BI45+BJ34 -> 41452.84383 | BK45: 61133.95284 | BL45: 80149.5171 | BM45: 98522.04295 | BO45: =$D$19 -> Absenteeism (sick leave) | BP45: =BP34 -> 12649.7376 | BQ45: =BP45+BQ34 -> 28945.69586 | BR45: =BQ45+BR34 -> 46658.69397 | BS45: 63772.70181 | BT45: 80307.97508 | FF45: 600 | FG45: Cost-saving cannot be achieved
AO46: 0.1 | AP46: -22063.43562 | AR46: 5000 | AS46: -22063.43562 | AU46: 0.001 | AV46: -22063.43562 | BA46: =$D$19 -> Absenteeism (sick leave) | BB46: =CHOOSE($D$136,BB22,BB34,H21) -> 0.4 | BC46: =CHOOSE($D$136,BC22,BC34,I21) -> 0.2 | BD46: 0.1 | BE46: 0.1 | BF46: 0.1 | BH46: =$D$23 -> Productivity | BI46: 1201200 | BJ46: 2361779.71 | BK46: 3483112.763 | BL46: 4566526.341 | BM46: 5613302.745 | BO46: =$D$23 -> Productivity | BP46: =BP35 -> 1201200 | BQ46: =BP46+BQ35 -> 2362940.29 | BR46: 3485394.676 | BS46: 4569891.668 | BT46: 5617714.848 | CK46: =CF21 -> 316.56 | CM46: 0 | CN46: 0 | CO46: 100 | CP46: 200 | CQ46: 400 | CS46: 0 | CT46: 0 | CU46: 100 | CV46: 200 | CW46: 400 | CY46: 0 | CZ46: 0 | DA46: 100 | DB46: 200 | DC46: 400 | DM46: 0 | DN46: -8433.1584 | DO46: -8433.1584 | DP46: -8433.1584 | DQ46: -8433.1584 | DS46: 0 | DT46: -8433.1584 | DU46: -8433.1584 | DV46: -8433.1584 | DW46: -8433.1584 | DY46: 0 | DZ46: -8433.1584 | EA46: -8433.1584 | EB46: -8433.1584 | EC46: -8433.1584 | EL46: Reduction in turnover | EM46: 0 | EN46: -8433.1584 | EO46: -8433.1584 | EP46: -8433.1584 | EQ46: -8433.1584 | ES46: 0 | ET46: -8433.1584 | EU46: -8433.1584 | EV46: -8433.1584 | EW46: -8433.1584 | EY46: 0 | EZ46: -8433.1584 | FA46: -8433.1584 | FB46: -8433.1584 | FC46: -8433.1584
AO47: 0.2 | AP47: -22063.43562 | AR47: 10000 | AS47: -22063.43562 | AU47: 0.002 | AV47: -22063.43562 | BA47: =$D$23 -> Productivity | BB47: =CHOOSE($D$136,BB23,BB35,H22) -> 0 | BC47: 0.001 | BD47: 0.001 | BE47: 0.001 | BF47: 0.001 | BH47: =$D$27 -> Staff turnover | BI47: 62561.0472 | BJ47: 123006.5034 | BK47: 181407.9104 | BL47: 237834.3906 | BM47: 292352.7289 | BO47: =$D$27 -> Staff turnover | BP47: 76637.28282 | BQ47: =BP47+BQ36 -> 147660.6939 | BR47: 216282.3471 | BS47: 282583.4613 | BT47: 346642.5089 | CM47: 0.1 | CN47: -35.13816 | CO47: 64.86184 | CP47: 164.86184 | CQ47: 364.86184 | CS47: 0.1 | CT47: -35.13816 | CU47: 64.86184 | CV47: 164.86184 | CW47: 364.86184 | CY47: 0.1 | CZ47: -70.27632 | DA47: 29.72368 | DB47: 129.72368 | DC47: 329.72368 | DL47: =DH21 -> 80080 | DM47: 0.1 | DN47: -8433.1584 | DO47: -8433.1584 | DP47: -8433.1584 | DQ47: -8433.1584 | DS47: 0.1 | DT47: -8433.1584 | DU47: -8433.1584 | DV47: -8433.1584 | DW47: -8433.1584 | DY47: 0.1 | DZ47: -8433.1584 | EA47: -8433.1584 | EB47: -8433.1584 | EC47: -8433.1584 | EK47: =EH21 -> 30667.18 | EM47: 0.1 | EN47: -8433.1584 | EO47: -8433.1584 | EP47: -8433.1584 | EQ47: -8433.1584 | ES47: 0.1 | ET47: -8433.1584 | EU47: -8433.1584 | EV47: -8433.1584 | EW47: -8433.1584 | EY47: 0.1 | EZ47: -8433.1584 | FA47: -8433.1584 | FB47: -8433.1584 | FC47: -8433.1584
AO48: 0.3 | AP48: -22063.43562 | AR48: 15000 | AS48: -22063.43562 | AU48: 0.003 | AV48: -22063.43562 | BA48: =$D$27 -> Staff turnover | BB48: =CHOOSE($D$136,BB24,BB36,H23) -> -0.225 | BC48: -0.175 | BD48: -0.175 | BE48: -0.175 | BF48: -0.175 | BH48: =$D$31 -> 0 | BO48: =$D$31 -> 0 | CM48: 0.2 | CN48: -70.27632 | CO48: 29.72368 | CP48: 129.72368 | CQ48: 329.72368 | CS48: 0.2 | CT48: -70.27632 | CU48: 29.72368 | CV48: 129.72368 | CW48: 329.72368 | CY48: 0.2 | CZ48: -140.55264 | DA48: -40.55264 | DB48: 59.44736 | DC48: 259.44736 | DM48: 0.2 | DN48: -8433.1584 | DO48: -8433.1584 | DP48: -8433.1584 | DQ48: -8433.1584 | DS48: 0.2 | DT48: -8433.1584 | DU48: -8433.1584 | DV48: -8433.1584 | DW48: -8433.1584 | DY48: 0.2 | DZ48: -8433.1584 | EA48: -8433.1584 | EB48: -8433.1584 | EC48: -8433.1584 | EM48: 0.2 | EN48: -8433.1584 | EO48: -8433.1584 | EP48: -8433.1584 | EQ48: -8433.1584 | ES48: 0.2 | ET48: -8433.1584 | EU48: -8433.1584 | EV48: -8433.1584 | EW48: -8433.1584 | EY48: 0.2 | EZ48: -8433.1584 | FA48: -8433.1584 | FB48: -8433.1584 | FC48: -8433.1584
AO49: 0.4 | AP49: -22063.43562 | AR49: 20000 | AS49: -22063.43562 | AU49: 0.004 | AV49: -22063.43562 | BA49: =$D$31 -> 0 | BB49: =CHOOSE($D$136,BB25,BB37,H24) -> 0.1 | BC49: 0.5 | BD49: 0.5 | BE49: 0.5 | BF49: 0.5 | BH49: =$D$35 -> 0 | BI49: 0 | BJ49: 0 | BK49: 0 | BL49: 0 | BM49: 0 | BO49: =$D$35 -> 0 | BP49: 0 | BQ49: 0 | BR49: 0 | BS49: 0 | BT49: 0 | CM49: 0.3 | CN49: -105.41448 | CO49: -5.41448 | CP49: 94.58552 | CQ49: 294.58552 | CS49: 0.3 | CT49: -105.41448 | CU49: -5.41448 | CV49: 94.58552 | CW49: 294.58552 | CY49: 0.3 | CZ49: -210.82896 | DA49: -110.82896 | DB49: -10.82896 | DC49: 189.17104 | DM49: 0.3 | DN49: -8433.1584 | DO49: -8433.1584 | DP49: -8433.1584 | DQ49: -8433.1584 | DS49: 0.3 | DT49: -8433.1584 | DU49: -8433.1584 | DV49: -8433.1584 | DW49: -8433.1584 | DY49: 0.3 | DZ49: -8433.1584 | EA49: -8433.1584 | EB49: -8433.1584 | EC49: -8433.1584 | EM49: 0.3 | EN49: -8433.1584 | EO49: -8433.1584 | EP49: -8433.1584 | EQ49: -8433.1584 | ES49: 0.3 | ET49: -8433.1584 | EU49: -8433.1584 | EV49: -8433.1584 | EW49: -8433.1584 | EY49: 0.3 | EZ49: -8433.1584 | FA49: -8433.1584 | FB49: -8433.1584 | FC49: -8433.1584
AO50: 0.5 | AP50: -22063.43562 | AR50: 25000 | AS50: -22063.43562 | AU50: 0.005 | AV50: -22063.43562 | BA50: =$D$35 -> 0 | BB50: =CHOOSE($D$136,BB26,BB38,H25) -> 0.1 | BC50: 0.1 | BD50: 0.1 | BE50: 0.1 | BF50: 0.1 | BH50: Intervention cost | BI50: 0 | BJ50: 0 | BK50: 0 | BL50: 0 | BM50: 0 | BO50: Intervention cost | BP50: =BP39 -> 6000 | BQ50: =BP50+BQ39 -> 10347.82609 | BR50: 14548.62424 | BS50: 18607.36641 | BT50: 22528.85644 | CM50: 0.4 | CN50: -140.55264 | CO50: -40.55264 | CP50: 59.44736 | CQ50: 259.44736 | CS50: 0.4 | CT50: -140.55264 | CU50: -40.55264 | CV50: 59.44736 | CW50: 259.44736 | CY50: 0.4 | CZ50: -281.10528 | DA50: -181.10528 | DB50: -81.10528 | DC50: 118.89472 | DM50: 0.4 | DN50: -8433.1584 | DO50: -8433.1584 | DP50: -8433.1584 | DQ50: -8433.1584 | DS50: 0.4 | DT50: -8433.1584 | DU50: -8433.1584 | DV50: -8433.1584 | DW50: -8433.1584 | DY50: 0.4 | DZ50: -8433.1584 | EA50: -8433.1584 | EB50: -8433.1584 | EC50: -8433.1584 | EM50: 0.4 | EN50: -8433.1584 | EO50: -8433.1584 | EP50: -8433.1584 | EQ50: -8433.1584 | ES50: 0.4 | ET50: -8433.1584 | EU50: -8433.1584 | EV50: -8433.1584 | EW50: -8433.1584 | EY50: 0.4 | EZ50: -8433.1584 | FA50: -8433.1584 | FB50: -8433.1584 | FC50: -8433.1584
AO51: 0.6 | AP51: -22063.43562 | AR51: 30000 | AS51: -22063.43562 | AU51: 0.006 | AV51: -22063.43562 | BH51: Total cumulative | BO51: Total cumulative | BP51: =BP40 ->  | BQ51: =BP51+BQ40 ->  | BR51: =BQ51+BR40 ->  | BS51: =BR51+BS40 ->  | BT51: =BS51+BT40 ->  | CM51: 0.5 | CN51: -175.6908 | CO51: -75.6908 | CP51: 24.3092 | CQ51: 224.3092 | CS51: 0.5 | CT51: -175.6908 | CU51: -75.6908 | CV51: 24.3092 | CW51: 224.3092 | CY51: 0.5 | CZ51: -351.3816 | DA51: -251.3816 | DB51: -151.3816 | DC51: 48.6184 | DM51: 0.5 | DN51: -8433.1584 | DO51: -8433.1584 | DP51: -8433.1584 | DQ51: -8433.1584 | DS51: 0.5 | DT51: -8433.1584 | DU51: -8433.1584 | DV51: -8433.1584 | DW51: -8433.1584 | DY51: 0.5 | DZ51: -8433.1584 | EA51: -8433.1584 | EB51: -8433.1584 | EC51: -8433.1584 | EM51: 0.5 | EN51: -8433.1584 | EO51: -8433.1584 | EP51: -8433.1584 | EQ51: -8433.1584 | ES51: 0.5 | ET51: -8433.1584 | EU51: -8433.1584 | EV51: -8433.1584 | EW51: -8433.1584 | EY51: 0.5 | EZ51: -8433.1584 | FA51: -8433.1584 | FB51: -8433.1584 | FC51: -8433.1584
AO52: 0.7 | AP52: -22063.43562 | AR52: 35000 | AS52: -22063.43562 | AU52: 0.007 | AV52: -22063.43562 | CM52: 0.6 | CN52: -210.82896 | CO52: -110.82896 | CP52: -10.82896 | CQ52: 189.17104 | CS52: 0.6 | CT52: -210.82896 | CU52: -110.82896 | CV52: -10.82896 | CW52: 189.17104 | CY52: 0.6 | CZ52: -421.65792 | DA52: -321.65792 | DB52: -221.65792 | DC52: -21.65792 | DM52: 0.6 | DN52: -8433.1584 | DO52: -8433.1584 | DP52: -8433.1584 | DQ52: -8433.1584 | DS52: 0.6 | DT52: -8433.1584 | DU52: -8433.1584 | DV52: -8433.1584 | DW52: -8433.1584 | DY52: 0.6 | DZ52: -8433.1584 | EA52: -8433.1584 | EB52: -8433.1584 | EC52: -8433.1584 | EM52: 0.6 | EN52: -8433.1584 | EO52: -8433.1584 | EP52: -8433.1584 | EQ52: -8433.1584 | ES52: 0.6 | ET52: -8433.1584 | EU52: -8433.1584 | EV52: -8433.1584 | EW52: -8433.1584 | EY52: 0.6 | EZ52: -8433.1584 | FA52: -8433.1584 | FB52: -8433.1584 | FC52: -8433.1584
AO53: 0.8 | AP53: -22063.43562 | AR53: 40000 | AS53: -22063.43562 | AU53: 0.008 | AV53: -22063.43562 | CM53: 0.7 | CN53: -245.96712 | CO53: -145.96712 | CP53: -45.96712 | CQ53: 154.03288 | CS53: 0.7 | CT53: -245.96712 | CU53: -145.96712 | CV53: -45.96712 | CW53: 154.03288 | CY53: 0.7 | CZ53: -491.93424 | DA53: -391.93424 | DB53: -291.93424 | DC53: -91.93424 | DM53: 0.7 | DN53: -8433.1584 | DO53: -8433.1584 | DP53: -8433.1584 | DQ53: -8433.1584 | DS53: 0.7 | DT53: -8433.1584 | DU53: -8433.1584 | DV53: -8433.1584 | DW53: -8433.1584 | DY53: 0.7 | DZ53: -8433.1584 | EA53: -8433.1584 | EB53: -8433.1584 | EC53: -8433.1584 | EM53: 0.7 | EN53: -8433.1584 | EO53: -8433.1584 | EP53: -8433.1584 | EQ53: -8433.1584 | ES53: 0.7 | ET53: -8433.1584 | EU53: -8433.1584 | EV53: -8433.1584 | EW53: -8433.1584 | EY53: 0.7 | EZ53: -8433.1584 | FA53: -8433.1584 | FB53: -8433.1584 | FC53: -8433.1584
AO54: 0.9 | AP54: -22063.43562 | AR54: 45000 | AS54: -22063.43562 | AU54: 0.009 | AV54: -22063.43562 | CM54: 0.8 | CN54: -281.10528 | CO54: -181.10528 | CP54: -81.10528 | CQ54: 118.89472 | CS54: 0.8 | CT54: -281.10528 | CU54: -181.10528 | CV54: -81.10528 | CW54: 118.89472 | CY54: 0.8 | CZ54: -562.21056 | DA54: -462.21056 | DB54: -362.21056 | DC54: -162.21056 | DM54: 0.8 | DN54: -8433.1584 | DO54: -8433.1584 | DP54: -8433.1584 | DQ54: -8433.1584 | DS54: 0.8 | DT54: -8433.1584 | DU54: -8433.1584 | DV54: -8433.1584 | DW54: -8433.1584 | DY54: 0.8 | DZ54: -8433.1584 | EA54: -8433.1584 | EB54: -8433.1584 | EC54: -8433.1584 | EM54: 0.8 | EN54: -8433.1584 | EO54: -8433.1584 | EP54: -8433.1584 | EQ54: -8433.1584 | ES54: 0.8 | ET54: -8433.1584 | EU54: -8433.1584 | EV54: -8433.1584 | EW54: -8433.1584 | EY54: 0.8 | EZ54: -8433.1584 | FA54: -8433.1584 | FB54: -8433.1584 | FC54: -8433.1584
AO55: 1 | AP55: -22063.43562 | AR55: 50000 | AS55: -22063.43562 | AU55: 0.01 | AV55: -22063.43562 | CM55: 0.9 | CN55: -316.24344 | CO55: -216.24344 | CP55: -116.24344 | CQ55: 83.75656 | CS55: 0.9 | CT55: -316.24344 | CU55: -216.24344 | CV55: -116.24344 | CW55: 83.75656 | CY55: 0.9 | CZ55: -632.48688 | DA55: -532.48688 | DB55: -432.48688 | DC55: -232.48688 | DM55: 0.9 | DN55: -8433.1584 | DO55: -8433.1584 | DP55: -8433.1584 | DQ55: -8433.1584 | DS55: 0.9 | DT55: -8433.1584 | DU55: -8433.1584 | DV55: -8433.1584 | DW55: -8433.1584 | DY55: 0.9 | DZ55: -8433.1584 | EA55: -8433.1584 | EB55: -8433.1584 | EC55: -8433.1584 | EM55: 0.9 | EN55: -8433.1584 | EO55: -8433.1584 | EP55: -8433.1584 | EQ55: -8433.1584 | ES55: 0.9 | ET55: -8433.1584 | EU55: -8433.1584 | EV55: -8433.1584 | EW55: -8433.1584 | EY55: 0.9 | EZ55: -8433.1584 | FA55: -8433.1584 | FB55: -8433.1584 | FC55: -8433.1584
AO56: =AJ22 -> 1 | AP56: =AP44 -> -22063.43562 | AR56: =AJ23 -> 40040 | AS56: =AS44 -> -22063.43562 | AU56: =AJ24 -> 0 | AV56: =AV44 -> -22063.43562 | CM56: 1 | CN56: -351.3816 | CO56: -251.3816 | CP56: -151.3816 | CQ56: 48.6184 | CS56: 1 | CT56: -351.3816 | CU56: -251.3816 | CV56: -151.3816 | CW56: 48.6184 | CY56: 1 | CZ56: -702.7632 | DA56: -602.7632 | DB56: -502.7632 | DC56: -302.7632 | DM56: 1 | DN56: -8433.1584 | DO56: -8433.1584 | DP56: -8433.1584 | DQ56: -8433.1584 | DS56: 1 | DT56: -8433.1584 | DU56: -8433.1584 | DV56: -8433.1584 | DW56: -8433.1584 | DY56: 1 | DZ56: -8433.1584 | EA56: -8433.1584 | EB56: -8433.1584 | EC56: -8433.1584 | EM56: 1 | EN56: -8433.1584 | EO56: -8433.1584 | EP56: -8433.1584 | EQ56: -8433.1584 | ES56: 1 | ET56: -8433.1584 | EU56: -8433.1584 | EV56: -8433.1584 | EW56: -8433.1584 | EY56: 1 | EZ56: -8433.1584 | FA56: -8433.1584 | FB56: -8433.1584 | FC56: -8433.1584
AO58: Staff turnover
AO59: Anunal rate of turnover | AP59: ='Base case'!G19 -> -22063.43562 | AR59: Cost per case | AS59: ='Base case'!G19 -> -22063.43562 | AU59: Reduction in turnover | AV59: ='Base case'!G19 -> -22063.43562
AO60: 0 | AP60: -22063.43562 | AR60: 0 | AS60: -22063.43562 | AU60: 0 | AV60: -22063.43562 | CM60: Max | CN60: =MAXA(CN22:CQ32,CT22:CW32,CZ22:DC32,CN34:CQ44,CT34:CW44,CZ34:DC44,CN46:CQ56,CT46:CW56,CZ46:DC56) -> 400 | CO60: 0 | DM60: Max | DN60: =MAXA(DN22:DQ32,DT22:DW32,DZ22:EC32,DZ34:EC44,DT34:DW44,DN34:DQ44,DN46:DQ56,DT46:DW56,DZ46:EC56) -> -8433.1584 | DO60: 0 | EM60: Max | EN60: =MAXA(EN22:EQ32,ET22:EW32,EZ22:FC32,EZ34:FC44,ET34:EW44,EN34:EQ44,EN46:EQ56,ET46:EW56,EZ46:FC56) -> -8433.1584 | EO60: 0
AO61: 0.05 | AP61: -22063.43562 | AR61: 5000 | AS61: -22063.43562 | AU61: 0.05 | AV61: -22063.43562 | CM61: Min | CN61: =MINA(CN22:CQ32,CT22:CW32,CZ22:DC32,CN34:CQ44,CT34:CW44,CZ34:DC44,CN46:CQ56,CT46:CW56,CZ46:DC56) -> -702.7632 | CO61: 0 | DM61: Min | DN61: =MINA(DN22:DQ32,DT22:DW32,DZ22:EC32,DZ34:EC44,DT34:DW44,DN34:DQ44,DN46:DQ56,DT46:DW56,DZ46:EC56) -> -8433.1584 | DO61: 0 | EM61: Min | EN61: =MINA(EN22:EQ32,ET22:EW32,EZ22:FC32,EZ34:FC44,ET34:EW44,EN34:EQ44,EN46:EQ56,ET46:EW56,EZ46:FC56) -> -8433.1584 | EO61: 0
AO62: 0.1 | AP62: -22063.43562 | AR62: 10000 | AS62: -22063.43562 | AU62: 0.1 | AV62: -22063.43562
AO63: 0.15 | AP63: -22063.43562 | AR63: 15000 | AS63: -22063.43562 | AU63: 0.15 | AV63: -22063.43562
AO64: 0.2 | AP64: -22063.43562 | AR64: 20000 | AS64: -22063.43562 | AU64: 0.2 | AV64: -22063.43562
AO65: 0.25 | AP65: -22063.43562 | AR65: 25000 | AS65: -22063.43562 | AU65: 0.25 | AV65: -22063.43562
AO66: 0.3 | AP66: -22063.43562 | AR66: 30000 | AS66: -22063.43562 | AU66: 0.3 | AV66: -22063.43562
AO67: 0.35 | AP67: -22063.43562 | AR67: 35000 | AS67: -22063.43562 | AU67: 0.35 | AV67: -22063.43562
AO68: 0.4 | AP68: -22063.43562 | AR68: 40000 | AS68: -22063.43562 | AU68: 0.4 | AV68: -22063.43562
AO69: 0.45 | AP69: -22063.43562 | AR69: 45000 | AS69: -22063.43562 | AU69: 0.45 | AV69: -22063.43562
AO70: 0.5 | AP70: -22063.43562 | AR70: 50000 | AS70: -22063.43562 | AU70: 0.5 | AV70: -22063.43562
AO71: =AJ27 -> 0.136 | AP71: =AP59 -> -22063.43562 | AR71: =AJ29 -> 15333.59 | AS71: =AS59 -> -22063.43562 | AU71: =AJ28 -> -0.225 | AV71: =AV59 -> -22063.43562
AO73: Healthcare costs
AO74: % affected | AP74: ='Base case'!G19 -> -22063.43562 | AR74: Cost per person | AS74: ='Base case'!G19 -> -22063.43562 | AU74: Reduction in healthcare use | AV74: ='Base case'!G19 -> -22063.43562
AO75: 0 | AP75: -22063.43562 | AR75: 0 | AS75: -22063.43562 | AU75: 0 | AV75: -22063.43562
AO76: 0.05 | AP76: -22063.43562 | AR76: 200 | AS76: -22063.43562 | AU76: 0.1 | AV76: -22063.43562
AO77: 0.1 | AP77: -22063.43562 | AR77: 400 | AS77: -22063.43562 | AU77: 0.2 | AV77: -22063.43562
AO78: 0.15 | AP78: -22063.43562 | AR78: 600 | AS78: -22063.43562 | AU78: 0.3 | AV78: -22063.43562
AO79: 0.2 | AP79: -22063.43562 | AR79: 800 | AS79: -22063.43562 | AU79: 0.4 | AV79: -22063.43562
AO80: 0.25 | AP80: -22063.43562 | AR80: 1000 | AS80: -22063.43562 | AU80: 0.5 | AV80: -22063.43562
AO81: 0.3 | AP81: -22063.43562 | AR81: 1200 | AS81: -22063.43562 | AU81: 0.6 | AV81: -22063.43562
AO82: 0.35 | AP82: -22063.43562 | AR82: 1400 | AS82: -22063.43562 | AU82: 0.7 | AV82: -22063.43562
AO83: 0.4 | AP83: -22063.43562 | AR83: 1600 | AS83: -22063.43562 | AU83: 0.8 | AV83: -22063.43562
AO84: 0.45 | AP84: -22063.43562 | AR84: 1800 | AS84: -22063.43562 | AU84: 0.9 | AV84: -22063.43562
AO85: 0.5 | AP85: -22063.43562 | AR85: 2000 | AS85: -22063.43562 | AU85: 1 | AV85: -22063.43562
AO86: =AJ32 -> 0 | AP86: =AP74 -> -22063.43562 | AR86: =AJ34 ->  | AS86: =AS74 -> -22063.43562 | AU86: =AJ33 -> 0.1 | AV86: =AV74 -> -22063.43562
AO88: Other societal costs
AO89: % affected | AP89: ='Base case'!G19 -> -22063.43562 | AR89: Cost per person | AS89: ='Base case'!G19 -> -22063.43562 | AU89: Reduction in societal costs | AV89: ='Base case'!G19 -> -22063.43562
AO90: 0 | AP90: -22063.43562 | AR90: 0 | AS90: -22063.43562 | AU90: 0 | AV90: -22063.43562
AO91: 0.05 | AP91: -22063.43562 | AR91: 1000 | AS91: -22063.43562 | AU91: 0.05 | AV91: -22063.43562
AO92: 0.1 | AP92: -22063.43562 | AR92: 2000 | AS92: -22063.43562 | AU92: 0.1 | AV92: -22063.43562
AO93: 0.15 | AP93: -22063.43562 | AR93: 3000 | AS93: -22063.43562 | AU93: 0.15 | AV93: -22063.43562
AO94: 0.2 | AP94: -22063.43562 | AR94: 4000 | AS94: -22063.43562 | AU94: 0.2 | AV94: -22063.43562
AO95: 0.25 | AP95: -22063.43562 | AR95: 5000 | AS95: -22063.43562 | AU95: 0.25 | AV95: -22063.43562
AO96: 0.3 | AP96: -22063.43562 | AR96: 6000 | AS96: -22063.43562 | AU96: 0.3 | AV96: -22063.43562
AO97: 0.35 | AP97: -22063.43562 | AR97: 7000 | AS97: -22063.43562 | AU97: 0.35 | AV97: -22063.43562
AO98: 0.4 | AP98: -22063.43562 | AR98: 8000 | AS98: -22063.43562 | AU98: 0.4 | AV98: -22063.43562
AO99: 0.45 | AP99: -22063.43562 | AR99: 9000 | AS99: -22063.43562 | AU99: 0.45 | AV99: -22063.43562
AO100: 0.5 | AP100: -22063.43562 | AR100: 10000 | AS100: -22063.43562 | AU100: 0.5 | AV100: -22063.43562
AO101: =AJ37 -> 0 | AP101: =AP89 -> -22063.43562 | AR101: =AJ39 -> 0 | AS101: =AS89 -> -22063.43562 | AU101: =AJ38 -> 0.1 | AV101: =AV89 -> -22063.43562
AO103: Difference in effectiveness
AO104: =CONCATENATE("Reduction in ",AL102) -> Reduction in | AP104: ='Base case'!G19 -> -22063.43562 | AR104: =CONCATENATE("Increase in ",AL106) -> Increase in | AS104: ='Base case'!G19 -> -22063.43562 | AU104: =CONCATENATE("Reduction in ",AL110) -> Reduction in | AV104: ='Base case'!G19 -> -22063.43562 | AX104: =CONCATENATE("Reduction in ",AL114) -> Reduction in | AY104: ='Base case'!G19 -> -22063.43562 | BA104: =CONCATENATE("Reduction in ",AL118) -> Reduction in | BB104: ='Base case'!G19 -> -22063.43562
AO105: 0.5 | AP105: -22063.43562 | AR105: 0.5 | AS105: -22063.43562 | AU105: 0.5 | AV105: -22063.43562 | AX105: 0.5 | AY105: -22063.43562 | BA105: 0.5 | BB105: -22063.43562
AO106: 0.6 | AP106: -22063.43562 | AR106: 0.6 | AS106: -22063.43562 | AU106: 0.6 | AV106: -22063.43562 | AX106: 0.6 | AY106: -22063.43562 | BA106: 0.6 | BB106: -22063.43562
AO107: 0.7 | AP107: -22063.43562 | AR107: 0.7 | AS107: -22063.43562 | AU107: 0.7 | AV107: -22063.43562 | AX107: 0.7 | AY107: -22063.43562 | BA107: 0.7 | BB107: -22063.43562
AO108: 0.8 | AP108: -22063.43562 | AR108: 0.8 | AS108: -22063.43562 | AU108: 0.8 | AV108: -22063.43562 | AX108: 0.8 | AY108: -22063.43562 | BA108: 0.8 | BB108: -22063.43562
AO109: 0.9 | AP109: -22063.43562 | AR109: 0.9 | AS109: -22063.43562 | AU109: 0.9 | AV109: -22063.43562 | AX109: 0.9 | AY109: -22063.43562 | BA109: 0.9 | BB109: -22063.43562
AO110: 1 | AP110: -22063.43562 | AR110: 1 | AS110: -22063.43562 | AU110: 1 | AV110: -22063.43562 | AX110: 1 | AY110: -22063.43562 | BA110: 1 | BB110: -22063.43562
AO111: 1.1 | AP111: -22063.43562 | AR111: 1.1 | AS111: -22063.43562 | AU111: 1.1 | AV111: -22063.43562 | AX111: 1.1 | AY111: -22063.43562 | BA111: 1.1 | BB111: -22063.43562
AO112: 1.2 | AP112: -22063.43562 | AR112: 1.2 | AS112: -22063.43562 | AU112: 1.2 | AV112: -22063.43562 | AX112: 1.2 | AY112: -22063.43562 | BA112: 1.2 | BB112: -22063.43562
AO113: 1.3 | AP113: -22063.43562 | AR113: 1.3 | AS113: -22063.43562 | AU113: 1.3 | AV113: -22063.43562 | AX113: 1.3 | AY113: -22063.43562 | BA113: 1.3 | BB113: -22063.43562
AO114: 1.4 | AP114: -22063.43562 | AR114: 1.4 | AS114: -22063.43562 | AU114: 1.4 | AV114: -22063.43562 | AX114: 1.4 | AY114: -22063.43562 | BA114: 1.4 | BB114: -22063.43562
AO115: 1.5 | AP115: -22063.43562 | AR115: 1.5 | AS115: -22063.43562 | AU115: 1.5 | AV115: -22063.43562 | AX115: 1.5 | AY115: -22063.43562 | BA115: 1.5 | BB115: -22063.43562
D116: Include? | AO116: =H28 -> 0.9 | AP116: =AP104 -> -22063.43562 | AR116: =H29 -> 0.9 | AS116: =AS104 -> -22063.43562 | AU116: =H30 -> 0.9 | AV116: =AV104 -> -22063.43562 | AX116: =H31 -> 0.9 | AY116: =AY104 -> -22063.43562 | BA116: =H32 -> 0.9 | BB116: =BB104 -> -22063.43562
D117: Absenteeism | E117: TRUE | G117: =IF(E117=TRUE,1,0) -> 1 | J117: Calcs
D118: Productivity | E118: TRUE | G118: =IF(E118=TRUE,1,0) -> 1 | J118: year 1 | K118: year 2
D119: Staff turnover | E119: TRUE | G119: 1 | I119: Baseline | J119: after | K119: after
D120: Health care costs | E120: FALSE | G120: 0 | I120: =E14*E20*E21 -> 21082.896 | J120: =I120*(1-H21) -> 12649.7376 | K120: =J120*(1-I21) -> 10119.79008
D121: Societal costs | E121: FALSE | G121: 0
D125: 1 year
D126: 2 years
D127: 3 years
D128: 4 years
D129: 5 years
D130: 1
D132: Effectiveness method | E132: For IF
D133: =IF($D$130=1,"N/A for one year time horizon",E133) -> N/A for one year time horizon | E133: Same effectiveness each year
D134: =IF($D$130=1,"N/A for one year time horizon",E134) -> N/A for one year time horizon | E134: % difference in effectiveness each year
D135: N/A for one year time horizon | E135: User input effectiveness each year
D136: 3
D217: Number of days lost per person (absenteeism)
D219: 16-24 | E219: 0.012
D220: 25-34 | E220: 0.015
D221: 35-49 | E221: 0.02
D222: 50-64 | E222: 0.028
D223: 65+ | E223: 0.023
D225: http://www.ons.gov.uk/ons/dcp171778_412021.pdf
E226: Number employed (000s)
D227: 16-65 | E227: 29894 | F227: =E227/E229 -> 0.9632660953 | G227: =AVERAGE(E219:E222) -> 0.01875
D228: 65+ | E228: 1140 | F228: =E228/E229 -> 0.03673390475 | G228: =E223 -> 0.023
E229: =SUM(E227:E228) -> 31034 | F229: =SUM(F227:F228) -> 1 | G229: =SUMPRODUCT(G227:G228,E227:E228)/SUM(E227:E228) -> 0.0189061191
G230: =253*G229 -> 4.783248131
E233: CPI
D234: 2007 Q1 | E234: 103.7
D235: 2015 Dec | E235: 128.5
E236: =E235/E234 -> 1.239151398
E237: =11625*E236 -> 14405.135
E239: =528*52 -> 27456

Sheet Inputs (LTSA)
E7: Long-term sickness absence
D10: Select number of years | G10: Type of sickness absence | AI10: Slider chart | AO10: Sensitivity analysis
AJ11: LIVE | AK11: Spin button
D12: Effectiveness input method | AI12: No of employees | AJ12: =IF('Base case'!$E$126=1,'Inputs (LTSA)'!AK12,'Inputs (LTSA)'!E14) -> 30 | AK12: 1 | AR12: Scenario analysis - baseline absenteeism
AO13: Cost of int. | AP13: ='Base case'!G19 -> -22063.43562 | AR13: No. of days | AS13: ='Base case'!G19 -> -22063.43562
D14: Number of employees | E14: 30 | AI14: Cost of intervention per person | AJ14: =IF('Base case'!$E$126=1,'Inputs (LTSA)'!AK14,'Inputs (LTSA)'!H17) -> 1000 | AK14: 200 | AO14: 0 | AP14: -52063.43562 | AR14: 4.78 | AS14: 6844.82358 | BA14: Drop down effectiveness options
AO15: 50 | AP15: -50563.43562 | AR15: 7.58 | AS15: 1526.61558 | BH15: Calculations
H16: Year 1 | I16: Year 2 | J16: Year 3 | K16: Year 4 | L16: Year 5 | AL16: Spin button default | AO16: 100 | AP16: -49063.43562 | AR16: 12.5 | AS16: -7818.23562 | BA16: Option 1 - same effectiveness each year
D17: Annual discount rate | E17: 0.035 | G17: Cost of intervention per person | H17: 1000 | I17: 750 | J17: 750 | K17: 750 | L17: 750 | AI17: Number of days lost per person | AJ17: =IF('Base case'!$E$126=1,'Inputs (LTSA)'!AK17,'Inputs (LTSA)'!E20) -> 20 | AK17: 4.44 | AO17: 150 | AP17: -47563.43562 | AR17: 14.1 | AS17: -10857.21162 | BH17: Calculations - before intervention | BO17: Calculations - after intervention | BW17: Four way | CC17: Absenteeism | DE17: Productivity | EE17: Staff turnover
AI18: Cost of absenteeism per day | AJ18: =IF('Base case'!$E$126=1,'Inputs (LTSA)'!AK18,'Inputs (LTSA)'!E21) -> 158.28 | AK18: 158.28 | AO18: 200 | AP18: -46063.43562 | AR18: 16.6 | AS18: -15605.61162 | BB18: Year 1 | BC18: Year 2 | BD18: Year 3 | BE18: Year 4 | BF18: Year 5 | EM18: =EF23 -> 0.068 | ES18: =EG23 -> 0.136 | EY18: =EH23 -> 0.272
D19: Absenteeism (sick leave) | E19: Baseline | H19: Difference from baseline in year 1 | I19: Difference from baseline in year 2 | J19: Difference from baseline in year 3 | K19: Difference from baseline in year 4 | L19: Difference from baseline in year 5 | AI19: Reduction in absenteeism | AJ19: =IF('Base case'!$E$126=1,('Inputs (LTSA)'!AK19/100),'Inputs (LTSA)'!H21) -> 0.4 | AK19: 40 | AL19: =AJ19*100 -> 40 | AO19: 250 | AP19: -44563.43562 | AR19: 17.2 | AS19: -16745.22762 | BI19: Year 1 | BJ19: Year 2 | BK19: Year 3 | BL19: Year 4 | BM19: Year 5 | BP19: Year 1 | BQ19: Year 2 | BR19: Year 3 | BS19: Year 4 | BT19: Year 5 | BW19: Absenteeism | CC19: Cost of intervention per person | CD19: ='Four-way'!M8 -> 0 | CE19: ='Four-way'!N8 -> 100 | CF19: ='Four-way'!O8 -> 200 | CG19: ='Four-way'!P8 -> 400 | CL19: Cost of absenteeism | CM19: =CD23 -> 15 | CS19: =CE23 -> 30 | CY19: =CF23 -> 60 | DE19: Cost of intervention per person | DF19: ='Four-way Prod'!M8 -> 0 | DG19: ='Four-way Prod'!N8 -> 100 | DH19: ='Four-way Prod'!O8 -> 200 | DI19: ='Four-way Prod'!P8 -> 400 | EE19: Cost of intervention per person | EF19: ='Four-way Turnover'!M8 -> 0 | EG19: ='Four-way Turnover'!N8 -> 155.5 | EH19: ='Four-way Turnover'!O8 -> 311 | EI19: ='Four-way Turnover'!P8 -> 622 | EM19: Staff turnover
D20: Number of days lost per person | E20: 20 | AO20: 300 | AP20: -43063.43562 | BB20: Difference from baseline in year 1 | BC20: Difference from baseline in year 2 | BD20: Difference from baseline in year 3 | BE20: Difference from baseline in year 4 | BF20: Difference from baseline in year 5 | CE20: Basecase | CM20: Absenteeism | DG20: Basecase | DM20: Productivity | EG20: Basecase | EN20: Cost of intervention per person | ET20: Cost of intervention per person | EZ20: Cost of intervention per person
D21: Cost of absenteeism per day | E21: 158.28 | G21: =CONCATENATE("Reduction in ",D19) -> Reduction in Absenteeism (sick leave) | H21: 0.4 | I21: 0.2 | J21: 0.1 | K21: 0.1 | L21: 0.1 | AO21: 350 | AP21: -41563.43562 | BI21: Costs after in year 1 | BJ21: Costs after in year 2 | BK21: Costs after in year 3 | BL21: Costs after in year 4 | BM21: Costs after in year 5 | BP21: Costs after in year 1 | BQ21: Costs after in year 2 | BR21: Costs after in year 3 | BS21: Costs after in year 4 | BT21: Costs after in year 5 | BX21: Two way table with percentage reduction on vertical and price of intervention on horizontal | CC21: Cost of absenteeism | CD21: ='Four-way'!M10 -> 79.14 | CE21: ='Four-way'!N10 -> 158.28 | CF21: ='Four-way'!O10 -> 316.56 | DE21: Value of employee | DF21: ='Four-way Prod'!M10 -> 20020 | DG21: ='Four-way Prod'!N10 -> 40040 | DH21: ='Four-way Prod'!O10 -> 80080 | DM21: =DF23 -> 0.5 | DS21: =DG23 -> 0.75 | DY21: =DH23 -> 1 | EE21: Cost per case | EF21: ='Four-way Turnover'!M10 -> 7666.8 | EG21: ='Four-way Turnover'!N10 -> 15333.59 | EH21: ='Four-way Turnover'!O10 -> 30667.18 | EN21: 0 | EO21: 200 | EP21: 400 | EQ21: 600 | ET21: 0 | EU21: 200 | EV21: 400 | EW21: 600 | EZ21: 0 | FA21: 200 | FB21: 400 | FC21: 600
G22: =CONCATENATE("Increase in ",D23) -> Increase in Productivity | H22: 0 | I22: 0.001 | J22: 0.001 | K22: 0.001 | L22: 0.001 | AI22: Percentage of staff affected | AJ22: =IF('Base case'!$E$126=1,('Inputs (LTSA)'!AK22/100),'Inputs (LTSA)'!E24) -> 1 | AK22: 100 | AL22: =AJ22*100 -> 100 | AO22: 400 | AP22: -40063.43562 | BA22: =D19 -> Absenteeism (sick leave) | BB22: =$AJ$19 -> 0.4 | BC22: =BB22 -> 0.4 | BD22: =BB22 -> 0.4 | BE22: =BB22 -> 0.4 | BF22: =BB22 -> 0.4 | CK22: =CD21 -> 79.14 | CM22: 0 | CN22: 0 | CO22: 100 | CP22: 200 | CQ22: 400 | CS22: 0 | CT22: 0 | CU22: 100 | CV22: 200 | CW22: 400 | CY22: 0 | CZ22: 0 | DA22: 100 | DB22: 200 | DC22: 400 | DM22: 0 | DN22: -8433.1584 | DO22: -8433.1584 | DP22: -8433.1584 | DQ22: -8433.1584 | DS22: 0 | DT22: -8433.1584 | DU22: -8433.1584 | DV22: -8433.1584 | DW22: -8433.1584 | DY22: 0 | DZ22: -8433.1584 | EA22: -8433.1584 | EB22: -8433.1584 | EC22: -8433.1584 | EL22: Reduction in turnover | EM22: 0 | EN22: -8433.1584 | EO22: -8433.1584 | EP22: -8433.1584 | EQ22: -8433.1584 | ES22: 0 | ET22: -8433.1584 | EU22: -8433.1584 | EV22: -8433.1584 | EW22: -8433.1584 | EY22: 0 | EZ22: -8433.1584 | FA22: -8433.1584 | FB22: -8433.1584 | FC22: -8433.1584
D23: Productivity | E23: Baseline | G23: =CONCATENATE("Change in ",D27) -> Change in Staff turnover | H23: -0.225 | I23: -0.175 | J23: -0.175 | K23: -0.175 | L23: -0.175 | AI23: Value of employee | AJ23: =IF('Base case'!$E$126=1,('Inputs (LTSA)'!AK23*100),'Inputs (LTSA)'!E25) -> 40040 | AK23: 538.14 | AL23: =AJ23/100 -> 400.4 | AO23: 450 | AP23: -38563.43562 | BA23: =D23 -> Productivity | BB23: =$AJ$24 -> 0 | BC23: =BB23 -> 0 | BD23: =BB23 -> 0 | BE23: =BB23 -> 0 | BF23: =BB23 -> 0 | BH23: =$D$19 -> Absenteeism (sick leave) | BI23: =('Inputs (LTSA)'!$AJ$12*'Inputs (LTSA)'!$AJ$17*'Inputs (LTSA)'!$AJ$18*'Inputs (LTSA)'!$G$117) -> 94968 | BJ23: =('Inputs (LTSA)'!$AJ$12*'Inputs (LTSA)'!$AJ$17*'Inputs (LTSA)'!$AJ$18*'Inputs (LTSA)'!$G$117) -> 94968 | BK23: =('Inputs (LTSA)'!$AJ$12*'Inputs (LTSA)'!$AJ$17*'Inputs (LTSA)'!$AJ$18*'Inputs (LTSA)'!$G$117) -> 94968 | BL23: =('Inputs (LTSA)'!$AJ$12*'Inputs (LTSA)'!$AJ$17*'Inputs (LTSA)'!$AJ$18*'Inputs (LTSA)'!$G$117) -> 94968 | BM23: =('Inputs (LTSA)'!$AJ$12*'Inputs (LTSA)'!$AJ$17*'Inputs (LTSA)'!$AJ$18*'Inputs (LTSA)'!$G$117) -> 94968 | BO23: =$D$19 -> Absenteeism (sick leave) | BP23: =BI23*(1-'Inputs (LTSA)'!BB46) -> 56980.8 | BQ23: =BJ23*(1-'Inputs (LTSA)'!BC46) -> 75974.4 | BR23: =BK23*(1-'Inputs (LTSA)'!BD46) -> 85471.2 | BS23: =BL23*(1-'Inputs (LTSA)'!BE46) -> 85471.2 | BT23: =BM23*(1-'Inputs (LTSA)'!BF46) -> 85471.2 | CC23: Baseline absenteeism (days) | CD23: ='Four-way'!M11 -> 15 | CE23: ='Four-way'!N11 -> 30 | CF23: ='Four-way'!O11 -> 60 | CM23: 0.1 | CN23: -17.56908 | CO23: 82.43092 | CP23: 182.43092 | CQ23: 382.43092 | CS23: 0.1 | CT23: -17.56908 | CU23: 82.43092 | CV23: 182.43092 | CW23: 382.43092 | CY23: 0.1 | CZ23: -35.13816 | DA23: 64.86184 | DB23: 164.86184 | DC23: 364.86184 | DE23: Percentage of staff affected | DF23: ='Four-way Prod'!M11 -> 0.5 | DG23: ='Four-way Prod'!N11 -> 0.75 | DH23: ='Four-way Prod'!O11 -> 1 | DL23: =DF21 -> 20020 | DM23: 0.1 | DN23: -8433.1584 | DO23: -8433.1584 | DP23: -8433.1584 | DQ23: -8433.1584 | DS23: 0.1 | DT23: -8433.1584 | DU23: -8433.1584 | DV23: -8433.1584 | DW23: -8433.1584 | DY23: 0.1 | DZ23: -8433.1584 | EA23: -8433.1584 | EB23: -8433.1584 | EC23: -8433.1584 | EE23: Baseline rate of turnover | EF23: ='Four-way Turnover'!M11 -> 0.068 | EG23: ='Four-way Turnover'!N11 -> 0.136 | EH23: ='Four-way Turnover'!O11 -> 0.272 | EK23: =EF21 -> 7666.8 | EM23: 0.1 | EN23: -8433.1584 | EO23: -8433.1584 | EP23: -8433.1584 | EQ23: -8433.1584 | ES23: 0.1 | ET23: -8433.1584 | EU23: -8433.1584 | EV23: -8433.1584 | EW23: -8433.1584 | EY23: 0.1 | EZ23: -8433.1584 | FA23: -8433.1584 | FB23: -8433.1584 | FC23: -8433.1584
D24: Percentage of staff affected | E24: 1 | G24: =CONCATENATE("Reduction in ",D31) -> Reduction in | H24: 0.1 | I24: 0.5 | J24: 0.5 | K24: 0.5 | L24: 0.5 | AI24: Increase in productivity | AJ24: =IF('Base case'!$E$126=1,('Inputs (LTSA)'!AK24/100),'Inputs (LTSA)'!H22) -> 0 | AK24: 0.1 | AL24: =AJ24*100 -> 0 | AO24: 500 | AP24: -37063.43562 | BA24: =D27 -> Staff turnover | BB24: =$AJ$28 -> -0.225 | BC24: =BB24 -> -0.225 | BD24: =BB24 -> -0.225 | BE24: =BB24 -> -0.225 | BF24: =BB24 -> -0.225 | BH24: =$D$23 -> Productivity | BI24: ='Inputs (LTSA)'!$AJ$12*'Inputs (LTSA)'!$AJ$22*'Inputs (LTSA)'!$AJ$23*'Inputs (LTSA)'!$G$118 -> 1201200 | BJ24: ='Inputs (LTSA)'!$AJ$12*'Inputs (LTSA)'!$AJ$22*'Inputs (LTSA)'!$AJ$23*'Inputs (LTSA)'!$G$118 -> 1201200 | BK24: ='Inputs (LTSA)'!$AJ$12*'Inputs (LTSA)'!$AJ$22*'Inputs (LTSA)'!$AJ$23*'Inputs (LTSA)'!$G$118 -> 1201200 | BL24: ='Inputs (LTSA)'!$AJ$12*'Inputs (LTSA)'!$AJ$22*'Inputs (LTSA)'!$AJ$23*'Inputs (LTSA)'!$G$118 -> 1201200 | BM24: ='Inputs (LTSA)'!$AJ$12*'Inputs (LTSA)'!$AJ$22*'Inputs (LTSA)'!$AJ$23*'Inputs (LTSA)'!$G$118 -> 1201200 | BO24: =$D$23 -> Productivity | BP24: =BI24*(1+'Inputs (LTSA)'!BB47) -> 1201200 | BQ24: =BJ24*(1+'Inputs (LTSA)'!BC47) -> 1202401.2 | BR24: =BK24*(1+'Inputs (LTSA)'!BD47) -> 1202401.2 | BS24: =BL24*(1+'Inputs (LTSA)'!BE47) -> 1202401.2 | BT24: =BM24*(1+'Inputs (LTSA)'!BF47) -> 1202401.2 | BX24: Cost of intervention | CM24: 0.2 | CN24: -35.13816 | CO24: 64.86184 | CP24: 164.86184 | CQ24: 364.86184 | CS24: 0.2 | CT24: -35.13816 | CU24: 64.86184 | CV24: 164.86184 | CW24: 364.86184 | CY24: 0.2 | CZ24: -70.27632 | DA24: 29.72368 | DB24: 129.72368 | DC24: 329.72368 | DM24: 0.2 | DN24: -8433.1584 | DO24: -8433.1584 | DP24: -8433.1584 | DQ24: -8433.1584 | DS24: 0.2 | DT24: -8433.1584 | DU24: -8433.1584 | DV24: -8433.1584 | DW24: -8433.1584 | DY24: 0.2 | DZ24: -8433.1584 | EA24: -8433.1584 | EB24: -8433.1584 | EC24: -8433.1584 | EM24: 0.2 | EN24: -8433.1584 | EO24: -8433.1584 | EP24: -8433.1584 | EQ24: -8433.1584 | ES24: 0.2 | ET24: -8433.1584 | EU24: -8433.1584 | EV24: -8433.1584 | EW24: -8433.1584 | EY24: 0.2 | EZ24: -8433.1584 | FA24: -8433.1584 | FB24: -8433.1584 | FC24: -8433.1584
D25: Value of employee | E25: 40040 | G25: =CONCATENATE("Reduction in ",D35) -> Reduction in | H25: 0.1 | I25: 0.1 | J25: 0.1 | K25: 0.1 | L25: 0.1 | AO25: =H17 -> 1000 | AP25: =AP13 -> -22063.43562 | BA25: =D31 -> 0 | BB25: =$AJ$33 -> 0.1 | BC25: =BB25 -> 0.1 | BD25: =BB25 -> 0.1 | BE25: =BB25 -> 0.1 | BF25: =BB25 -> 0.1 | BH25: =$D$27 -> Staff turnover | BI25: ='Inputs (LTSA)'!$AJ$12*'Inputs (LTSA)'!$AJ$27*'Inputs (LTSA)'!$AJ$29*'Inputs (LTSA)'!$G$119 -> 62561.0472 | BJ25: ='Inputs (LTSA)'!$AJ$12*'Inputs (LTSA)'!$AJ$27*'Inputs (LTSA)'!$AJ$29*'Inputs (LTSA)'!$G$119 -> 62561.0472 | BK25: ='Inputs (LTSA)'!$AJ$12*'Inputs (LTSA)'!$AJ$27*'Inputs (LTSA)'!$AJ$29*'Inputs (LTSA)'!$G$119 -> 62561.0472 | BL25: ='Inputs (LTSA)'!$AJ$12*'Inputs (LTSA)'!$AJ$27*'Inputs (LTSA)'!$AJ$29*'Inputs (LTSA)'!$G$119 -> 62561.0472 | BM25: ='Inputs (LTSA)'!$AJ$12*'Inputs (LTSA)'!$AJ$27*'Inputs (LTSA)'!$AJ$29*'Inputs (LTSA)'!$G$119 -> 62561.0472 | BO25: =$D$27 -> Staff turnover | BP25: =BI25*(1-'Inputs (LTSA)'!BB48) -> 76637.28282 | BQ25: =BJ25*(1-'Inputs (LTSA)'!BC48) -> 73509.23046 | BR25: =BK25*(1-'Inputs (LTSA)'!BD48) -> 73509.23046 | BS25: =BL25*(1-'Inputs (LTSA)'!BE48) -> 73509.23046 | BT25: =BM25*(1-'Inputs (LTSA)'!BF48) -> 73509.23046 | BW25: ='Base case'!G19 -> -22063.43562 | BX25: =CD19 -> 0 | BY25: =CE19 -> 100 | BZ25: 200 | CA25: 400 | CM25: 0.3 | CN25: -52.70724 | CO25: 47.29276 | CP25: 147.29276 | CQ25: 347.29276 | CS25: 0.3 | CT25: -52.70724 | CU25: 47.29276 | CV25: 147.29276 | CW25: 347.29276 | CY25: 0.3 | CZ25: -105.41448 | DA25: -5.41448 | DB25: 94.58552 | DC25: 294.58552 | DF25: ='Base case'!G19 -> -22063.43562 | DG25: =DF19 -> 0 | DH25: =DG19 -> 100 | DI25: 200 | DJ25: 400 | DM25: 0.3 | DN25: -8433.1584 | DO25: -8433.1584 | DP25: -8433.1584 | DQ25: -8433.1584 | DS25: 0.3 | DT25: -8433.1584 | DU25: -8433.1584 | DV25: -8433.1584 | DW25: -8433.1584 | DY25: 0.3 | DZ25: -8433.1584 | EA25: -8433.1584 | EB25: -8433.1584 | EC25: -8433.1584 | EF25: ='Base case'!G19 -> -22063.43562 | EG25: =EF19 -> 0 | EH25: =EG19 -> 155.5 | EI25: 311 | EJ25: 622 | EM25: 0.3 | EN25: -8433.1584 | EO25: -8433.1584 | EP25: -8433.1584 | EQ25: -8433.1584 | ES25: 0.3 | ET25: -8433.1584 | EU25: -8433.1584 | EV25: -8433.1584 | EW25: -8433.1584 | EY25: 0.3 | EZ25: -8433.1584 | FA25: -8433.1584 | FB25: -8433.1584 | FC25: -8433.1584
BA26: =D35 -> 0 | BB26: =$AJ$38 -> 0.1 | BC26: =BB26 -> 0.1 | BD26: =BB26 -> 0.1 | BE26: =BB26 -> 0.1 | BF26: =BB26 -> 0.1 | BH26: =$D$31 -> 0 | BI26: ='Inputs (LTSA)'!$AJ$12*'Inputs (LTSA)'!$AJ$32*'Inputs (LTSA)'!$AJ$34*'Inputs (LTSA)'!$G$120 -> 0 | BJ26: ='Inputs (LTSA)'!$AJ$12*'Inputs (LTSA)'!$AJ$32*'Inputs (LTSA)'!$AJ$34*'Inputs (LTSA)'!$G$120 -> 0 | BK26: ='Inputs (LTSA)'!$AJ$12*'Inputs (LTSA)'!$AJ$32*'Inputs (LTSA)'!$AJ$34*'Inputs (LTSA)'!$G$120 -> 0 | BL26: ='Inputs (LTSA)'!$AJ$12*'Inputs (LTSA)'!$AJ$32*'Inputs (LTSA)'!$AJ$34*'Inputs (LTSA)'!$G$120 -> 0 | BM26: ='Inputs (LTSA)'!$AJ$12*'Inputs (LTSA)'!$AJ$32*'Inputs (LTSA)'!$AJ$34*'Inputs (LTSA)'!$G$120 -> 0 | BO26: =$D$31 -> 0 | BP26: =BI26*(1-'Inputs (LTSA)'!BB49) -> 0 | BQ26: =BJ26*(1-'Inputs (LTSA)'!BC49) -> 0 | BR26: =BK26*(1-'Inputs (LTSA)'!BD49) -> 0 | BS26: =BL26*(1-'Inputs (LTSA)'!BE49) -> 0 | BT26: =BM26*(1-'Inputs (LTSA)'!BF49) -> 0 | BW26: 0 | BX26: -14076.23562 | BY26: -11076.23562 | BZ26: -8076.23562 | CA26: -2076.23562 | CM26: 0.4 | CN26: -70.27632 | CO26: 29.72368 | CP26: 129.72368 | CQ26: 329.72368 | CS26: 0.4 | CT26: -70.27632 | CU26: 29.72368 | CV26: 129.72368 | CW26: 329.72368 | CY26: 0.4 | CZ26: -140.55264 | DA26: -40.55264 | DB26: 59.44736 | DC26: 259.44736 | DF26: 0 | DG26: -52063.43562 | DH26: -49063.43562 | DI26: -46063.43562 | DJ26: -40063.43562 | DM26: 0.4 | DN26: -8433.1584 | DO26: -8433.1584 | DP26: -8433.1584 | DQ26: -8433.1584 | DS26: 0.4 | DT26: -8433.1584 | DU26: -8433.1584 | DV26: -8433.1584 | DW26: -8433.1584 | DY26: 0.4 | DZ26: -8433.1584 | EA26: -8433.1584 | EB26: -8433.1584 | EC26: -8433.1584 | EF26: 0 | EG26: -37987.2 | EH26: -33322.2 | EI26: -28657.2 | EJ26: -19327.2 | EM26: 0.4 | EN26: -8433.1584 | EO26: -8433.1584 | EP26: -8433.1584 | EQ26: -8433.1584 | ES26: 0.4 | ET26: -8433.1584 | EU26: -8433.1584 | EV26: -8433.1584 | EW26: -8433.1584 | EY26: 0.4 | EZ26: -8433.1584 | FA26: -8433.1584 | FB26: -8433.1584 | FC26: -8433.1584
D27: Staff turnover | E27: Baseline | G27: Enter difference in effectiveness to previous year | AI27: Annual rate of staff turnover | AJ27: =IF('Base case'!$E$126=1,('Inputs (LTSA)'!AK27/100),'Inputs (LTSA)'!E28) -> 0.136 | AK27: 13.6 | AL27: =AJ27*100 -> 13.6 | BH27: =$D$35 -> 0 | BI27: ='Inputs (LTSA)'!$AJ$12*'Inputs (LTSA)'!$AJ$37*'Inputs (LTSA)'!$AJ$39*'Inputs (LTSA)'!$G$121 -> 0 | BJ27: ='Inputs (LTSA)'!$AJ$12*'Inputs (LTSA)'!$AJ$37*'Inputs (LTSA)'!$AJ$39*'Inputs (LTSA)'!$G$121 -> 0 | BK27: ='Inputs (LTSA)'!$AJ$12*'Inputs (LTSA)'!$AJ$37*'Inputs (LTSA)'!$AJ$39*'Inputs (LTSA)'!$G$121 -> 0 | BL27: ='Inputs (LTSA)'!$AJ$12*'Inputs (LTSA)'!$AJ$37*'Inputs (LTSA)'!$AJ$39*'Inputs (LTSA)'!$G$121 -> 0 | BM27: ='Inputs (LTSA)'!$AJ$12*'Inputs (LTSA)'!$AJ$37*'Inputs (LTSA)'!$AJ$39*'Inputs (LTSA)'!$G$121 -> 0 | BO27: =$D$35 -> 0 | BP27: =BI27*(1-'Inputs (LTSA)'!BB50) -> 0 | BQ27: =BJ27*(1-'Inputs (LTSA)'!BC50) -> 0 | BR27: =BK27*(1-'Inputs (LTSA)'!BD50) -> 0 | BS27: =BL27*(1-'Inputs (LTSA)'!BE50) -> 0 | BT27: =BM27*(1-'Inputs (LTSA)'!BF50) -> 0 | BV27: Reduction in absenteeism | BW27: 0.1 | BX27: -23573.03562 | BY27: -20573.03562 | BZ27: -17573.03562 | CA27: -11573.03562 | CM27: 0.5 | CN27: -87.8454 | CO27: 12.1546 | CP27: 112.1546 | CQ27: 312.1546 | CS27: 0.5 | CT27: -87.8454 | CU27: 12.1546 | CV27: 112.1546 | CW27: 312.1546 | CY27: 0.5 | CZ27: -175.6908 | DA27: -75.6908 | DB27: 24.3092 | DC27: 224.3092 | DF27: 0.1 | DG27: -172183.4356 | DH27: -169183.4356 | DI27: -166183.4356 | DJ27: -160183.4356 | DM27: 0.5 | DN27: -8433.1584 | DO27: -8433.1584 | DP27: -8433.1584 | DQ27: -8433.1584 | DS27: 0.5 | DT27: -8433.1584 | DU27: -8433.1584 | DV27: -8433.1584 | DW27: -8433.1584 | DY27: 0.5 | DZ27: -8433.1584 | EA27: -8433.1584 | EB27: -8433.1584 | EC27: -8433.1584 | EF27: 0.1 | EG27: -31731.09528 | EH27: -27066.09528 | EI27: -22401.09528 | EJ27: -13071.09528 | EM27: 0.5 | EN27: -8433.1584 | EO27: -8433.1584 | EP27: -8433.1584 | EQ27: -8433.1584 | ES27: 0.5 | ET27: -8433.1584 | EU27: -8433.1584 | EV27: -8433.1584 | EW27: -8433.1584 | EY27: 0.5 | EZ27: -8433.1584 | FA27: -8433.1584 | FB27: -8433.1584 | FC27: -8433.1584
D28: Annual rate of staff turnover | E28: 0.136 | G28: =D19 -> Absenteeism (sick leave) | H28: 0.9 | AI28: Reduction in staff turnover | AJ28: =IF('Base case'!$E$126=1,('Inputs (LTSA)'!AK28/100),'Inputs (LTSA)'!H23) -> -0.225 | AK28: 22.5 | AL28: =AJ28*100 -> -22.5 | AO28: Absenteeism | BA28: Option 2 - difference in effectiveness each year | BH28: Intervention cost | BI28: 0 | BJ28: 0 | BK28: 0 | BL28: 0 | BM28: 0 | BO28: Intervention cost | BP28: =$AJ$12*AJ14 -> 30000 | BQ28: =$E$14*I17 -> 22500 | BR28: =$E$14*J17 -> 22500 | BS28: =$E$14*K17 -> 22500 | BT28: =$E$14*L17 -> 22500 | BW28: 0.2 | BX28: -33069.83562 | BY28: -30069.83562 | BZ28: -27069.83562 | CA28: -21069.83562 | CM28: 0.6 | CN28: -105.41448 | CO28: -5.41448 | CP28: 94.58552 | CQ28: 294.58552 | CS28: 0.6 | CT28: -105.41448 | CU28: -5.41448 | CV28: 94.58552 | CW28: 294.58552 | CY28: 0.6 | CZ28: -210.82896 | DA28: -110.82896 | DB28: -10.82896 | DC28: 189.17104 | DE28: Increase in productivity | DF28: 0.2 | DG28: -292303.4356 | DH28: -289303.4356 | DI28: -286303.4356 | DJ28: -280303.4356 | DM28: 0.6 | DN28: -8433.1584 | DO28: -8433.1584 | DP28: -8433.1584 | DQ28: -8433.1584 | DS28: 0.6 | DT28: -8433.1584 | DU28: -8433.1584 | DV28: -8433.1584 | DW28: -8433.1584 | DY28: 0.6 | DZ28: -8433.1584 | EA28: -8433.1584 | EB28: -8433.1584 | EC28: -8433.1584 | EE28: Reduction in turnover | EF28: 0.2 | EG28: -25474.99056 | EH28: -20809.99056 | EI28: -16144.99056 | EJ28: -6814.99056 | EM28: 0.6 | EN28: -8433.1584 | EO28: -8433.1584 | EP28: -8433.1584 | EQ28: -8433.1584 | ES28: 0.6 | ET28: -8433.1584 | EU28: -8433.1584 | EV28: -8433.1584 | EW28: -8433.1584 | EY28: 0.6 | EZ28: -8433.1584 | FA28: -8433.1584 | FB28: -8433.1584 | FC28: -8433.1584
D29: Cost per case of staff turnover | E29: 15333.59 | G29: =D23 -> Productivity | H29: 0.9 | AI29: Cost per case of staff turnover | AJ29: =IF('Base case'!$E$126=1,'Inputs (LTSA)'!AK29,'Inputs (LTSA)'!E29) -> 15333.59 | AK29: 14405.14 | AO29: No. of days | AP29: ='Base case'!G19 -> -22063.43562 | AR29: Cost per day | AS29: ='Base case'!G19 -> -22063.43562 | AU29: Reduction | AV29: ='Base case'!G19 -> -22063.43562 | BH29: Total | BI29: =SUM(BI23:BI28) -> 1358729.047 | BJ29: =SUM(BJ23:BJ28) -> 1358729.047 | BK29: =SUM(BK23:BK28) -> 1358729.047 | BL29: =SUM(BL23:BL28) -> 1358729.047 | BM29: =SUM(BM23:BM28) -> 1358729.047 | BO29: Total | BP29: =SUM(BP23:BP28) -> 1364818.083 | BQ29: =SUM(BQ23:BQ28) -> 1374384.83 | BR29: =SUM(BR23:BR28) -> 1383881.63 | BS29: =SUM(BS23:BS28) -> 1383881.63 | BT29: =SUM(BT23:BT28) -> 1383881.63 | BW29: 0.3 | BX29: -42566.63562 | BY29: -39566.63562 | BZ29: -36566.63562 | CA29: -30566.63562 | CM29: 0.7 | CN29: -122.98356 | CO29: -22.98356 | CP29: 77.01644 | CQ29: 277.01644 | CS29: 0.7 | CT29: -122.98356 | CU29: -22.98356 | CV29: 77.01644 | CW29: 277.01644 | CY29: 0.7 | CZ29: -245.96712 | DA29: -145.96712 | DB29: -45.96712 | DC29: 154.03288 | DF29: 0.3 | DG29: -412423.4356 | DH29: -409423.4356 | DI29: -406423.4356 | DJ29: -400423.4356 | DM29: 0.7 | DN29: -8433.1584 | DO29: -8433.1584 | DP29: -8433.1584 | DQ29: -8433.1584 | DS29: 0.7 | DT29: -8433.1584 | DU29: -8433.1584 | DV29: -8433.1584 | DW29: -8433.1584 | DY29: 0.7 | DZ29: -8433.1584 | EA29: -8433.1584 | EB29: -8433.1584 | EC29: -8433.1584 | EF29: 0.3 | EG29: -19218.88584 | EH29: -14553.88584 | EI29: -9888.88584 | EJ29: -558.88584 | EM29: 0.7 | EN29: -8433.1584 | EO29: -8433.1584 | EP29: -8433.1584 | EQ29: -8433.1584 | ES29: 0.7 | ET29: -8433.1584 | EU29: -8433.1584 | EV29: -8433.1584 | EW29: -8433.1584 | EY29: 0.7 | EZ29: -8433.1584 | FA29: -8433.1584 | FB29: -8433.1584 | FC29: -8433.1584
G30: =D27 -> Staff turnover | H30: 0.9 | AO30: 0 | AP30: -22063.43562 | AR30: 0 | AS30: -22063.43562 | AU30: 0 | AV30: 15923.76438 | BB30: Year 1 | BC30: Year 2 | BD30: Year 3 | BE30: Year 4 | BF30: Year 5 | BW30: 0.4 | BX30: -52063.43562 | BY30: -49063.43562 | BZ30: -46063.43562 | CA30: -40063.43562 | CM30: 0.8 | CN30: -140.55264 | CO30: -40.55264 | CP30: 59.44736 | CQ30: 259.44736 | CS30: 0.8 | CT30: -140.55264 | CU30: -40.55264 | CV30: 59.44736 | CW30: 259.44736 | CY30: 0.8 | CZ30: -281.10528 | DA30: -181.10528 | DB30: -81.10528 | DC30: 118.89472 | DF30: 0.4 | DG30: -532543.4356 | DH30: -529543.4356 | DI30: -526543.4356 | DJ30: -520543.4356 | DM30: 0.8 | DN30: -8433.1584 | DO30: -8433.1584 | DP30: -8433.1584 | DQ30: -8433.1584 | DS30: 0.8 | DT30: -8433.1584 | DU30: -8433.1584 | DV30: -8433.1584 | DW30: -8433.1584 | DY30: 0.8 | DZ30: -8433.1584 | EA30: -8433.1584 | EB30: -8433.1584 | EC30: -8433.1584 | EF30: 0.4 | EG30: -12962.78112 | EH30: -8297.78112 | EI30: -3632.78112 | EJ30: 5697.21888 | EM30: 0.8 | EN30: -8433.1584 | EO30: -8433.1584 | EP30: -8433.1584 | EQ30: -8433.1584 | ES30: 0.8 | ET30: -8433.1584 | EU30: -8433.1584 | EV30: -8433.1584 | EW30: -8433.1584 | EY30: 0.8 | EZ30: -8433.1584 | FA30: -8433.1584 | FB30: -8433.1584 | FC30: -8433.1584
G31: =D31 -> 0 | H31: 0.9 | AO31: 2 | AP31: -22063.43562 | AR31: 50 | AS31: -22063.43562 | AU31: 0.05 | AV31: 11175.36438 | BH31: Discounted | BO31: Discounted | BW31: 0.5 | BX31: -61560.23562 | BY31: -58560.23562 | BZ31: -55560.23562 | CA31: -49560.23562 | CM31: 0.9 | CN31: -158.12172 | CO31: -58.12172 | CP31: 41.87828 | CQ31: 241.87828 | CS31: 0.9 | CT31: -158.12172 | CU31: -58.12172 | CV31: 41.87828 | CW31: 241.87828 | CY31: 0.9 | CZ31: -316.24344 | DA31: -216.24344 | DB31: -116.24344 | DC31: 83.75656 | DF31: 0.5 | DG31: -652663.4356 | DH31: -649663.4356 | DI31: -646663.4356 | DJ31: -640663.4356 | DM31: 0.9 | DN31: -8433.1584 | DO31: -8433.1584 | DP31: -8433.1584 | DQ31: -8433.1584 | DS31: 0.9 | DT31: -8433.1584 | DU31: -8433.1584 | DV31: -8433.1584 | DW31: -8433.1584 | DY31: 0.9 | DZ31: -8433.1584 | EA31: -8433.1584 | EB31: -8433.1584 | EC31: -8433.1584 | EF31: 0.5 | EG31: -6706.6764 | EH31: -2041.6764 | EI31: 2623.3236 | EJ31: 11953.3236 | EM31: 0.9 | EN31: -8433.1584 | EO31: -8433.1584 | EP31: -8433.1584 | EQ31: -8433.1584 | ES31: 0.9 | ET31: -8433.1584 | EU31: -8433.1584 | EV31: -8433.1584 | EW31: -8433.1584 | EY31: 0.9 | EZ31: -8433.1584 | FA31: -8433.1584 | FB31: -8433.1584 | FC31: -8433.1584
G32: =D35 -> 0 | H32: 0.9 | AI32: Percentage of staff affected | AJ32: =IF('Base case'!$E$126=1,('Inputs (LTSA)'!AK32/100),'Inputs (LTSA)'!E32) -> 0 | AK32: 22 | AL32: =AJ32*100 -> 0 | AO32: 4 | AP32: -22063.43562 | AR32: 100 | AS32: -22063.43562 | AU32: 0.1 | AV32: 6426.96438 | BB32: Difference from baseline in year 1 | BC32: Difference from baseline in year 2 | BD32: Difference from baseline in year 3 | BE32: Difference from baseline in year 4 | BF32: Difference from baseline in year 5 | BI32: Cycle | BP32: Cycle | BW32: 0.6 | BX32: -71057.03562 | BY32: -68057.03562 | BZ32: -65057.03562 | CA32: -59057.03562 | CM32: 1 | CN32: -175.6908 | CO32: -75.6908 | CP32: 24.3092 | CQ32: 224.3092 | CS32: 1 | CT32: -175.6908 | CU32: -75.6908 | CV32: 24.3092 | CW32: 224.3092 | CY32: 1 | CZ32: -351.3816 | DA32: -251.3816 | DB32: -151.3816 | DC32: 48.6184 | DF32: 0.6 | DG32: -772783.4356 | DH32: -769783.4356 | DI32: -766783.4356 | DJ32: -760783.4356 | DM32: 1 | DN32: -8433.1584 | DO32: -8433.1584 | DP32: -8433.1584 | DQ32: -8433.1584 | DS32: 1 | DT32: -8433.1584 | DU32: -8433.1584 | DV32: -8433.1584 | DW32: -8433.1584 | DY32: 1 | DZ32: -8433.1584 | EA32: -8433.1584 | EB32: -8433.1584 | EC32: -8433.1584 | EF32: 0.6 | EG32: -450.57168 | EH32: 4214.42832 | EI32: 8879.42832 | EJ32: 18209.42832 | EM32: 1 | EN32: -8433.1584 | EO32: -8433.1584 | EP32: -8433.1584 | EQ32: -8433.1584 | ES32: 1 | ET32: -8433.1584 | EU32: -8433.1584 | EV32: -8433.1584 | EW32: -8433.1584 | EY32: 1 | EZ32: -8433.1584 | FA32: -8433.1584 | FB32: -8433.1584 | FC32: -8433.1584
AI33: Reduction in healthcare use | AJ33: =IF('Base case'!$E$126=1,('Inputs (LTSA)'!AK33/100),'Inputs (LTSA)'!H24) -> 0.1 | AK33: 10 | AL33: =AJ33*100 -> 10 | AO33: 6 | AP33: -22063.43562 | AR33: 150 | AS33: -22063.43562 | AU33: 0.15 | AV33: 1678.56438 | BI33: 0 | BJ33: 1 | BK33: 2 | BL33: 3 | BM33: 4 | BP33: 0 | BQ33: 1 | BR33: 2 | BS33: 3 | BT33: 4 | BW33: 0.7 | BX33: -80553.83562 | BY33: -77553.83562 | BZ33: -74553.83562 | CA33: -68553.83562 | DF33: 0.7 | DG33: -892903.4356 | DH33: -889903.4356 | DI33: -886903.4356 | DJ33: -880903.4356 | EF33: 0.7 | EG33: 5805.53304 | EH33: 10470.53304 | EI33: 15135.53304 | EJ33: 24465.53304
AI34: Cost per person affected | AJ34: =IF('Base case'!$E$126=1,'Inputs (LTSA)'!AK34,'Inputs (LTSA)'!E33) -> 0 | AK34: 840.97 | AO34: 8 | AP34: -22063.43562 | AR34: 200 | AS34: -22063.43562 | AU34: 0.2 | AV34: -3069.83562 | BA34: =$D$19 -> Absenteeism (sick leave) | BB34: =$AJ$19 -> 0.4 | BC34: =BB34*H28 -> 0.36 | BD34: =BC34*H28 -> 0.324 | BE34: =BD34*H28 -> 0.2916 | BF34: =BE34*H28 -> 0.26244 | BH34: =$D$19 -> Absenteeism (sick leave) | BI34: =BI23 -> 94968 | BJ34: =BJ23/(1+$E$17)^$BQ$33 -> 91756.52174 | BK34: =BK23/(1+$E$17)^$BR$33 -> 88653.64419 | BL34: =BL23/(1+$E$17)^$BS$33 -> 85655.69487 | BM34: =BM23/(1+$E$17)^$BT$33 -> 82759.12548 | BO34: =$D$19 -> Absenteeism (sick leave) | BP34: =BP23 -> 56980.8 | BQ34: =BQ23/(1+$E$17)^$BQ$33 -> 73405.21739 | BR34: =BR23/(1+$E$17)^$BR$33 -> 79788.27977 | BS34: =BS23/(1+$E$17)^$BS$33 -> 77090.12538 | BT34: =BT23/(1+$E$17)^$BT$33 -> 74483.21293 | BW34: 0.8 | BX34: -90050.63562 | BY34: -87050.63562 | BZ34: -84050.63562 | CA34: -78050.63562 | CK34: =CE21 -> 158.28 | CM34: 0 | CN34: 0 | CO34: 100 | CP34: 200 | CQ34: 400 | CS34: 0 | CT34: 0 | CU34: 100 | CV34: 200 | CW34: 400 | CY34: 0 | CZ34: 0 | DA34: 100 | DB34: 200 | DC34: 400 | DF34: 0.8 | DG34: -1013023.436 | DH34: -1010023.436 | DI34: -1007023.436 | DJ34: -1001023.436 | DM34: 0 | DN34: -8433.1584 | DO34: -8433.1584 | DP34: -8433.1584 | DQ34: -8433.1584 | DS34: 0 | DT34: -8433.1584 | DU34: -8433.1584 | DV34: -8433.1584 | DW34: -8433.1584 | DY34: 0 | DZ34: -8433.1584 | EA34: -8433.1584 | EB34: -8433.1584 | EC34: -8433.1584 | EF34: 0.8 | EG34: 12061.63776 | EH34: 16726.63776 | EI34: 21391.63776 | EJ34: 30721.63776 | EL34: Reduction in turnover | EM34: 0 | EN34: -8433.1584 | EO34: -8433.1584 | EP34: -8433.1584 | EQ34: -8433.1584 | ES34: 0 | ET34: -8433.1584 | EU34: -8433.1584 | EV34: -8433.1584 | EW34: -8433.1584 | EY34: 0 | EZ34: -8433.1584 | FA34: -8433.1584 | FB34: -8433.1584 | FC34: -8433.1584
AO35: 10 | AP35: -22063.43562 | AR35: 250 | AS35: -22063.43562 | AU35: 0.25 | AV35: -7818.23562 | BA35: =$D$23 -> Productivity | BB35: =$AJ$24 -> 0 | BC35: =BB35*H29 -> 0 | BD35: =BC35*H29 -> 0 | BE35: =BD35*H29 -> 0 | BF35: =BE35*H29 -> 0 | BH35: =$D$23 -> Productivity | BI35: 1201200 | BJ35: 1160579.71 | BK35: 1121333.053 | BL35: 1083413.578 | BM35: 1046776.404 | BO35: =$D$23 -> Productivity | BP35: =BP24 -> 1201200 | BQ35: 1161740.29 | BR35: 1122454.386 | BS35: 1084496.992 | BT35: 1047823.18 | BW35: 0.9 | BX35: -99547.43562 | BY35: -96547.43562 | BZ35: -93547.43562 | CA35: -87547.43562 | CM35: 0.1 | CN35: -17.56908 | CO35: 82.43092 | CP35: 182.43092 | CQ35: 382.43092 | CS35: 0.1 | CT35: -70.27632 | CU35: 29.72368 | CV35: 129.72368 | CW35: 329.72368 | CY35: 0.1 | CZ35: -35.13816 | DA35: 64.86184 | DB35: 164.86184 | DC35: 364.86184 | DF35: 0.9 | DG35: -1133143.436 | DH35: -1130143.436 | DI35: -1127143.436 | DJ35: -1121143.436 | DL35: =DG21 -> 40040 | DM35: 0.1 | DN35: -8433.1584 | DO35: -8433.1584 | DP35: -8433.1584 | DQ35: -8433.1584 | DS35: 0.1 | DT35: -8433.1584 | DU35: -8433.1584 | DV35: -8433.1584 | DW35: -8433.1584 | DY35: 0.1 | DZ35: -8433.1584 | EA35: -8433.1584 | EB35: -8433.1584 | EC35: -8433.1584 | EF35: 0.9 | EG35: 18317.74248 | EH35: 22982.74248 | EI35: 27647.74248 | EJ35: 36977.74248 | EK35: =EG21 -> 15333.59 | EM35: 0.1 | EN35: -8433.1584 | EO35: -8433.1584 | EP35: -8433.1584 | EQ35: -8433.1584 | ES35: 0.1 | ET35: -8433.1584 | EU35: -8433.1584 | EV35: -8433.1584 | EW35: -8433.1584 | EY35: 0.1 | EZ35: -8433.1584 | FA35: -8433.1584 | FB35: -8433.1584 | FC35: -8433.1584
AO36: 12 | AP36: -22063.43562 | AR36: 300 | AS36: -22063.43562 | AU36: 0.3 | AV36: -12566.63562 | BA36: =$D$27 -> Staff turnover | BB36: =$AJ$28 -> -0.225 | BC36: =BB36*H30 -> -0.2025 | BD36: =BC36*H30 -> -0.18225 | BE36: =BD36*H30 -> -0.164025 | BF36: =BE36*H30 -> -0.1476225 | BH36: =$D$27 -> Staff turnover | BI36: 62561.0472 | BJ36: 60445.45623 | BK36: 58401.40699 | BL36: 56426.48018 | BM36: 54518.33834 | BO36: =$D$27 -> Staff turnover | BP36: 76637.28282 | BQ36: 71023.41107 | BR36: 68621.65321 | BS36: 66301.11421 | BT36: 64059.04755 | BW36: 1 | BX36: -109044.2356 | BY36: -106044.2356 | BZ36: -103044.2356 | CA36: -97044.23562 | CM36: 0.2 | CN36: -35.13816 | CO36: 64.86184 | CP36: 164.86184 | CQ36: 364.86184 | CS36: 0.2 | CT36: -140.55264 | CU36: -40.55264 | CV36: 59.44736 | CW36: 259.44736 | CY36: 0.2 | CZ36: -70.27632 | DA36: 29.72368 | DB36: 129.72368 | DC36: 329.72368 | DF36: 1 | DG36: -1253263.436 | DH36: -1250263.436 | DI36: -1247263.436 | DJ36: -1241263.436 | DM36: 0.2 | DN36: -8433.1584 | DO36: -8433.1584 | DP36: -8433.1584 | DQ36: -8433.1584 | DS36: 0.2 | DT36: -8433.1584 | DU36: -8433.1584 | DV36: -8433.1584 | DW36: -8433.1584 | DY36: 0.2 | DZ36: -8433.1584 | EA36: -8433.1584 | EB36: -8433.1584 | EC36: -8433.1584 | EF36: 1 | EG36: 24573.8472 | EH36: 29238.8472 | EI36: 33903.8472 | EJ36: 43233.8472 | EM36: 0.2 | EN36: -8433.1584 | EO36: -8433.1584 | EP36: -8433.1584 | EQ36: -8433.1584 | ES36: 0.2 | ET36: -8433.1584 | EU36: -8433.1584 | EV36: -8433.1584 | EW36: -8433.1584 | EY36: 0.2 | EZ36: -8433.1584 | FA36: -8433.1584 | FB36: -8433.1584 | FC36: -8433.1584
AI37: Percentage of staff affected | AJ37: =IF('Base case'!$E$126=1,('Inputs (LTSA)'!AK37/100),'Inputs (LTSA)'!E36) -> 0 | AK37: 5 | AL37: =AJ37*100 -> 0 | AO37: 14 | AP37: -22063.43562 | AR37: 350 | AS37: -22063.43562 | AU37: 0.35 | AV37: -17315.03562 | BA37: =$D$31 -> 0 | BB37: =$AJ$33 -> 0.1 | BC37: =BB37*H31 -> 0.09 | BD37: =BC37*H31 -> 0.081 | BE37: =BD37*H31 -> 0.0729 | BF37: =BE37*H31 -> 0.06561 | BH37: =$D$31 -> 0 | BI37: 0 | BJ37: 0 | BK37: 0 | BL37: 0 | BM37: 0 | BO37: =$D$31 -> 0 | BP37: 0 | BQ37: 0 | BR37: 0 | BS37: 0 | BT37: 0 | CM37: 0.3 | CN37: -52.70724 | CO37: 47.29276 | CP37: 147.29276 | CQ37: 347.29276 | CS37: 0.3 | CT37: -210.82896 | CU37: -110.82896 | CV37: -10.82896 | CW37: 189.17104 | CY37: 0.3 | CZ37: -105.41448 | DA37: -5.41448 | DB37: 94.58552 | DC37: 294.58552 | DM37: 0.3 | DN37: -8433.1584 | DO37: -8433.1584 | DP37: -8433.1584 | DQ37: -8433.1584 | DS37: 0.3 | DT37: -8433.1584 | DU37: -8433.1584 | DV37: -8433.1584 | DW37: -8433.1584 | DY37: 0.3 | DZ37: -8433.1584 | EA37: -8433.1584 | EB37: -8433.1584 | EC37: -8433.1584 | EM37: 0.3 | EN37: -8433.1584 | EO37: -8433.1584 | EP37: -8433.1584 | EQ37: -8433.1584 | ES37: 0.3 | ET37: -8433.1584 | EU37: -8433.1584 | EV37: -8433.1584 | EW37: -8433.1584 | EY37: 0.3 | EZ37: -8433.1584 | FA37: -8433.1584 | FB37: -8433.1584 | FC37: -8433.1584
AI38: Reduction in societal costs | AJ38: =IF('Base case'!$E$126=1,('Inputs (LTSA)'!AK38/100),'Inputs (LTSA)'!H25) -> 0.1 | AK38: 10 | AL38: =AJ38*100 -> 10 | AO38: 16 | AP38: -22063.43562 | AR38: 400 | AS38: -22063.43562 | AU38: 0.4 | AV38: -22063.43562 | BA38: =$D$35 -> 0 | BB38: =$AJ$38 -> 0.1 | BC38: =BB38*H32 -> 0.09 | BD38: =BC38*H32 -> 0.081 | BE38: =BD38*H32 -> 0.0729 | BF38: =BE38*H32 -> 0.06561 | BH38: =$D$35 -> 0 | BI38: 0 | BJ38: 0 | BK38: 0 | BL38: 0 | BM38: 0 | BO38: =$D$35 -> 0 | BP38: 0 | BQ38: 0 | BR38: 0 | BS38: 0 | BT38: 0 | CM38: 0.4 | CN38: -70.27632 | CO38: 29.72368 | CP38: 129.72368 | CQ38: 329.72368 | CS38: 0.4 | CT38: -281.10528 | CU38: -181.10528 | CV38: -81.10528 | CW38: 118.89472 | CY38: 0.4 | CZ38: -140.55264 | DA38: -40.55264 | DB38: 59.44736 | DC38: 259.44736 | DM38: 0.4 | DN38: -8433.1584 | DO38: -8433.1584 | DP38: -8433.1584 | DQ38: -8433.1584 | DS38: 0.4 | DT38: -8433.1584 | DU38: -8433.1584 | DV38: -8433.1584 | DW38: -8433.1584 | DY38: 0.4 | DZ38: -8433.1584 | EA38: -8433.1584 | EB38: -8433.1584 | EC38: -8433.1584 | EM38: 0.4 | EN38: -8433.1584 | EO38: -8433.1584 | EP38: -8433.1584 | EQ38: -8433.1584 | ES38: 0.4 | ET38: -8433.1584 | EU38: -8433.1584 | EV38: -8433.1584 | EW38: -8433.1584 | EY38: 0.4 | EZ38: -8433.1584 | FA38: -8433.1584 | FB38: -8433.1584 | FC38: -8433.1584
AI39: Cost per person affected | AJ39: =IF('Base case'!$E$126=1,'Inputs (LTSA)'!AK39,'Inputs (LTSA)'!E37) -> 0 | AK39: 5000 | AO39: 18 | AP39: -22063.43562 | AR39: 450 | AS39: -22063.43562 | AU39: 0.45 | AV39: -26811.83562 | BH39: Intervention cost | BI39: 0 | BJ39: 0 | BK39: 0 | BL39: 0 | BM39: 0 | BO39: Intervention cost | BP39: =BP28 -> 30000 | BQ39: 21739.13043 | BR39: 21003.99076 | BS39: 20293.71088 | BT39: 19607.45012 | CM39: 0.5 | CN39: -87.8454 | CO39: 12.1546 | CP39: 112.1546 | CQ39: 312.1546 | CS39: 0.5 | CT39: -351.3816 | CU39: -251.3816 | CV39: -151.3816 | CW39: 48.6184 | CY39: 0.5 | CZ39: -175.6908 | DA39: -75.6908 | DB39: 24.3092 | DC39: 224.3092 | DM39: 0.5 | DN39: -8433.1584 | DO39: -8433.1584 | DP39: -8433.1584 | DQ39: -8433.1584 | DS39: 0.5 | DT39: -8433.1584 | DU39: -8433.1584 | DV39: -8433.1584 | DW39: -8433.1584 | DY39: 0.5 | DZ39: -8433.1584 | EA39: -8433.1584 | EB39: -8433.1584 | EC39: -8433.1584 | EM39: 0.5 | EN39: -8433.1584 | EO39: -8433.1584 | EP39: -8433.1584 | EQ39: -8433.1584 | ES39: 0.5 | ET39: -8433.1584 | EU39: -8433.1584 | EV39: -8433.1584 | EW39: -8433.1584 | EY39: 0.5 | EZ39: -8433.1584 | FA39: -8433.1584 | FB39: -8433.1584 | FC39: -8433.1584
AO40: 20 | AP40: -22063.43562 | AR40: 500 | AS40: -22063.43562 | AU40: 0.5 | AV40: -31560.23562 | BA40: LIVE | BH40: Total | BI40: 1358729.047 | BJ40: =SUM(BJ34:BJ39) -> 1312781.688 | BK40: =SUM(BK34:BK39) -> 1268388.104 | BL40: =SUM(BL34:BL39) -> 1225495.753 | BM40: =SUM(BM34:BM39) -> 1184053.868 | BO40: Total | BP40: 1364818.083 | BQ40: =SUM(BQ34:BQ39) -> 1327908.049 | BR40: =SUM(BR34:BR39) -> 1291868.31 | BS40: 1248181.942 | BT40: 1205972.891 | CM40: 0.6 | CN40: -105.41448 | CO40: -5.41448 | CP40: 94.58552 | CQ40: 294.58552 | CS40: 0.6 | CT40: -421.65792 | CU40: -321.65792 | CV40: -221.65792 | CW40: -21.65792 | CY40: 0.6 | CZ40: -210.82896 | DA40: -110.82896 | DB40: -10.82896 | DC40: 189.17104 | DM40: 0.6 | DN40: -8433.1584 | DO40: -8433.1584 | DP40: -8433.1584 | DQ40: -8433.1584 | DS40: 0.6 | DT40: -8433.1584 | DU40: -8433.1584 | DV40: -8433.1584 | DW40: -8433.1584 | DY40: 0.6 | DZ40: -8433.1584 | EA40: -8433.1584 | EB40: -8433.1584 | EC40: -8433.1584 | EM40: 0.6 | EN40: -8433.1584 | EO40: -8433.1584 | EP40: -8433.1584 | EQ40: -8433.1584 | ES40: 0.6 | ET40: -8433.1584 | EU40: -8433.1584 | EV40: -8433.1584 | EW40: -8433.1584 | EY40: 0.6 | EZ40: -8433.1584 | FA40: -8433.1584 | FB40: -8433.1584 | FC40: -8433.1584 | FF40: Intervention cost | FG40: Reduction in turnover required to be cost-saving (%)
AO41: =AJ17 -> 20 | AP41: =AP29 -> -22063.43562 | AR41: =AJ18 -> 158.28 | AS41: =AS29 -> -22063.43562 | AU41: =AJ19 -> 0.4 | AV41: =AV29 -> -22063.43562 | CM41: 0.7 | CN41: -122.98356 | CO41: -22.98356 | CP41: 77.01644 | CQ41: 277.01644 | CS41: 0.7 | CT41: -491.93424 | CU41: -391.93424 | CV41: -291.93424 | CW41: -91.93424 | CY41: 0.7 | CZ41: -245.96712 | DA41: -145.96712 | DB41: -45.96712 | DC41: 154.03288 | DM41: 0.7 | DN41: -8433.1584 | DO41: -8433.1584 | DP41: -8433.1584 | DQ41: -8433.1584 | DS41: 0.7 | DT41: -8433.1584 | DU41: -8433.1584 | DV41: -8433.1584 | DW41: -8433.1584 | DY41: 0.7 | DZ41: -8433.1584 | EA41: -8433.1584 | EB41: -8433.1584 | EC41: -8433.1584 | EM41: 0.7 | EN41: -8433.1584 | EO41: -8433.1584 | EP41: -8433.1584 | EQ41: -8433.1584 | ES41: 0.7 | ET41: -8433.1584 | EU41: -8433.1584 | EV41: -8433.1584 | EW41: -8433.1584 | EY41: 0.7 | EZ41: -8433.1584 | FA41: -8433.1584 | FB41: -8433.1584 | FC41: -8433.1584
BB42: Year 1 | BC42: Year 2 | BD42: Year 3 | BE42: Year 4 | BF42: Year 5 | CM42: 0.8 | CN42: -140.55264 | CO42: -40.55264 | CP42: 59.44736 | CQ42: 259.44736 | CS42: 0.8 | CT42: -562.21056 | CU42: -462.21056 | CV42: -362.21056 | CW42: -162.21056 | CY42: 0.8 | CZ42: -281.10528 | DA42: -181.10528 | DB42: -81.10528 | DC42: 118.89472 | DM42: 0.8 | DN42: -8433.1584 | DO42: -8433.1584 | DP42: -8433.1584 | DQ42: -8433.1584 | DS42: 0.8 | DT42: -8433.1584 | DU42: -8433.1584 | DV42: -8433.1584 | DW42: -8433.1584 | DY42: 0.8 | DZ42: -8433.1584 | EA42: -8433.1584 | EB42: -8433.1584 | EC42: -8433.1584 | EM42: 0.8 | EN42: -8433.1584 | EO42: -8433.1584 | EP42: -8433.1584 | EQ42: -8433.1584 | ES42: 0.8 | ET42: -8433.1584 | EU42: -8433.1584 | EV42: -8433.1584 | EW42: -8433.1584 | EY42: 0.8 | EZ42: -8433.1584 | FA42: -8433.1584 | FB42: -8433.1584 | FC42: -8433.1584 | FF42: 0 | FG42: Always cost saving
AO43: Productivity | BI43: Cumulative discounted | BP43: Cumulative discounted | CM43: 0.9 | CN43: -158.12172 | CO43: -58.12172 | CP43: 41.87828 | CQ43: 241.87828 | CS43: 0.9 | CT43: -632.48688 | CU43: -532.48688 | CV43: -432.48688 | CW43: -232.48688 | CY43: 0.9 | CZ43: -316.24344 | DA43: -216.24344 | DB43: -116.24344 | DC43: 83.75656 | DM43: 0.9 | DN43: -8433.1584 | DO43: -8433.1584 | DP43: -8433.1584 | DQ43: -8433.1584 | DS43: 0.9 | DT43: -8433.1584 | DU43: -8433.1584 | DV43: -8433.1584 | DW43: -8433.1584 | DY43: 0.9 | DZ43: -8433.1584 | EA43: -8433.1584 | EB43: -8433.1584 | EC43: -8433.1584 | EM43: 0.9 | EN43: -8433.1584 | EO43: -8433.1584 | EP43: -8433.1584 | EQ43: -8433.1584 | ES43: 0.9 | ET43: -8433.1584 | EU43: -8433.1584 | EV43: -8433.1584 | EW43: -8433.1584 | EY43: 0.9 | EZ43: -8433.1584 | FA43: -8433.1584 | FB43: -8433.1584 | FC43: -8433.1584 | FF43: 200 | FG43: Always cost saving
AO44: % affected | AP44: ='Base case'!G19 -> -22063.43562 | AR44: Value of emp | AS44: ='Base case'!G19 -> -22063.43562 | AU44: Increase in prod | AV44: ='Base case'!G19 -> -22063.43562 | BB44: Difference from baseline in year 1 | BC44: Difference from baseline in year 2 | BD44: Difference from baseline in year 3 | BE44: Difference from baseline in year 4 | BF44: Difference from baseline in year 5 | BI44: Year 1 | BJ44: Year 2 | BK44: Year 3 | BL44: Year 4 | BM44: Year 5 | BP44: Year 1 | BQ44: Year 2 | BR44: Year 3 | BS44: Year 4 | BT44: Year 5 | CM44: 1 | CN44: -175.6908 | CO44: -75.6908 | CP44: 24.3092 | CQ44: 224.3092 | CS44: 1 | CT44: -702.7632 | CU44: -602.7632 | CV44: -502.7632 | CW44: -302.7632 | CY44: 1 | CZ44: -351.3816 | DA44: -251.3816 | DB44: -151.3816 | DC44: 48.6184 | DM44: 1 | DN44: -8433.1584 | DO44: -8433.1584 | DP44: -8433.1584 | DQ44: -8433.1584 | DS44: 1 | DT44: -8433.1584 | DU44: -8433.1584 | DV44: -8433.1584 | DW44: -8433.1584 | DY44: 1 | DZ44: -8433.1584 | EA44: -8433.1584 | EB44: -8433.1584 | EC44: -8433.1584 | EM44: 1 | EN44: -8433.1584 | EO44: -8433.1584 | EP44: -8433.1584 | EQ44: -8433.1584 | ES44: 1 | ET44: -8433.1584 | EU44: -8433.1584 | EV44: -8433.1584 | EW44: -8433.1584 | EY44: 1 | EZ44: -8433.1584 | FA44: -8433.1584 | FB44: -8433.1584 | FC44: -8433.1584 | FF44: 400 | FG44: 0.49
AO45: 0 | AP45: -22063.43562 | AR45: 0 | AS45: -22063.43562 | AU45: 0 | AV45: -22063.43562 | BH45: =$D$19 -> Absenteeism (sick leave) | BI45: =BI34 -> 94968 | BJ45: =BI45+BJ34 -> 186724.5217 | BK45: 275378.1659 | BL45: 361033.8608 | BM45: 443792.9863 | BO45: =$D$19 -> Absenteeism (sick leave) | BP45: =BP34 -> 56980.8 | BQ45: =BP45+BQ34 -> 130386.0174 | BR45: =BQ45+BR34 -> 210174.2972 | BS45: 287264.4225 | BT45: 361747.6355 | FF45: 600 | FG45: Cost-saving cannot be achieved
AO46: 0.1 | AP46: -22063.43562 | AR46: 5000 | AS46: -22063.43562 | AU46: 0.001 | AV46: -22063.43562 | BA46: =$D$19 -> Absenteeism (sick leave) | BB46: =CHOOSE($D$136,BB22,BB34,H21) -> 0.4 | BC46: =CHOOSE($D$136,BC22,BC34,I21) -> 0.2 | BD46: 0.1 | BE46: 0.1 | BF46: 0.1 | BH46: =$D$23 -> Productivity | BI46: 1201200 | BJ46: 2361779.71 | BK46: 3483112.763 | BL46: 4566526.341 | BM46: 5613302.745 | BO46: =$D$23 -> Productivity | BP46: =BP35 -> 1201200 | BQ46: =BP46+BQ35 -> 2362940.29 | BR46: 3485394.676 | BS46: 4569891.668 | BT46: 5617714.848 | CK46: =CF21 -> 316.56 | CM46: 0 | CN46: 0 | CO46: 100 | CP46: 200 | CQ46: 400 | CS46: 0 | CT46: 0 | CU46: 100 | CV46: 200 | CW46: 400 | CY46: 0 | CZ46: 0 | DA46: 100 | DB46: 200 | DC46: 400 | DM46: 0 | DN46: -8433.1584 | DO46: -8433.1584 | DP46: -8433.1584 | DQ46: -8433.1584 | DS46: 0 | DT46: -8433.1584 | DU46: -8433.1584 | DV46: -8433.1584 | DW46: -8433.1584 | DY46: 0 | DZ46: -8433.1584 | EA46: -8433.1584 | EB46: -8433.1584 | EC46: -8433.1584 | EL46: Reduction in turnover | EM46: 0 | EN46: -8433.1584 | EO46: -8433.1584 | EP46: -8433.1584 | EQ46: -8433.1584 | ES46: 0 | ET46: -8433.1584 | EU46: -8433.1584 | EV46: -8433.1584 | EW46: -8433.1584 | EY46: 0 | EZ46: -8433.1584 | FA46: -8433.1584 | FB46: -8433.1584 | FC46: -8433.1584
AO47: 0.2 | AP47: -22063.43562 | AR47: 10000 | AS47: -22063.43562 | AU47: 0.002 | AV47: -22063.43562 | BA47: =$D$23 -> Productivity | BB47: =CHOOSE($D$136,BB23,BB35,H22) -> 0 | BC47: 0.001 | BD47: 0.001 | BE47: 0.001 | BF47: 0.001 | BH47: =$D$27 -> Staff turnover | BI47: 62561.0472 | BJ47: 123006.5034 | BK47: 181407.9104 | BL47: 237834.3906 | BM47: 292352.7289 | BO47: =$D$27 -> Staff turnover | BP47: 76637.28282 | BQ47: =BP47+BQ36 -> 147660.6939 | BR47: 216282.3471 | BS47: 282583.4613 | BT47: 346642.5089 | CM47: 0.1 | CN47: -35.13816 | CO47: 64.86184 | CP47: 164.86184 | CQ47: 364.86184 | CS47: 0.1 | CT47: -35.13816 | CU47: 64.86184 | CV47: 164.86184 | CW47: 364.86184 | CY47: 0.1 | CZ47: -70.27632 | DA47: 29.72368 | DB47: 129.72368 | DC47: 329.72368 | DL47: =DH21 -> 80080 | DM47: 0.1 | DN47: -8433.1584 | DO47: -8433.1584 | DP47: -8433.1584 | DQ47: -8433.1584 | DS47: 0.1 | DT47: -8433.1584 | DU47: -8433.1584 | DV47: -8433.1584 | DW47: -8433.1584 | DY47: 0.1 | DZ47: -8433.1584 | EA47: -8433.1584 | EB47: -8433.1584 | EC47: -8433.1584 | EK47: =EH21 -> 30667.18 | EM47: 0.1 | EN47: -8433.1584 | EO47: -8433.1584 | EP47: -8433.1584 | EQ47: -8433.1584 | ES47: 0.1 | ET47: -8433.1584 | EU47: -8433.1584 | EV47: -8433.1584 | EW47: -8433.1584 | EY47: 0.1 | EZ47: -8433.1584 | FA47: -8433.1584 | FB47: -8433.1584 | FC47: -8433.1584
AO48: 0.3 | AP48: -22063.43562 | AR48: 15000 | AS48: -22063.43562 | AU48: 0.003 | AV48: -22063.43562 | BA48: =$D$27 -> Staff turnover | BB48: =CHOOSE($D$136,BB24,BB36,H23) -> -0.225 | BC48: -0.175 | BD48: -0.175 | BE48: -0.175 | BF48: -0.175 | BH48: =$D$31 -> 0 | BI48: 0 | BJ48: 0 | BK48: 0 | BL48: 0 | BM48: 0 | BO48: =$D$31 -> 0 | BP48: 0 | BQ48: 0 | BR48: 0 | BS48: 0 | BT48: 0 | CM48: 0.2 | CN48: -70.27632 | CO48: 29.72368 | CP48: 129.72368 | CQ48: 329.72368 | CS48: 0.2 | CT48: -70.27632 | CU48: 29.72368 | CV48: 129.72368 | CW48: 329.72368 | CY48: 0.2 | CZ48: -140.55264 | DA48: -40.55264 | DB48: 59.44736 | DC48: 259.44736 | DM48: 0.2 | DN48: -8433.1584 | DO48: -8433.1584 | DP48: -8433.1584 | DQ48: -8433.1584 | DS48: 0.2 | DT48: -8433.1584 | DU48: -8433.1584 | DV48: -8433.1584 | DW48: -8433.1584 | DY48: 0.2 | DZ48: -8433.1584 | EA48: -8433.1584 | EB48: -8433.1584 | EC48: -8433.1584 | EM48: 0.2 | EN48: -8433.1584 | EO48: -8433.1584 | EP48: -8433.1584 | EQ48: -8433.1584 | ES48: 0.2 | ET48: -8433.1584 | EU48: -8433.1584 | EV48: -8433.1584 | EW48: -8433.1584 | EY48: 0.2 | EZ48: -8433.1584 | FA48: -8433.1584 | FB48: -8433.1584 | FC48: -8433.1584
AO49: 0.4 | AP49: -22063.43562 | AR49: 20000 | AS49: -22063.43562 | AU49: 0.004 | AV49: -22063.43562 | BA49: =$D$31 -> 0 | BB49: =CHOOSE($D$136,BB25,BB37,H24) -> 0.1 | BC49: 0.5 | BD49: 0.5 | BE49: 0.5 | BF49: 0.5 | BH49: =$D$35 -> 0 | BI49: 0 | BJ49: 0 | BK49: 0 | BL49: 0 | BM49: 0 | BO49: =$D$35 -> 0 | BP49: 0 | BQ49: 0 | BR49: 0 | BS49: 0 | BT49: 0 | CM49: 0.3 | CN49: -105.41448 | CO49: -5.41448 | CP49: 94.58552 | CQ49: 294.58552 | CS49: 0.3 | CT49: -105.41448 | CU49: -5.41448 | CV49: 94.58552 | CW49: 294.58552 | CY49: 0.3 | CZ49: -210.82896 | DA49: -110.82896 | DB49: -10.82896 | DC49: 189.17104 | DM49: 0.3 | DN49: -8433.1584 | DO49: -8433.1584 | DP49: -8433.1584 | DQ49: -8433.1584 | DS49: 0.3 | DT49: -8433.1584 | DU49: -8433.1584 | DV49: -8433.1584 | DW49: -8433.1584 | DY49: 0.3 | DZ49: -8433.1584 | EA49: -8433.1584 | EB49: -8433.1584 | EC49: -8433.1584 | EM49: 0.3 | EN49: -8433.1584 | EO49: -8433.1584 | EP49: -8433.1584 | EQ49: -8433.1584 | ES49: 0.3 | ET49: -8433.1584 | EU49: -8433.1584 | EV49: -8433.1584 | EW49: -8433.1584 | EY49: 0.3 | EZ49: -8433.1584 | FA49: -8433.1584 | FB49: -8433.1584 | FC49: -8433.1584
AO50: 0.5 | AP50: -22063.43562 | AR50: 25000 | AS50: -22063.43562 | AU50: 0.005 | AV50: -22063.43562 | BA50: =$D$35 -> 0 | BB50: =CHOOSE($D$136,BB26,BB38,H25) -> 0.1 | BC50: 0.1 | BD50: 0.1 | BE50: 0.1 | BF50: 0.1 | BH50: Intervention cost | BI50: 0 | BJ50: 0 | BK50: 0 | BL50: 0 | BM50: 0 | BO50: Intervention cost | BP50: =BP39 -> 30000 | BQ50: =BP50+BQ39 -> 51739.13043 | BR50: 72743.12119 | BS50: 93036.83207 | BT50: 112644.2822 | CM50: 0.4 | CN50: -140.55264 | CO50: -40.55264 | CP50: 59.44736 | CQ50: 259.44736 | CS50: 0.4 | CT50: -140.55264 | CU50: -40.55264 | CV50: 59.44736 | CW50: 259.44736 | CY50: 0.4 | CZ50: -281.10528 | DA50: -181.10528 | DB50: -81.10528 | DC50: 118.89472 | DM50: 0.4 | DN50: -8433.1584 | DO50: -8433.1584 | DP50: -8433.1584 | DQ50: -8433.1584 | DS50: 0.4 | DT50: -8433.1584 | DU50: -8433.1584 | DV50: -8433.1584 | DW50: -8433.1584 | DY50: 0.4 | DZ50: -8433.1584 | EA50: -8433.1584 | EB50: -8433.1584 | EC50: -8433.1584 | EM50: 0.4 | EN50: -8433.1584 | EO50: -8433.1584 | EP50: -8433.1584 | EQ50: -8433.1584 | ES50: 0.4 | ET50: -8433.1584 | EU50: -8433.1584 | EV50: -8433.1584 | EW50: -8433.1584 | EY50: 0.4 | EZ50: -8433.1584 | FA50: -8433.1584 | FB50: -8433.1584 | FC50: -8433.1584
AO51: 0.6 | AP51: -22063.43562 | AR51: 30000 | AS51: -22063.43562 | AU51: 0.006 | AV51: -22063.43562 | BH51: Total cumulative | BI51: 1358729.047 | BJ51: 2671510.735 | BK51: 3939898.84 | BL51: 5165394.593 | BM51: 6349448.461 | BO51: Total cumulative | BP51: =BP40 -> 1364818.083 | BQ51: =BP51+BQ40 -> 2692726.132 | BR51: =BQ51+BR40 -> 3984594.442 | BS51: =BR51+BS40 -> 5232776.384 | BT51: =BS51+BT40 -> 6438749.275 | CM51: 0.5 | CN51: -175.6908 | CO51: -75.6908 | CP51: 24.3092 | CQ51: 224.3092 | CS51: 0.5 | CT51: -175.6908 | CU51: -75.6908 | CV51: 24.3092 | CW51: 224.3092 | CY51: 0.5 | CZ51: -351.3816 | DA51: -251.3816 | DB51: -151.3816 | DC51: 48.6184 | DM51: 0.5 | DN51: -8433.1584 | DO51: -8433.1584 | DP51: -8433.1584 | DQ51: -8433.1584 | DS51: 0.5 | DT51: -8433.1584 | DU51: -8433.1584 | DV51: -8433.1584 | DW51: -8433.1584 | DY51: 0.5 | DZ51: -8433.1584 | EA51: -8433.1584 | EB51: -8433.1584 | EC51: -8433.1584 | EM51: 0.5 | EN51: -8433.1584 | EO51: -8433.1584 | EP51: -8433.1584 | EQ51: -8433.1584 | ES51: 0.5 | ET51: -8433.1584 | EU51: -8433.1584 | EV51: -8433.1584 | EW51: -8433.1584 | EY51: 0.5 | EZ51: -8433.1584 | FA51: -8433.1584 | FB51: -8433.1584 | FC51: -8433.1584
AO52: 0.7 | AP52: -22063.43562 | AR52: 35000 | AS52: -22063.43562 | AU52: 0.007 | AV52: -22063.43562 | CM52: 0.6 | CN52: -210.82896 | CO52: -110.82896 | CP52: -10.82896 | CQ52: 189.17104 | CS52: 0.6 | CT52: -210.82896 | CU52: -110.82896 | CV52: -10.82896 | CW52: 189.17104 | CY52: 0.6 | CZ52: -421.65792 | DA52: -321.65792 | DB52: -221.65792 | DC52: -21.65792 | DM52: 0.6 | DN52: -8433.1584 | DO52: -8433.1584 | DP52: -8433.1584 | DQ52: -8433.1584 | DS52: 0.6 | DT52: -8433.1584 | DU52: -8433.1584 | DV52: -8433.1584 | DW52: -8433.1584 | DY52: 0.6 | DZ52: -8433.1584 | EA52: -8433.1584 | EB52: -8433.1584 | EC52: -8433.1584 | EM52: 0.6 | EN52: -8433.1584 | EO52: -8433.1584 | EP52: -8433.1584 | EQ52: -8433.1584 | ES52: 0.6 | ET52: -8433.1584 | EU52: -8433.1584 | EV52: -8433.1584 | EW52: -8433.1584 | EY52: 0.6 | EZ52: -8433.1584 | FA52: -8433.1584 | FB52: -8433.1584 | FC52: -8433.1584
AO53: 0.8 | AP53: -22063.43562 | AR53: 40000 | AS53: -22063.43562 | AU53: 0.008 | AV53: -22063.43562 | CM53: 0.7 | CN53: -245.96712 | CO53: -145.96712 | CP53: -45.96712 | CQ53: 154.03288 | CS53: 0.7 | CT53: -245.96712 | CU53: -145.96712 | CV53: -45.96712 | CW53: 154.03288 | CY53: 0.7 | CZ53: -491.93424 | DA53: -391.93424 | DB53: -291.93424 | DC53: -91.93424 | DM53: 0.7 | DN53: -8433.1584 | DO53: -8433.1584 | DP53: -8433.1584 | DQ53: -8433.1584 | DS53: 0.7 | DT53: -8433.1584 | DU53: -8433.1584 | DV53: -8433.1584 | DW53: -8433.1584 | DY53: 0.7 | DZ53: -8433.1584 | EA53: -8433.1584 | EB53: -8433.1584 | EC53: -8433.1584 | EM53: 0.7 | EN53: -8433.1584 | EO53: -8433.1584 | EP53: -8433.1584 | EQ53: -8433.1584 | ES53: 0.7 | ET53: -8433.1584 | EU53: -8433.1584 | EV53: -8433.1584 | EW53: -8433.1584 | EY53: 0.7 | EZ53: -8433.1584 | FA53: -8433.1584 | FB53: -8433.1584 | FC53: -8433.1584
AO54: 0.9 | AP54: -22063.43562 | AR54: 45000 | AS54: -22063.43562 | AU54: 0.009 | AV54: -22063.43562 | CM54: 0.8 | CN54: -281.10528 | CO54: -181.10528 | CP54: -81.10528 | CQ54: 118.89472 | CS54: 0.8 | CT54: -281.10528 | CU54: -181.10528 | CV54: -81.10528 | CW54: 118.89472 | CY54: 0.8 | CZ54: -562.21056 | DA54: -462.21056 | DB54: -362.21056 | DC54: -162.21056 | DM54: 0.8 | DN54: -8433.1584 | DO54: -8433.1584 | DP54: -8433.1584 | DQ54: -8433.1584 | DS54: 0.8 | DT54: -8433.1584 | DU54: -8433.1584 | DV54: -8433.1584 | DW54: -8433.1584 | DY54: 0.8 | DZ54: -8433.1584 | EA54: -8433.1584 | EB54: -8433.1584 | EC54: -8433.1584 | EM54: 0.8 | EN54: -8433.1584 | EO54: -8433.1584 | EP54: -8433.1584 | EQ54: -8433.1584 | ES54: 0.8 | ET54: -8433.1584 | EU54: -8433.1584 | EV54: -8433.1584 | EW54: -8433.1584 | EY54: 0.8 | EZ54: -8433.1584 | FA54: -8433.1584 | FB54: -8433.1584 | FC54: -8433.1584
AO55: 1 | AP55: -22063.43562 | AR55: 50000 | AS55: -22063.43562 | AU55: 0.01 | AV55: -22063.43562 | CM55: 0.9 | CN55: -316.24344 | CO55: -216.24344 | CP55: -116.24344 | CQ55: 83.75656 | CS55: 0.9 | CT55: -316.24344 | CU55: -216.24344 | CV55: -116.24344 | CW55: 83.75656 | CY55: 0.9 | CZ55: -632.48688 | DA55: -532.48688 | DB55: -432.48688 | DC55: -232.48688 | DM55: 0.9 | DN55: -8433.1584 | DO55: -8433.1584 | DP55: -8433.1584 | DQ55: -8433.1584 | DS55: 0.9 | DT55: -8433.1584 | DU55: -8433.1584 | DV55: -8433.1584 | DW55: -8433.1584 | DY55: 0.9 | DZ55: -8433.1584 | EA55: -8433.1584 | EB55: -8433.1584 | EC55: -8433.1584 | EM55: 0.9 | EN55: -8433.1584 | EO55: -8433.1584 | EP55: -8433.1584 | EQ55: -8433.1584 | ES55: 0.9 | ET55: -8433.1584 | EU55: -8433.1584 | EV55: -8433.1584 | EW55: -8433.1584 | EY55: 0.9 | EZ55: -8433.1584 | FA55: -8433.1584 | FB55: -8433.1584 | FC55: -8433.1584
AO56: =AJ22 -> 1 | AP56: =AP44 -> -22063.43562 | AR56: =AJ23 -> 40040 | AS56: =AS44 -> -22063.43562 | AU56: =AJ24 -> 0 | AV56: =AV44 -> -22063.43562 | CM56: 1 | CN56: -351.3816 | CO56: -251.3816 | CP56: -151.3816 | CQ56: 48.6184 | CS56: 1 | CT56: -351.3816 | CU56: -251.3816 | CV56: -151.3816 | CW56: 48.6184 | CY56: 1 | CZ56: -702.7632 | DA56: -602.7632 | DB56: -502.7632 | DC56: -302.7632 | DM56: 1 | DN56: -8433.1584 | DO56: -8433.1584 | DP56: -8433.1584 | DQ56: -8433.1584 | DS56: 1 | DT56: -8433.1584 | DU56: -8433.1584 | DV56: -8433.1584 | DW56: -8433.1584 | DY56: 1 | DZ56: -8433.1584 | EA56: -8433.1584 | EB56: -8433.1584 | EC56: -8433.1584 | EM56: 1 | EN56: -8433.1584 | EO56: -8433.1584 | EP56: -8433.1584 | EQ56: -8433.1584 | ES56: 1 | ET56: -8433.1584 | EU56: -8433.1584 | EV56: -8433.1584 | EW56: -8433.1584 | EY56: 1 | EZ56: -8433.1584 | FA56: -8433.1584 | FB56: -8433.1584 | FC56: -8433.1584
AO58: Staff turnover
AO59: Annual rate of turnover | AP59: ='Base case'!G19 -> -22063.43562 | AR59: Cost per case | AS59: ='Base case'!G19 -> -22063.43562 | AU59: Reduction in turnover | AV59: ='Base case'!G19 -> -22063.43562
AO60: 0 | AP60: -22063.43562 | AR60: 0 | AS60: -22063.43562 | AU60: 0 | AV60: -22063.43562 | CM60: Max | CN60: =MAXA(CN22:CQ32,CT22:CW32,CZ22:DC32,CN34:CQ44,CT34:CW44,CZ34:DC44,CN46:CQ56,CT46:CW56,CZ46:DC56) -> 400 | CO60: 0 | DM60: Max | DN60: =MAXA(DN22:DQ32,DT22:DW32,DZ22:EC32,DZ34:EC44,DT34:DW44,DN34:DQ44,DN46:DQ56,DT46:DW56,DZ46:EC56) -> -8433.1584 | DO60: 0 | EM60: Max | EN60: =MAXA(EN22:EQ32,ET22:EW32,EZ22:FC32,EZ34:FC44,ET34:EW44,EN34:EQ44,EN46:EQ56,ET46:EW56,EZ46:FC56) -> -8433.1584 | EO60: 0
AO61: 0.05 | AP61: -22063.43562 | AR61: 5000 | AS61: -22063.43562 | AU61: 0.05 | AV61: -22063.43562 | CM61: Min | CN61: =MINA(CN22:CQ32,CT22:CW32,CZ22:DC32,CN34:CQ44,CT34:CW44,CZ34:DC44,CN46:CQ56,CT46:CW56,CZ46:DC56) -> -702.7632 | CO61: 0 | DM61: Min | DN61: =MINA(DN22:DQ32,DT22:DW32,DZ22:EC32,DZ34:EC44,DT34:DW44,DN34:DQ44,DN46:DQ56,DT46:DW56,DZ46:EC56) -> -8433.1584 | DO61: 0 | EM61: Min | EN61: =MINA(EN22:EQ32,ET22:EW32,EZ22:FC32,EZ34:FC44,ET34:EW44,EN34:EQ44,EN46:EQ56,ET46:EW56,EZ46:FC56) -> -8433.1584 | EO61: 0
AO62: 0.1 | AP62: -22063.43562 | AR62: 10000 | AS62: -22063.43562 | AU62: 0.1 | AV62: -22063.43562
AO63: 0.15 | AP63: -22063.43562 | AR63: 15000 | AS63: -22063.43562 | AU63: 0.15 | AV63: -22063.43562
AO64: 0.2 | AP64: -22063.43562 | AR64: 20000 | AS64: -22063.43562 | AU64: 0.2 | AV64: -22063.43562
AO65: 0.25 | AP65: -22063.43562 | AR65: 25000 | AS65: -22063.43562 | AU65: 0.25 | AV65: -22063.43562
AO66: 0.3 | AP66: -22063.43562 | AR66: 30000 | AS66: -22063.43562 | AU66: 0.3 | AV66: -22063.43562
AO67: 0.35 | AP67: -22063.43562 | AR67: 35000 | AS67: -22063.43562 | AU67: 0.35 | AV67: -22063.43562
AO68: 0.4 | AP68: -22063.43562 | AR68: 40000 | AS68: -22063.43562 | AU68: 0.4 | AV68: -22063.43562
AO69: 0.45 | AP69: -22063.43562 | AR69: 45000 | AS69: -22063.43562 | AU69: 0.45 | AV69: -22063.43562
AO70: 0.5 | AP70: -22063.43562 | AR70: 50000 | AS70: -22063.43562 | AU70: 0.5 | AV70: -22063.43562
AO71: =AJ27 -> 0.136 | AP71: =AP59 -> -22063.43562 | AR71: =AJ29 -> 15333.59 | AS71: =AS59 -> -22063.43562 | AU71: =AJ28 -> -0.225 | AV71: =AV59 -> -22063.43562
AO73: Healthcare costs
AO74: % affected | AP74: ='Base case'!G19 -> -22063.43562 | AR74: Cost per person | AS74: ='Base case'!G19 -> -22063.43562 | AU74: Reduction in healthcare use | AV74: ='Base case'!G19 -> -22063.43562
AO75: 0 | AP75: -22063.43562 | AR75: 0 | AS75: -22063.43562 | AU75: 0 | AV75: -22063.43562
AO76: 0.05 | AP76: -22063.43562 | AR76: 200 | AS76: -22063.43562 | AU76: 0.1 | AV76: -22063.43562
AO77: 0.1 | AP77: -22063.43562 | AR77: 400 | AS77: -22063.43562 | AU77: 0.2 | AV77: -22063.43562
AO78: 0.15 | AP78: -22063.43562 | AR78: 600 | AS78: -22063.43562 | AU78: 0.3 | AV78: -22063.43562
AO79: 0.2 | AP79: -22063.43562 | AR79: 800 | AS79: -22063.43562 | AU79: 0.4 | AV79: -22063.43562
AO80: 0.25 | AP80: -22063.43562 | AR80: 1000 | AS80: -22063.43562 | AU80: 0.5 | AV80: -22063.43562
AO81: 0.3 | AP81: -22063.43562 | AR81: 1200 | AS81: -22063.43562 | AU81: 0.6 | AV81: -22063.43562
AO82: 0.35 | AP82: -22063.43562 | AR82: 1400 | AS82: -22063.43562 | AU82: 0.7 | AV82: -22063.43562
AO83: 0.4 | AP83: -22063.43562 | AR83: 1600 | AS83: -22063.43562 | AU83: 0.8 | AV83: -22063.43562
AO84: 0.45 | AP84: -22063.43562 | AR84: 1800 | AS84: -22063.43562 | AU84: 0.9 | AV84: -22063.43562
AO85: 0.5 | AP85: -22063.43562 | AR85: 2000 | AS85: -22063.43562 | AU85: 1 | AV85: -22063.43562
AO86: =AJ32 -> 0 | AP86: =AP74 -> -22063.43562 | AR86: =AJ34 -> 0 | AS86: =AS74 -> -22063.43562 | AU86: =AJ33 -> 0.1 | AV86: =AV74 -> -22063.43562
AO88: Other societal costs
AO89: % affected | AP89: ='Base case'!G19 -> -22063.43562 | AR89: Cost per person | AS89: ='Base case'!G19 -> -22063.43562 | AU89: Reduction in societal costs | AV89: ='Base case'!G19 -> -22063.43562
AO90: 0 | AP90: -22063.43562 | AR90: 0 | AS90: -22063.43562 | AU90: 0 | AV90: -22063.43562
AO91: 0.05 | AP91: -22063.43562 | AR91: 1000 | AS91: -22063.43562 | AU91: 0.05 | AV91: -22063.43562
AO92: 0.1 | AP92: -22063.43562 | AR92: 2000 | AS92: -22063.43562 | AU92: 0.1 | AV92: -22063.43562
AO93: 0.15 | AP93: -22063.43562 | AR93: 3000 | AS93: -22063.43562 | AU93: 0.15 | AV93: -22063.43562
AO94: 0.2 | AP94: -22063.43562 | AR94: 4000 | AS94: -22063.43562 | AU94: 0.2 | AV94: -22063.43562
AO95: 0.25 | AP95: -22063.43562 | AR95: 5000 | AS95: -22063.43562 | AU95: 0.25 | AV95: -22063.43562
AO96: 0.3 | AP96: -22063.43562 | AR96: 6000 | AS96: -22063.43562 | AU96: 0.3 | AV96: -22063.43562
AO97: 0.35 | AP97: -22063.43562 | AR97: 7000 | AS97: -22063.43562 | AU97: 0.35 | AV97: -22063.43562
AO98: 0.4 | AP98: -22063.43562 | AR98: 8000 | AS98: -22063.43562 | AU98: 0.4 | AV98: -22063.43562
AO99: 0.45 | AP99: -22063.43562 | AR99: 9000 | AS99: -22063.43562 | AU99: 0.45 | AV99: -22063.43562
AO100: 0.5 | AP100: -22063.43562 | AR100: 10000 | AS100: -22063.43562 | AU100: 0.5 | AV100: -22063.43562
AO101: =AJ37 -> 0 | AP101: =AP89 -> -22063.43562 | AR101: =AJ39 -> 0 | AS101: =AS89 -> -22063.43562 | AU101: =AJ38 -> 0.1 | AV101: =AV89 -> -22063.43562
AO103: Difference in effectiveness
AO104: =CONCATENATE("Reduction in ",AL102) -> Reduction in | AP104: ='Base case'!G19 -> -22063.43562 | AR104: =CONCATENATE("Increase in ",AL106) -> Increase in | AS104: ='Base case'!G19 -> -22063.43562 | AU104: =CONCATENATE("Reduction in ",AL110) -> Reduction in | AV104: ='Base case'!G19 -> -22063.43562 | AX104: =CONCATENATE("Reduction in ",AL114) -> Reduction in | AY104: ='Base case'!G19 -> -22063.43562 | BA104: =CONCATENATE("Reduction in ",AL118) -> Reduction in | BB104: ='Base case'!G19 -> -22063.43562
AO105: 0.5 | AP105: -22063.43562 | AR105: 0.5 | AS105: -22063.43562 | AU105: 0.5 | AV105: -22063.43562 | AX105: 0.5 | AY105: -22063.43562 | BA105: 0.5 | BB105: -22063.43562
AO106: 0.6 | AP106: -22063.43562 | AR106: 0.6 | AS106: -22063.43562 | AU106: 0.6 | AV106: -22063.43562 | AX106: 0.6 | AY106: -22063.43562 | BA106: 0.6 | BB106: -22063.43562
AO107: 0.7 | AP107: -22063.43562 | AR107: 0.7 | AS107: -22063.43562 | AU107: 0.7 | AV107: -22063.43562 | AX107: 0.7 | AY107: -22063.43562 | BA107: 0.7 | BB107: -22063.43562
AO108: 0.8 | AP108: -22063.43562 | AR108: 0.8 | AS108: -22063.43562 | AU108: 0.8 | AV108: -22063.43562 | AX108: 0.8 | AY108: -22063.43562 | BA108: 0.8 | BB108: -22063.43562
AO109: 0.9 | AP109: -22063.43562 | AR109: 0.9 | AS109: -22063.43562 | AU109: 0.9 | AV109: -22063.43562 | AX109: 0.9 | AY109: -22063.43562 | BA109: 0.9 | BB109: -22063.43562
AO110: 1 | AP110: -22063.43562 | AR110: 1 | AS110: -22063.43562 | AU110: 1 | AV110: -22063.43562 | AX110: 1 | AY110: -22063.43562 | BA110: 1 | BB110: -22063.43562
AO111: 1.1 | AP111: -22063.43562 | AR111: 1.1 | AS111: -22063.43562 | AU111: 1.1 | AV111: -22063.43562 | AX111: 1.1 | AY111: -22063.43562 | BA111: 1.1 | BB111: -22063.43562
AO112: 1.2 | AP112: -22063.43562 | AR112: 1.2 | AS112: -22063.43562 | AU112: 1.2 | AV112: -22063.43562 | AX112: 1.2 | AY112: -22063.43562 | BA112: 1.2 | BB112: -22063.43562
AO113: 1.3 | AP113: -22063.43562 | AR113: 1.3 | AS113: -22063.43562 | AU113: 1.3 | AV113: -22063.43562 | AX113: 1.3 | AY113: -22063.43562 | BA113: 1.3 | BB113: -22063.43562
AO114: 1.4 | AP114: -22063.43562 | AR114: 1.4 | AS114: -22063.43562 | AU114: 1.4 | AV114: -22063.43562 | AX114: 1.4 | AY114: -22063.43562 | BA114: 1.4 | BB114: -22063.43562
AO115: 1.5 | AP115: -22063.43562 | AR115: 1.5 | AS115: -22063.43562 | AU115: 1.5 | AV115: -22063.43562 | AX115: 1.5 | AY115: -22063.43562 | BA115: 1.5 | BB115: -22063.43562
D116: Include? | AO116: =H28 -> 0.9 | AP116: =AP104 -> -22063.43562 | AR116: =H29 -> 0.9 | AS116: =AS104 -> -22063.43562 | AU116: =H30 -> 0.9 | AV116: =AV104 -> -22063.43562 | AX116: =H31 -> 0.9 | AY116: =AY104 -> -22063.43562 | BA116: =H32 -> 0.9 | BB116: =BB104 -> -22063.43562
D117: Absenteeism | E117: TRUE | G117: =IF(E117=TRUE,1,0) -> 1 | J117: Calcs
D118: Productivity | E118: TRUE | G118: =IF(E118=TRUE,1,0) -> 1 | J118: year 1 | K118: year 2
D119: Staff turnover | E119: TRUE | G119: 1 | I119: Baseline | J119: after | K119: after
D120: Health care costs | E120: FALSE | G120: 0 | I120: =E14*E20*E21 -> 94968 | J120: =I120*(1-H21) -> 56980.8 | K120: =J120*(1-I21) -> 45584.64
D121: Societal costs | E121: FALSE | G121: 0
D125: 1 year
D126: 2 years
D127: 3 years
D128: 4 years
D129: 5 years
D130: 1
D132: Effectiveness method | E132: For IF
D133: =IF($D$130=1,"N/A for one year time horizon",E133) -> N/A for one year time horizon | E133: Same effectiveness each year
D134: =IF($D$130=1,"N/A for one year time horizon",E134) -> N/A for one year time horizon | E134: % difference in effectiveness each year
D135: N/A for one year time horizon | E135: User input effectiveness each year
D136: 3
D217: Number of days lost per person (absenteeism)
D219: 16-24 | E219: 0.012
D220: 25-34 | E220: 0.015
D221: 35-49 | E221: 0.02
D222: 50-64 | E222: 0.028
D223: 65+ | E223: 0.023
D225: http://www.ons.gov.uk/ons/dcp171778_412021.pdf
E226: Number employed (000s)
D227: 16-65 | E227: 29894 | F227: =E227/E229 -> 0.9632660953 | G227: =AVERAGE(E219:E222) -> 0.01875
D228: 65+ | E228: 1140 | F228: =E228/E229 -> 0.03673390475 | G228: =E223 -> 0.023
E229: =SUM(E227:E228) -> 31034 | F229: =SUM(F227:F228) -> 1 | G229: =SUMPRODUCT(G227:G228,E227:E228)/SUM(E227:E228) -> 0.0189061191
G230: =253*G229 -> 4.783248131
E233: CPI
D234: 2007 Q1 | E234: 103.7
D235: 2015 Dec | E235: 128.5
E236: =E235/E234 -> 1.239151398
E237: =11625*E236 -> 14405.135
E239: =528*52 -> 27456

Sheet Base case
C4: XXXXXXXXXXX
D10: Time horizon for results | E10: =IF(Inputs!D130=1,"1 year",CONCATENATE(Inputs!D130," years")) -> 1 year
E12: No intervention | F12: Intervention | G12: Incremental cost
D13: Cost of absenteeism | E13: =CHOOSE(Inputs!$D$130,Inputs!BI45,Inputs!BJ45,Inputs!BK45,Inputs!BL45,Inputs!BM45) -> 94968 | F13: =CHOOSE(Inputs!$D$130,Inputs!BP45,Inputs!BQ45,Inputs!BR45,Inputs!BS45,Inputs!BT45) -> 56980.8 | G13: =F13-E13 -> -37987.2
D14: Productivity | E14: =CHOOSE(Inputs!$D$130,Inputs!BI46,Inputs!BJ46,Inputs!BK46,Inputs!BL46,Inputs!BM46) -> 1201200 | F14: =CHOOSE(Inputs!$D$130,Inputs!BP46,Inputs!BQ46,Inputs!BR46,Inputs!BS46,Inputs!BT46) -> 1201200 | G14: =E14-F14 -> 0
D15: Cost of staff turnover | E15: =(CHOOSE(Inputs!$D$130,Inputs!BI47,Inputs!BJ47,Inputs!BK47,Inputs!BL47,Inputs!BM47)) -> 62561.0472 | F15: =(CHOOSE(Inputs!$D$130,Inputs!BP47,Inputs!BQ47,Inputs!BR47,Inputs!BS47,Inputs!BT47)) -> 48484.81158 | G15: =(F15-E15) -> -14076.23562
D16: =Inputs!D31 -> 0 | E16: =CHOOSE(Inputs!$D$130,Inputs!BI48,Inputs!BJ48,Inputs!BK48,Inputs!BL48,Inputs!BM48) -> 0 | F16: =CHOOSE(Inputs!$D$130,Inputs!BP48,Inputs!BQ48,Inputs!BR48,Inputs!BS48,Inputs!BT48) -> 0 | G16: =F16-E16 -> 0
D17: =Inputs!D35 -> 0 | E17: =CHOOSE(Inputs!$D$130,Inputs!BI49,Inputs!BJ49,Inputs!BK49,Inputs!BL49,Inputs!BM49) -> 0 | F17: =CHOOSE(Inputs!$D$130,Inputs!BP49,Inputs!BQ49,Inputs!BR49,Inputs!BS49,Inputs!BT49) -> 0 | G17: 0
D18: Intervention cost | E18: =CHOOSE(Inputs!$D$130,Inputs!BI50,Inputs!BJ50,Inputs!BK50,Inputs!BL50,Inputs!BM50) -> 0 | F18: =CHOOSE(Inputs!$D$130,Inputs!BP50,Inputs!BQ50,Inputs!BR50,Inputs!BS50,Inputs!BT50) -> 30000 | G18: 30000
D19: Total | E19: =SUM(E13:E18) -> 1358729.047 | F19: =SUM(F13:F18) -> 1336665.612 | G19: =SUM(G13:G18) -> -22063.43562
G20: =IF(AbsenceType=1,"Please note that these results are for STSA","Please note that these results are for LTSA") -> Please note that these results are for LTSA
D34: =IF(D86=0,"No effectiveness inputs selected.",VLOOKUP('Base case'!D90,'Base case'!D92:E96,2)) -> The results are limited to the costs of absenteeism, productivity and staff turnover.
D80: The results shown are limited to the
D83: =IF(Inputs!G117=1,"absenteeism","") -> absenteeism | E83: =IF(D83="",0,1) -> 1 | F83: 1
D84: =IF(Inputs!G118=1,"productivity","") -> productivity | E84: =IF(D84="",0,1) -> 1 | F84: 2
D85: =IF(Inputs!G119=1,"staff turnover","") -> staff turnover | E85: 1 | F85: 3
D86: =SUM(E83:E85) -> 3
D87: =VLOOKUP(0,E83:F85,2,FALSE) -> 
D88: absenteeism and the cost of the intervenion. However, subject to relevant data being available the user can include productivity and change in staff turnover in the results.
D90: =IF(D86=1,1,IF(D86=3,5,IF(D87=1,2,IF(D87=2,3,4)))) -> 5
D92: 1 | E92: =CONCATENATE("The results are limited to the cost of ",D83,D84,D85," only.") -> The results are limited to the cost of absenteeismproductivitystaff turnover only.
D93: 2 | E93: The results are limited to the costs of productivity and staff turnover.
D94: 3 | E94: The results are limited to the costs of absenteeism and staff turnover.
D95: 4 | E95: The results are limited to the costs of absenteeism and productivity.
D96: 5 | E96: The results are limited to the costs of absenteeism, productivity and staff turnover.
D126: Slider chart on/off switch | E126: 2
D127: 1 = on, 2= off
D129: Impact

Sheet SA
C4: XXXXXXXXXXX
G11: =IF(AbsenceType=1,"Please note that these results are for STSA","Please note that these results are for LTSA") -> Please note that these results are for LTSA
AO13: Before | AP13: After | AQ13: Difference
AN14: Cost of absenteeism | AO14: 25502.4 | AP14: 22952.16 | AQ14: -2550.24
AN15: Income from increased productivity | AO15: 1185660 | AP15: 1197516.6 | AQ15: -11856.6
AN16: Cost of staff turnover | AO16: 50986.10656 | AP16: 42063.53791 | AQ16: -8922.568648
AN17: Healthcare costs | AO17: 0 | AP17: 0 | AQ17: 0
AN18: Societal costs | AO18: 0 | AP18: 0 | AQ18: 0
AN19: Intervention cost | AO19: 0 | AP19: 6000 | AQ19: 6000
AN20: Total | AO20: 1262148.507 | AP20: 1268532.298 | AQ20: -17329.40865
AW36: Live
AU37: Death | AV37: TRUE | AW37: =IF(AV37=TRUE,E38,"") -> 0
E113: Cost of intervention per person
E114: =Inputs!D19 -> Absenteeism (sick leave)
E115: =Inputs!D23 -> Productivity
E116: =Inputs!D27 -> Staff turnover
E117: =Inputs!D31 -> 0
E118: =Inputs!D35 -> 0
E119: Percentage difference in effectiveness each year
E120: 2

Sheet SAAbs
C4: XXXXXXXXXXX
G11: =IF(AbsenceType=1,"Please note that these results are for STSA","Please note that these results are for LTSA") -> Please note that these results are for LTSA
AO13: Before | AP13: After | AQ13: Difference
AN14: Cost of absenteeism | AO14: 25502.4 | AP14: 22952.16 | AQ14: -2550.24
AN15: Income from increased productivity | AO15: 1185660 | AP15: 1197516.6 | AQ15: -11856.6
AN16: Cost of staff turnover | AO16: 50986.10656 | AP16: 42063.53791 | AQ16: -8922.568648
AN17: Healthcare costs | AO17: 0 | AP17: 0 | AQ17: 0
AN18: Societal costs | AO18: 0 | AP18: 0 | AQ18: 0
AN19: Intervention cost | AO19: 0 | AP19: 6000 | AQ19: 6000
AN20: Total | AO20: 1262148.507 | AP20: 1268532.298 | AQ20: -17329.40865
AW36: Live
AU37: Death | AV37: TRUE | AW37: =IF(AV37=TRUE,E38,"") -> 0
E113: Cost of intervention per person
E114: Absenteeism
E115: Productivity
E116: Staff turnover
E117: Health care costs
E118: Other societal costs
E119: 5

Sheet SAProd
C4: XXXXXXXXXXX
G11: =IF(AbsenceType=1,"Please note that these results are for STSA","Please note that these results are for LTSA") -> Please note that these results are for LTSA
AO13: Before | AP13: After | AQ13: Difference
AN14: Cost of absenteeism | AO14: 25502.4 | AP14: 22952.16 | AQ14: -2550.24
AN15: Income from increased productivity | AO15: 1185660 | AP15: 1197516.6 | AQ15: -11856.6
AN16: Cost of staff turnover | AO16: 50986.10656 | AP16: 42063.53791 | AQ16: -8922.568648
AN17: Healthcare costs | AO17: 0 | AP17: 0 | AQ17: 0
AN18: Societal costs | AO18: 0 | AP18: 0 | AQ18: 0
AN19: Intervention cost | AO19: 0 | AP19: 6000 | AQ19: 6000
AN20: Total | AO20: 1262148.507 | AP20: 1268532.298 | AQ20: -17329.40865
AW36: Live
AU37: Death | AV37: TRUE | AW37: =IF(AV37=TRUE,E38,"") -> 0
E113: Cost of intervention per person
E114: Absenteeism
E115: Productivity
E116: Staff turnover
E117: Health care costs
E118: Other societal costs
E119: 3

Sheet SATurnover
C4: XXXXXXXXXXX
G11: =IF(AbsenceType=1,"Please note that these results are for STSA","Please note that these results are for LTSA") -> Please note that these results are for LTSA
AO13: Before | AP13: After | AQ13: Difference
AN14: Cost of absenteeism | AO14: 25502.4 | AP14: 22952.16 | AQ14: -2550.24
AN15: Income from increased productivity | AO15: 1185660 | AP15: 1197516.6 | AQ15: -11856.6
AN16: Cost of staff turnover | AO16: 50986.10656 | AP16: 42063.53791 | AQ16: -8922.568648
AN17: Healthcare costs | AO17: 0 | AP17: 0 | AQ17: 0
AN18: Societal costs | AO18: 0 | AP18: 0 | AQ18: 0
AN19: Intervention cost | AO19: 0 | AP19: 6000 | AQ19: 6000
AN20: Total | AO20: 1262148.507 | AP20: 1268532.298 | AQ20: -17329.40865
AW36: Live
AU37: Death | AV37: TRUE | AW37: =IF(AV37=TRUE,E38,"") -> 0
E113: Cost of intervention per person
E114: Absenteeism
E115: Productivity
E116: Staff turnover
E117: Health care costs
E118: Other societal costs
E119: 3

Sheet SAHealth
C4: XXXXXXXXXXX
G11: =IF(AbsenceType=1,"Please note that these results are for STSA","Please note that these results are for LTSA") -> Please note that these results are for LTSA
AO13: Before | AP13: After | AQ13: Difference
AN14: Cost of absenteeism | AO14: 25502.4 | AP14: 22952.16 | AQ14: -2550.24
AN15: Income from increased productivity | AO15: 1185660 | AP15: 1197516.6 | AQ15: -11856.6
AN16: Cost of staff turnover | AO16: 50986.10656 | AP16: 42063.53791 | AQ16: -8922.568648
AN17: Healthcare costs | AO17: 0 | AP17: 0 | AQ17: 0
AN18: Societal costs | AO18: 0 | AP18: 0 | AQ18: 0
AN19: Intervention cost | AO19: 0 | AP19: 6000 | AQ19: 6000
AN20: Total | AO20: 1262148.507 | AP20: 1268532.298 | AQ20: -17329.40865
AW36: Live
AU37: Death | AV37: TRUE | AW37: =IF(AV37=TRUE,E38,"") -> 0
E113: Cost of intervention per person
E114: Absenteeism
E115: Productivity
E116: Staff turnover
E117: Health care costs
E118: Other societal costs
E119: 1

Sheet SASoc
C4: XXXXXXXXXXX
G11: =IF(AbsenceType=1,"Please note that these results are for STSA","Please note that these results are for LTSA") -> Please note that these results are for LTSA
AO13: Before | AP13: After | AQ13: Difference
AN14: Cost of absenteeism | AO14: 25502.4 | AP14: 22952.16 | AQ14: -2550.24
AN15: Income from increased productivity | AO15: 1185660 | AP15: 1197516.6 | AQ15: -11856.6
AN16: Cost of staff turnover | AO16: 50986.10656 | AP16: 42063.53791 | AQ16: -8922.568648
AN17: Healthcare costs | AO17: 0 | AP17: 0 | AQ17: 0
AN18: Societal costs | AO18: 0 | AP18: 0 | AQ18: 0
AN19: Intervention cost | AO19: 0 | AP19: 6000 | AQ19: 6000
AN20: Total | AO20: 1262148.507 | AP20: 1268532.298 | AQ20: -17329.40865
AW36: Live
AU37: Death | AV37: TRUE | AW37: =IF(AV37=TRUE,E38,"") -> 0
E113: Cost of intervention per person
E114: Absenteeism
E115: Productivity
E116: Staff turnover
E117: Health care costs
E118: Other societal costs
E119: 2

Sheet SAEff
C4: XXXXXXXXXXX
G11: =IF(AbsenceType=1,"Please note that these results are for STSA","Please note that these results are for LTSA") -> Please note that these results are for LTSA
AO13: Before | AP13: After | AQ13: Difference
AN14: Cost of absenteeism | AO14: 25502.4 | AP14: 22952.16 | AQ14: -2550.24
AN15: Income from increased productivity | AO15: 1185660 | AP15: 1197516.6 | AQ15: -11856.6
AN16: Cost of staff turnover | AO16: 50986.10656 | AP16: 42063.53791 | AQ16: -8922.568648
AN17: Healthcare costs | AO17: 0 | AP17: 0 | AQ17: 0
AN18: Societal costs | AO18: 0 | AP18: 0 | AQ18: 0
AN19: Intervention cost | AO19: 0 | AP19: 6000 | AQ19: 6000
AN20: Total | AO20: 1262148.507 | AP20: 1268532.298 | AQ20: -17329.40865
AW36: Live
AU37: Death | AV37: TRUE | AW37: =IF(AV37=TRUE,E38,"") -> 0

Sheet Slider
C4: XXXXXXXXXXX
G9: =IF(AbsenceType=1,"Please note that these results are for STSA","Please note that these results are for LTSA") -> Please note that these results are for LTSA
E11: Before | F11: After | G11: Cost savings
D12: Cost of absenteeism | E12: ='Base case'!E13 -> 94968 | F12: ='Base case'!F13 -> 56980.8 | G12: ='Base case'!G13 -> -37987.2
D13: Income from productivity | E13: ='Base case'!E14 -> 1201200 | F13: ='Base case'!F14 -> 1201200 | G13: ='Base case'!G14 -> 0 | AO13: Before | AP13: After | AQ13: Difference
D14: Cost of staff turnover | E14: ='Base case'!E15 -> 62561.0472 | F14: ='Base case'!F15 -> 48484.81158 | G14: ='Base case'!G15 -> -14076.23562 | AN14: Cost of absenteeism | AO14: 25502.4 | AP14: 22952.16 | AQ14: -2550.24
D15: =Inputs!D31 -> 0 | E15: ='Base case'!E16 -> 0 | F15: ='Base case'!F16 -> 0 | G15: ='Base case'!G16 -> 0 | AN15: Income from increased productivity | AO15: 1185660 | AP15: 1197516.6 | AQ15: -11856.6
D16: =Inputs!D35 -> 0 | E16: ='Base case'!E17 -> 0 | F16: ='Base case'!F17 -> 0 | G16: ='Base case'!G17 -> 0 | AN16: Cost of staff turnover | AO16: 50986.10656 | AP16: 42063.53791 | AQ16: -8922.568648
D17: Intervention cost | E17: ='Base case'!E18 -> 0 | F17: ='Base case'!F18 -> 30000 | G17: ='Base case'!G18 -> 30000 | AN17: Healthcare costs | AO17: 0 | AP17: 0 | AQ17: 0
D18: Total | E18: ='Base case'!E19 -> 1358729.047 | F18: ='Base case'!F19 -> 1336665.612 | G18: ='Base case'!G19 -> -22063.43562 | AN18: Societal costs | AO18: 0 | AP18: 0 | AQ18: 0
AN19: Intervention cost | AO19: 0 | AP19: 6000 | AQ19: 6000
D20: Variable | F20: Value | AN20: Total | AO20: 1262148.507 | AP20: 1268532.298 | AQ20: -17329.40865
D21: Number of employees | F21: =Inputs!AK12 -> 30
D22: Cost of intervention | F22: =Inputs!AK14 -> 200
D23: Absenteeism: No. of days lost per person | F23: =Inputs!AK17 -> 4.44
D24: Absenteeism: Cost per day | F24: =Inputs!AK18 -> 158.28
D25: Absenteeism: Reduction | F25: =Inputs!AK19/100 -> 0.4
D26: Productivity: % of staff affected | F26: =Inputs!AK22/100 -> 1
D27: Productivity: Value of an employee | F27: =Inputs!AK23*100 -> 40040
D28: Productivity: Increase | F28: =Inputs!AK24/1000 -> 0
D29: Staff turnover: Annual rate | F29: =Inputs!AK27/100 -> 0.136
D30: Staff turnover: Cost per case | F30: =Inputs!AK29 -> 15333.59
D31: Staff turnover: Reduction | F31: =Inputs!AK28/100 -> 0.225
D32: =CONCATENATE(Inputs!D31, ": % of staff affected") -> : % of staff affected | F32: =Inputs!AK32/100 -> 0
D33: =CONCATENATE(Inputs!D31,": Cost per person") -> : Cost per person | F33: =Inputs!AK34 -> 0
D34: =CONCATENATE(Inputs!D31, ": Reduction") -> : Reduction | F34: =Inputs!AK33/100 -> 0
D35: =CONCATENATE(Inputs!D35,": % of staff affected") -> : % of staff affected | F35: =Inputs!AK37/100 -> 0
D36: =CONCATENATE(Inputs!D35,": Cost per person") -> : Cost per person | F36: =Inputs!AK39 -> 0
D37: =CONCATENATE(Inputs!D35,": Reduction") -> : Reduction | F37: =Inputs!AK38/100 -> 0 | AW37: Live
AU38: Death | AV38: TRUE | AW38: =IF(AV38=TRUE,E39,"") -> 0

Sheet Four-way
C4: XXXXXXXXXXX
H7: Please select category to view: | L7: Four-way SA inputs
H8: Absenteeism | L8: Cost of intervention per person | M8: 0 | N8: 100 | O8: 200 | P8: 400
H9: Productivity | M9: Low | N9: Mid | O9: High
D10: Absenteeism | F10: =IF(AbsenceType=1,"Please note that these results are for STSA","Please note that these results are for LTSA") -> Please note that these results are for LTSA | H10: Staff turnover | L10: Cost of absenteeism | M10: 79.14 | N10: 158.28 | O10: 316.56
F11: Please remember to presss the 'run' button | L11: Baseline absenteeism (days) | M11: 15 | N11: 30 | O11: 60
F14: 1. Baseline absenteeism (days) | H14: 2. Baseline absenteeism (days) | J14: 3. Baseline absenteeism (days)
F15: 2.22 | H15: 4.44 | J15: 8.88 | AQ15: Before | AR15: After | AS15: Difference
AP16: Cost of absenteeism | AQ16: 25502.4 | AR16: 22952.16 | AS16: -2550.24
D17: A. Cost of absenteeism | AP17: Income from increased productivity | AQ17: 1185660 | AR17: 1197516.6 | AS17: -11856.6
D18: =M10 -> 79.14 | AP18: Cost of staff turnover | AQ18: 50986.10656 | AR18: 42063.53791 | AS18: -8922.568648
AP19: Healthcare costs | AQ19: 0 | AR19: 0 | AS19: 0
AP20: Societal costs | AQ20: 0 | AR20: 0 | AS20: 0
AP21: Intervention cost | AQ21: 0 | AR21: 6000 | AS21: 6000
AP22: Total | AQ22: 1262148.507 | AR22: 1268532.298 | AS22: -17329.40865
D27: B. Cost of absenteeism
D28: =N10 -> 158.28
D37: C. Cost of absenteeism
D38: =O10 -> 316.56
AY39: Live
AW40: Death | AX40: TRUE | AY40: =IF(AX40=TRUE,F41,"") -> 0

Sheet Four-way Prod
C4: XXXXXXXXXXX
H7: Please select category to view: | L7: Four-way SA inputs
H8: Absenteeism | L8: Cost of intervention per person | M8: 0 | N8: 100 | O8: 200 | P8: 400
H9: Productivity | M9: Low | N9: Mid | O9: High
D10: Productivity | F10: =IF(AbsenceType=1,"Please note that these results are for STSA","Please note that these results are for LTSA") -> Please note that these results are for LTSA | H10: Staff turnover | L10: Value of employee | M10: 20020 | N10: 40040 | O10: 80080
F11: Please remember to presss the 'run' button | L11: Percentage of staff affected | M11: 0.5 | N11: 0.75 | O11: 1
F14: 1. Percentage affected | H14: 2. Percentage affected | J14: 3. Percentage affected
F15: =M11 -> 0.5 | H15: =N11 -> 0.75 | J15: =O11 -> 1 | AQ15: Before | AR15: After | AS15: Difference
AP16: Cost of absenteeism | AQ16: 25502.4 | AR16: 22952.16 | AS16: -2550.24
D17: A. Value of employee | AP17: Income from increased productivity | AQ17: 1185660 | AR17: 1197516.6 | AS17: -11856.6
D18: =M10 -> 20020 | AP18: Cost of staff turnover | AQ18: 50986.10656 | AR18: 42063.53791 | AS18: -8922.568648
AP19: Healthcare costs | AQ19: 0 | AR19: 0 | AS19: 0
AP20: Societal costs | AQ20: 0 | AR20: 0 | AS20: 0
AP21: Intervention cost | AQ21: 0 | AR21: 6000 | AS21: 6000
AP22: Total | AQ22: 1262148.507 | AR22: 1268532.298 | AS22: -17329.40865
D27: B. Value of employee
D28: =N10 -> 40040
D37: C. Value of employee
D38: =O10 -> 80080
AY39: Live
AW40: Death | AX40: TRUE | AY40: =IF(AX40=TRUE,F41,"") -> 0

Sheet Four-way Turnover
C4: XXXXXXXXXXX
H7: Please select category to view: | L7: Four-way SA inputs
H8: Absenteeism | L8: Cost of intervention per person | M8: 0 | N8: 155.5 | O8: 311 | P8: =O8*2 -> 622
H9: Productivity | M9: Low | N9: Mid | O9: High
D10: Staff turnover | F10: =IF(AbsenceType=1,"Please note that these results are for STSA","Please note that these results are for LTSA") -> Please note that these results are for LTSA | H10: Staff turnover | L10: Cost per case | M10: 7666.8 | N10: 15333.59 | O10: 30667.18
F11: Please remember to presss the 'run' button | L11: Baseline rate of turnover | M11: 0.068 | N11: 0.136 | O11: 0.272
F14: 1. Baseline rate of turnover | H14: 2. Baseline rate of turnover | J14: 3. Baseline rate of turnover
F15: =M11 -> 0.068 | H15: =N11 -> 0.136 | J15: =O11 -> 0.272 | AQ15: Before | AR15: After | AS15: Difference
AP16: Cost of absenteeism | AQ16: 25502.4 | AR16: 22952.16 | AS16: -2550.24
D17: A. Cost per case | AP17: Income from increased productivity | AQ17: 1185660 | AR17: 1197516.6 | AS17: -11856.6
D18: =M10 -> 7666.8 | AP18: Cost of staff turnover | AQ18: 50986.10656 | AR18: 42063.53791 | AS18: -8922.568648
AP19: Healthcare costs | AQ19: 0 | AR19: 0 | AS19: 0
AP20: Societal costs | AQ20: 0 | AR20: 0 | AS20: 0
AP21: Intervention cost | AQ21: 0 | AR21: 6000 | AS21: 6000
AP22: Total | AQ22: 1262148.507 | AR22: 1268532.298 | AS22: -17329.40865
D27: B. Cost per case
D28: =N10 -> 15333.59
D37: C. Cost per case
D38: =O10 -> 30667.18
AY39: Live
AW40: Death | AX40: TRUE | AY40: =IF(AX40=TRUE,F41,"") -> 0
